{"text_format":"1","workbook":"xlsx","n_sheets":10,"sheets":["Accueil","Listes","BD articles menus","BD menus","Menus midi retraite","Menus journaliers","Menus viandes midi weekend","Quantités desserts","Quantités légumes","Quantités viandes"],"not_rendered":{"charts":0,"images":0,"macros":1,"external_links":0,"defined_names":1,"comments":0,"pivot_tables":0},"unopened":[],"bounds":{"document_bytes":16777216,"sheet_cells":100000,"rows_first":2000,"rows_last":500,"rows_between":2000,"halvings":0,"cell_chars":16384,"cell_head_chars":4096},"cells_cut":0,"cells_raw":0,"read":"whole","date_system":"1900"}

{"sheet":"Accueil","index":0,"n_rows":288,"n_cols":6,"rows_kept":288,"cut":false,"hidden":false,"merged":[]}
[null,null,null,"Open","Save",2023]
[null,null,null,"2023-06-27T11:20:51","2023-06-27T11:18:06"]
[null,null,null,"2023-06-28T15:16:22","2023-06-27T11:20:36"]
[null,null,null,"2023-06-29T10:42:07","2023-06-27T11:21:09"]
[null,null,null,"2023-06-29T14:55:27","2023-06-27T11:47:52"]
[null,null,null,"2023-07-01T12:08:30","2023-06-27T12:51:18"]
[null,null,null,"2023-07-02T11:03:53","2023-06-28T16:19:21"]
[null,null,null,"2023-07-02T15:39:41","2023-06-29T11:30:22"]
[null,null,null,"2023-07-03T10:57:11","2023-06-29T15:48:35"]
[null,null,null,"2023-07-03T18:15:55","2023-06-29T16:30:41"]
[null,null,null,"2023-07-04T09:33:33","2023-07-01T12:24:02"]
[null,null,null,"2023-07-05T10:53:31","2023-07-02T12:27:46"]
[null,null,null,"2023-07-05T14:34:25","2023-07-02T16:02:57"]
[null,null,null,"2023-07-05T18:51:40","2023-07-02T16:05:41"]
[null,null,null,"2023-07-05T21:52:35","2023-07-03T11:01:03"]
[null,null,null,"2023-07-06T11:09:01","2023-07-03T21:45:08"]
[null,null,null,"2023-07-06T14:38:57","2023-07-04T09:56:18"]
[null,null,null,"2023-07-06T19:05:45","2023-07-05T12:09:09"]
[null,null,null,"2023-07-06T21:11:28","2023-07-05T16:05:18"]
[null,null,null,"2023-07-07T10:49:56","2023-07-05T16:17:35"]
[null,null,null,"2023-07-07T18:58:25","2023-07-05T16:26:19"]
[null,null,null,"2023-07-08T15:56:05","2023-07-05T19:09:11"]
[null,null,null,"2023-07-08T16:11:59","2023-07-05T19:40:44"]
[null,null,null,"2023-07-08T17:49:04","2023-07-05T21:03:21"]
[null,null,null,"2023-07-09T11:29:34","2023-07-05T21:10:25"]
[null,null,null,"2023-07-09T12:05:20","2023-07-05T21:56:53"]
[null,null,null,"2023-07-09T17:34:16","2023-07-05T22:17:08"]
[null,null,null,"2023-07-09T18:18:42","2023-07-06T13:28:02"]
[null,null,null,"2023-07-10T10:48:19","2023-07-06T15:04:48"]
[null,null,null,"2023-07-10T14:47:45","2023-07-06T15:42:14"]
[null,null,null,"2023-07-10T21:18:07","2023-07-06T15:51:47"]
[null,null,null,"2023-07-13T16:01:21","2023-07-06T16:06:44"]
[null,null,null,"2023-07-13T21:22:09","2023-07-06T16:09:10"]
[null,null,null,"2023-07-14T11:06:14","2023-07-06T19:20:33"]
[null,null,null,"2023-07-14T21:42:15","2023-07-06T19:55:27"]
[null,null,null,"2023-07-15T12:04:50","2023-07-06T21:59:40"]
[null,null,null,"2023-07-15T18:30:47","2023-07-07T11:01:29"]
[null,null,null,"2023-07-16T15:17:37","2023-07-07T11:23:26"]
[null,null,null,"2023-08-03T19:24:42","2023-07-07T19:04:52"]
[null,null,null,"2023-08-04T09:22:22","2023-07-07T21:41:34"]
[null,null,null,"2023-08-04T16:16:19","2023-07-07T21:49:48"]
[null,null,null,"2023-08-04T19:39:11","2023-07-08T16:03:52"]
[null,null,null,"2023-08-05T17:30:17","2023-07-08T16:20:43"]
[null,null,null,"2023-08-05T21:22:46","2023-07-08T16:21:36"]
[null,null,null,"2023-08-06T12:06:29","2023-07-08T16:30:26"]
[null,null,null,"2023-08-06T14:55:54","2023-07-08T21:57:02"]
[null,null,null,"2023-08-06T15:17:23","2023-07-09T11:36:23"]
[null,null,null,"2023-08-06T18:42:05","2023-07-09T11:39:55"]
[null,null,null,"2023-08-06T20:08:45","2023-07-09T12:02:00"]
[null,null,null,"2023-08-07T11:05:54","2023-07-09T12:19:49"]
[null,null,null,"2023-08-07T15:17:33","2023-07-09T17:41:27"]
[null,null,null,"2023-08-07T18:54:04","2023-07-09T17:53:28"]
[null,null,null,"2023-08-08T15:05:41","2023-07-09T18:07:07"]
[null,null,null,"2023-08-08T18:48:15","2023-07-09T18:18:23"]
[null,null,null,"2023-08-09T14:46:10","2023-07-09T18:20:17"]
[null,null,null,"2023-08-09T18:48:27","2023-07-09T18:25:21"]
[null,null,null,"2023-08-09T20:54:50","2023-07-10T12:30:07"]
[null,null,null,"2023-08-10T12:16:27","2023-07-10T14:54:57"]
[null,null,null,"2023-08-10T22:26:29","2023-07-10T15:10:13"]
[null,null,null,"2023-08-10T22:32:07","2023-07-10T15:35:43"]
[null,null,null,"2023-08-11T10:53:41","2023-07-10T16:20:03"]
[null,null,null,"2023-08-11T21:42:39","2023-07-10T16:25:40"]
[null,null,null,"2023-08-12T10:04:48","2023-07-10T16:36:55"]
[null,null,null,"2023-08-12T12:59:51","2023-07-10T21:50:08"]
[null,null,null,"2023-08-13T19:49:38","2023-07-10T22:09:48"]
[null,null,null,"2023-08-14T10:53:57","2023-07-13T16:03:44"]
[null,null,null,"2023-08-14T15:07:56","2023-07-13T16:13:47"]
[null,null,null,"2023-08-14T19:00:29","2023-07-13T16:25:48"]
[null,null,null,"2023-08-14T19:37:23","2023-07-13T21:54:07"]
[null,null,null,"2023-08-14T21:05:09","2023-07-14T11:41:17"]
[null,null,null,"2023-08-15T10:23:19","2023-07-14T11:52:29"]
[null,null,null,"2023-08-15T21:08:08","2023-07-14T21:59:04"]
[null,null,null,"2023-08-16T10:21:43","2023-07-15T12:41:44"]
[null,null,null,"2023-08-16T12:39:50","2023-07-15T12:47:21"]
[null,null,null,"2023-08-17T09:57:56","2023-07-15T12:48:48"]
[null,null,null,"2023-08-17T11:45:48","2023-07-15T18:54:00"]
[null,null,null,"2023-08-17T16:23:42","2023-07-15T19:00:19"]
[null,null,null,"2023-08-18T11:08:29","2023-07-15T19:06:42"]
[null,null,null,"2023-08-18T15:25:40","2023-07-15T19:15:04"]
[null,null,null,"2023-08-19T10:52:32","2023-07-15T22:21:10"]
[null,null,null,"2023-08-19T15:40:58","2023-07-15T22:21:30"]
[null,null,null,"2023-08-19T18:48:38","2023-07-15T22:41:27"]
[null,null,null,"2023-08-19T21:07:22","2023-07-16T15:55:48"]
[null,null,null,"2023-08-19T21:09:28","2023-08-03T21:19:21"]
[null,null,null,"2023-08-19T21:40:54","2023-08-03T21:35:30"]
[null,null,null,"2023-08-20T10:56:44","2023-08-04T09:32:45"]
[null,null,null,"2023-08-20T14:35:10","2023-08-04T09:50:06"]
[null,null,null,"2023-08-21T10:25:53","2023-08-04T16:30:49"]
[null,null,null,"2023-08-21T12:18:33","2023-08-04T16:45:29"]
[null,null,null,"2023-08-21T14:48:41","2023-08-04T21:05:39"]
[null,null,null,"2023-08-21T19:09:58","2023-08-04T22:27:26"]
[null,null,null,"2023-08-21T21:08:16","2023-08-05T17:48:32"]
[null,null,null,"2023-08-22T10:42:07","2023-08-05T21:25:19"]
[null,null,null,"2023-08-22T21:04:05","2023-08-06T12:23:08"]
[null,null,null,"2023-08-23T11:37:40","2023-08-06T15:06:03"]
[null,null,null,"2023-08-23T14:38:06","2023-08-06T16:00:34"]
[null,null,null,"2023-08-23T18:16:54","2023-08-06T16:15:03"]
[null,null,null,"2023-08-23T18:40:59","2023-08-06T19:27:05"]
[null,null,null,"2023-08-24T10:31:59","2023-08-06T20:10:09"]
[null,null,null,"2023-08-24T15:19:28","2023-08-07T11:52:19"]
[null,null,null,"2023-08-24T18:33:44","2023-08-07T12:15:08"]
[null,null,null,"2023-08-24T21:06:51","2023-08-07T12:43:08"]
[null,null,null,"2023-08-25T10:49:54","2023-08-07T16:33:13"]
[null,null,null,"2023-08-25T16:57:54","2023-08-07T19:43:44"]
[null,null,null,"2023-08-25T20:12:15","2023-08-07T21:31:08"]
[null,null,null,"2023-08-27T15:51:59","2023-08-08T15:52:07"]
[null,null,null,"2023-08-27T19:42:47","2023-08-08T16:32:45"]
[null,null,null,"2023-08-27T21:58:28","2023-08-08T19:19:28"]
[null,null,null,"2023-08-28T10:36:30","2023-08-08T19:19:51"]
[null,null,null,"2023-08-28T11:46:20","2023-08-08T19:42:32"]
[null,null,null,"2023-08-28T14:48:32","2023-08-08T21:08:47"]
[null,null,null,"2023-08-28T15:41:26","2023-08-08T21:16:16"]
[null,null,null,"2023-08-28T16:10:46","2023-08-08T21:33:49"]
[null,null,null,"2023-08-28T16:15:11","2023-08-09T15:13:29"]
[null,null,null,"2023-08-28T19:28:30","2023-08-09T16:35:48"]
[null,null,null,"2023-08-30T10:47:50","2023-08-09T19:19:58"]
[null,null,null,"2023-08-30T11:26:57","2023-08-09T21:23:28"]
[null,null,null,"2023-08-30T16:21:31","2023-08-09T21:28:16"]
[null,null,null,"2023-08-30T22:22:03","2023-08-09T21:33:37"]
[null,null,null,"2023-08-31T10:53:55","2023-08-10T12:24:53"]
[null,null,null,"2023-09-01T11:06:50","2023-08-10T12:58:08"]
[null,null,null,"2023-09-01T12:39:17","2023-08-10T22:31:46"]
[null,null,null,"2023-09-02T11:24:30","2023-08-10T22:33:09"]
[null,null,null,"2023-09-02T16:40:26","2023-08-11T12:04:36"]
[null,null,null,"2023-09-03T11:37:10","2023-08-11T12:23:35"]
[null,null,null,"2023-09-03T15:26:50","2023-08-11T22:24:56"]
[null,null,null,"2023-09-03T19:22:39","2023-08-12T10:12:00"]
[null,null,null,"2023-09-03T22:15:36","2023-08-12T11:05:40"]
[null,null,null,"2023-09-04T13:37:50","2023-08-12T13:15:26"]
[null,null,null,"2023-09-04T15:06:13","2023-08-13T21:56:43"]
[null,null,null,"2023-09-04T15:33:02","2023-08-14T12:06:14"]
[null,null,null,"2023-09-04T15:53:17","2023-08-14T12:24:03"]
[null,null,null,"2023-09-04T18:56:34","2023-08-14T15:25:11"]
[null,null,null,"2023-09-04T21:28:14","2023-08-14T16:02:59"]
[null,null,null,"2023-09-06T10:46:01","2023-08-14T16:21:40"]
[null,null,null,"2023-09-06T15:21:12","2023-08-14T19:16:36"]
[null,null,null,"2023-09-06T19:21:13","2023-08-14T19:50:35"]
[null,null,null,"2023-09-07T10:46:53","2023-08-14T22:21:29"]
[null,null,null,"2023-09-07T10:52:45","2023-08-15T11:10:37"]
[null,null,null,"2023-09-07T15:40:13","2023-08-15T21:17:46"]
[null,null,null,"2023-09-07T19:02:12","2023-08-15T21:32:29"]
[null,null,null,"2023-09-07T21:11:24","2023-08-15T21:35:59"]
[null,null,null,"2023-09-08T10:41:08","2023-08-15T21:44:27"]
[null,null,null,"2023-09-08T14:43:18","2023-08-15T21:54:11"]
[null,null,null,"2023-09-08T18:40:45","2023-08-16T11:47:45"]
[null,null,null,null,"2023-08-16T12:33:40"]
[null,null,null,null,"2023-08-16T12:50:10"]
[null,null,null,null,"2023-08-16T12:56:50"]
[null,null,null,null,"2023-08-17T10:08:08"]
[null,null,null,null,"2023-08-17T11:49:51"]
[null,null,null,null,"2023-08-17T12:24:54"]
[null,null,null,null,"2023-08-17T16:24:28"]
[null,null,null,null,"2023-08-18T11:27:50"]
[null,null,null,null,"2023-08-18T11:29:00"]
[null,null,null,null,"2023-08-18T16:05:00"]
[null,null,null,null,"2023-08-19T12:06:45"]
[null,null,null,null,"2023-08-19T12:14:32"]
[null,null,null,null,"2023-08-19T16:01:54"]
[null,null,null,null,"2023-08-19T16:29:03"]
[null,null,null,null,"2023-08-19T19:20:17"]
[null,null,null,null,"2023-08-19T19:39:48"]
[null,null,null,null,"2023-08-19T21:08:09"]
[null,null,null,null,"2023-08-19T21:14:42"]
[null,null,null,null,"2023-08-19T21:43:05"]
[null,null,null,null,"2023-08-19T21:51:49"]
[null,null,null,null,"2023-08-20T11:49:21"]
[null,null,null,null,"2023-08-20T12:02:18"]
[null,null,null,null,"2023-08-20T13:11:19"]
[null,null,null,null,"2023-08-20T13:19:48"]
[null,null,null,null,"2023-08-20T15:02:36"]
[null,null,null,null,"2023-08-20T16:28:00"]
[null,null,null,null,"2023-08-21T11:14:29"]
[null,null,null,null,"2023-08-21T11:53:12"]
[null,null,null,null,"2023-08-21T11:54:30"]
[null,null,null,null,"2023-08-21T12:16:37"]
[null,null,null,null,"2023-08-21T12:49:42"]
[null,null,null,null,"2023-08-21T15:47:10"]
[null,null,null,null,"2023-08-21T16:30:40"]
[null,null,null,null,"2023-08-21T20:04:42"]
[null,null,null,null,"2023-08-21T22:24:48"]
[null,null,null,null,"2023-08-22T11:42:14"]
[null,null,null,null,"2023-08-22T21:29:51"]
[null,null,null,null,"2023-08-22T21:33:49"]
[null,null,null,null,"2023-08-23T12:51:17"]
[null,null,null,null,"2023-08-23T12:54:47"]
[null,null,null,null,"2023-08-23T16:30:48"]
[null,null,null,null,"2023-08-23T16:32:04"]
[null,null,null,null,"2023-08-23T18:21:13"]
[null,null,null,null,"2023-08-23T21:32:42"]
[null,null,null,null,"2023-08-24T12:33:45"]
[null,null,null,null,"2023-08-24T16:38:04"]
[null,null,null,null,"2023-08-24T19:56:43"]
[null,null,null,null,"2023-08-24T21:09:15"]
[null,null,null,null,"2023-08-24T21:24:19"]
[null,null,null,null,"2023-08-24T21:57:03"]
[null,null,null,null,"2023-08-25T11:11:42"]
[null,null,null,null,"2023-08-25T11:22:17"]
[null,null,null,null,"2023-08-25T11:35:34"]
[null,null,null,null,"2023-08-25T17:10:16"]
[null,null,null,null,"2023-08-25T21:49:38"]
[null,null,null,null,"2023-08-27T16:37:11"]
[null,null,null,null,"2023-08-27T19:44:37"]
[null,null,null,null,"2023-08-27T22:17:37"]
[null,null,null,null,"2023-08-28T10:54:54"]
[null,null,null,null,"2023-08-28T12:14:13"]
[null,null,null,null,"2023-08-28T15:37:48"]
[null,null,null,null,"2023-08-28T15:48:28"]
[null,null,null,null,"2023-08-28T16:13:23"]
[null,null,null,null,"2023-08-28T16:19:26"]
[null,null,null,null,"2023-08-28T19:31:56"]
[null,null,null,null,"2023-08-28T19:43:00"]
[null,null,null,null,"2023-08-28T19:50:38"]
[null,null,null,null,"2023-08-30T11:07:17"]
[null,null,null,null,"2023-08-30T11:25:40"]
[null,null,null,null,"2023-08-30T11:33:24"]
[null,null,null,null,"2023-08-30T16:34:40"]
[null,null,null,null,"2023-08-30T16:39:00"]
[null,null,null,null,"2023-08-30T22:35:34"]
[null,null,null,null,"2023-08-31T11:38:08"]
[null,null,null,null,"2023-08-31T11:40:28"]
[null,null,null,null,"2023-08-31T11:42:24"]
[null,null,null,null,"2023-08-31T11:45:25"]
[null,null,null,null,"2023-09-01T11:13:18"]
[null,null,null,null,"2023-09-01T13:07:16"]
[null,null,null,null,"2023-09-02T12:04:08"]
[null,null,null,null,"2023-09-02T17:07:44"]
[null,null,null,null,"2023-09-02T19:11:27"]
[null,null,null,null,"2023-09-02T19:43:52"]
[null,null,null,null,"2023-09-02T19:50:04"]
[null,null,null,null,"2023-09-02T21:45:43"]
[null,null,null,null,"2023-09-03T11:50:58"]
[null,null,null,null,"2023-09-03T12:07:44"]
[null,null,null,null,"2023-09-03T12:12:01"]
[null,null,null,null,"2023-09-03T12:23:17"]
[null,null,null,null,"2023-09-03T12:42:32"]
[null,null,null,null,"2023-09-03T12:45:13"]
[null,null,null,null,"2023-09-03T15:45:15"]
[null,null,null,null,"2023-09-03T15:48:57"]
[null,null,null,null,"2023-09-03T16:00:55"]
[null,null,null,null,"2023-09-03T16:33:43"]
[null,null,null,null,"2023-09-03T16:59:59"]
[null,null,null,null,"2023-09-03T19:57:05"]
[null,null,null,null,"2023-09-03T22:26:08"]
[null,null,null,null,"2023-09-03T22:27:25"]
[null,null,null,null,"2023-09-04T13:53:30"]
[null,null,null,null,"2023-09-04T15:08:05"]
[null,null,null,null,"2023-09-04T15:28:23"]
[null,null,null,null,"2023-09-04T15:44:45"]
[null,null,null,null,"2023-09-04T15:49:29"]
[null,null,null,null,"2023-09-04T16:08:28"]
[null,null,null,null,"2023-09-04T16:10:01"]
[null,null,null,null,"2023-09-04T16:10:45"]
[null,null,null,null,"2023-09-04T16:30:26"]
[null,null,null,null,"2023-09-04T19:44:34"]
[null,null,null,null,"2023-09-04T19:47:16"]
[null,null,null,null,"2023-09-04T21:49:19"]
[null,null,null,null,"2023-09-04T21:52:25"]
[null,null,null,null,"2023-09-06T10:55:27"]
[null,null,null,null,"2023-09-06T15:28:02"]
[null,null,null,null,"2023-09-06T15:37:10"]
[null,null,null,null,"2023-09-06T15:55:11"]
[null,null,null,null,"2023-09-06T16:09:47"]
[null,null,null,null,"2023-09-06T16:11:02"]
[null,null,null,null,"2023-09-06T16:13:20"]
[null,null,null,null,"2023-09-06T16:14:12"]
[null,null,null,null,"2023-09-06T16:16:47"]
[null,null,null,null,"2023-09-06T16:19:19"]
[null,null,null,null,"2023-09-06T16:22:39"]
[null,null,null,null,"2023-09-06T19:25:45"]
[null,null,null,null,"2023-09-07T10:52:21"]
[null,null,null,null,"2023-09-07T11:35:56"]
[null,null,null,null,"2023-09-07T11:43:04"]
[null,null,null,null,"2023-09-07T16:22:48"]
[null,null,null,null,"2023-09-07T16:25:17"]
[null,null,null,null,"2023-09-07T19:49:47"]
[null,null,null,null,"2023-09-07T22:15:13"]
[null,null,null,null,"2023-09-08T12:24:41"]
[null,null,null,null,"2023-09-08T12:29:22"]
[null,null,null,null,"2023-09-08T12:33:28"]
[null,null,null,null,"2023-09-08T16:02:55"]
[null,null,null,null,"2023-09-08T16:06:01"]
[null,null,null,null,"2023-09-08T16:07:51"]
[null,null,null,null,"2023-09-08T16:27:23"]
[null,null,null,null,"2023-09-08T16:32:32"]
[null,null,null,null,"2023-09-08T16:36:16"]
[null,null,null,null,"2023-09-08T19:00:19"]
[null,null,null,null,"2023-09-08T19:59:47"]
[null,null,null,null,"2023-09-08T19:59:57"]

{"sheet":"Listes","index":1,"n_rows":39,"n_cols":56,"rows_kept":39,"cut":false,"hidden":false,"merged":[]}
[null,null,null,null,null,null,null,null,null,null,null,null,null,null,null,null,null,null,null,null,null,null,null,null,null,null,null,null,null,null,null,null,null,null,null,null,null,null,null,null,null,null,null,null,null,null,null,null,null,null,null,null,null,null,null,2023]
[]
["Nom nature création","Code nature création",null,"Nom nature articles menus","Code nature articles menus",null,"Nom dessert midi retraite","Code dessert midi retraite",null,"Nom dessert soir","Code dessert soir",null,"Nom desserts weekend","Code desserts weekend",null,"Nom légumes midi retraite","Code légumes midi retraite",null,"Nom légumes soirs lundi mardi","Code légumes soirs lundi mardi",null,"Nom légumes soirs mercredi jeudi","Code légumes soirs mercredi jeudi",null,"Nom légumes soirs vendredi","Code légumes soirs vendredi",null,"Nom légumes weekend samedi","Code légumes weekend samedi",null,"Nom légumes weekend dimanche","Code légumes weekend dimanche",null,"Nom viandes midi retraite","Code viandes midi retraite",null,"Nom viandes soirs","Code viandes soirs",null,"Nom viandes midi weekend","Code viandes midi weekend",null,"Nom périodes articles menus","Code périodes articles menus",null,"Nom conditionnement articles menus","Code conditionnement articles menus",null,null,"Nom période menu viandes midi weekend",null,"Nom mois",null,"Nom jour férié","Date jour férié"]
["Création articles menu","CAM",null,"Dessert midi retraite","DMR",null,"Pomme","DMR01",null,"Pomme","DS01",null,"Ananas","DW01",null,"Asperges","LMR01",null,"Cassoulet","LSLM01",null,"Macédoine de légumes","LSMJ01",null,"Asperges","LSV01",null,"Pâtes à la sauce tomates","LWS01",null,"Asperges","LWD01",null,"Rôti d'agneau","VMR01",null,"Bifteck haché de bœuf","VS01",null,"Agneau","VMW01",null,"Dimanche midi","PAM01",null,"1 bocal ou 1 boîte pour 1 repas","CAM01",null,null,{"$f":"\"Premier semestre \"&Accueil!$F$1","v":"Premier semestre 2023"},null,{"$f":"\"Janvier \"&Accueil!$F$1","v":"Janvier 2023"},null,"Jour de l'an",{"$f":"DATE(BD1,1,1)","v":"2023-01-01"}]
["Menu midi retraite","MMR",null,"Dessert soir","DS",null,null,null,null,null,null,null,"Autres fruits","DW02",null,"Avocat","LMR02",null,"Choucroute","LSLM02",null,"Petits pois","LSMJ02",null,"Avocat","LSV02",null,"Pâtes au beurre","LWS02",null,"Chips","LWD02",null,"Rôti de bœuf","VMR02",null,"Bifteck haché de cheval","VS02",null,"Bœuf","VMW02",null,"Dimanche midi et soir","PAM02",null,"1 boîte de 6 œufs. 3 œufs pour 1 repas","CAM02",null,null,{"$f":"\"Deuxième semetre \"&Accueil!$F$1","v":"Deuxième semetre 2023"},null,{"$f":"\"Février \"&Accueil!$F$1","v":"Février 2023"},null,"Pâques",{"$f":"DATE(YEAR(BC4),3,29.56+0.979*MOD(204-11*MOD(YEAR(BC4),19),30)-WEEKDAY(DATE(YEAR(BC4),3,28.56+0.979*MOD(204-11*MOD(YEAR(BC4),19),30))))","v":"2023-04-09"}]
["Menu journalier","MJ",null,"Desserts weekend","DW",null,null,null,null,null,null,null,"Avocats","DW03",null,"Carottes","LMR03",null,"Chou-fleur","LSLM03",null,"Petits pois et jeunes carottes","LSMJ03",null,"Betteraves rouges","LSV03",null,"Pâtes au fromage râpé","LWS03",null,"Frites","LWD03",null,"Rôti de cheval","VMR03",null,"Bifteck haché de veau","VS03",null,"Cheval","VMW03",null,"Dimanche soir","PAM03",null,"1 boîte ou 1 pot pour 1 repas","CAM03",null,null,null,null,{"$f":"\"Mars \"&Accueil!$F$1","v":"Mars 2023"},null,"Lundi de Pâques",{"$f":"BC5+1","v":"2023-04-10"}]
["Menu viande midi weekend","MVMW",null,"Légumes midi retraite","LMR",null,null,null,null,null,null,null,"Bananes","DW04",null,"Céleri","LMR04",null,"Choux de Bruxelles","LSLM04",null,"Ratatouille","LSMJ04",null,"Carottes","LSV04",null,null,null,null,"Haricots verts","LWD04",null,"Rôti de porc","VMR04",null,"Bouchée à la reine","VS04",null,"Dinde","VMW04",null,"Lundi à dimanche soirs","PAM04",null,"1 boîte pour 1 repas","CAM04",null,null,null,null,{"$f":"\"Avril \"&Accueil!$F$1","v":"Avril 2023"},null,"Fête du travail",{"$f":"DATE(BD1,5,1)","v":"2023-05-01"}]
[null,null,null,"Légumes soirs lundi mardi","LSLM",null,null,null,null,null,null,null,"Clémentines","DW05",null,"Champignons","LMR05",null,"Couscous","LSLM05",null,"Raviolis","LSMJ05",null,"Céleri","LSV05",null,null,null,null,null,null,null,"Rôti de veau","VMR05",null,"Boudin","VS05",null,"Poisson","VMW05",null,"Lundi à vendredi midis","PAM05",null,"1 boîte pour 2 repas","CAM05",null,null,null,null,{"$f":"\"Mai \"&Accueil!$F$1","v":"Mai 2023"},null,"Victoire 1945",{"$f":"DATE(BD1,5,8)","v":"2023-05-08"}]
[null,null,null,"Légumes soirs mercredi jeudi","LSMJ",null,null,null,null,null,null,null,"Crème","DW06",null,"Concombre","LMR06",null,"Endives","LSLM06",null,"Tomates pelées","LSMJ06",null,"Champignons","LSV06",null,null,null,null,null,null,null,null,null,null,"Cervelas","VS06",null,"Porc","VMW06",null,"Lundi à vendredi soirs","PAM06",null,"1 botte ou 1 sachet pour 1 repas","CAM06",null,null,null,null,{"$f":"\"Juin \"&Accueil!$F$1","v":"Juin 2023"},null,"Jeudi de l'ascension",{"$f":"BC6+38","v":"2023-05-18"}]
[null,null,null,"Légumes soirs vendredi","LSV",null,null,null,null,null,null,null,"Dattes","DW07",null,"Couscous","LMR07",null,"Haricots verts","LSLM07",null,null,null,null,"Concombre","LSV07",null,null,null,null,null,null,null,null,null,null,"Cœur","VS07",null,"Veau","VMW07",null,"Lundi et mardi soirs","PAM07",null,"1 botte ou 1 sachet pour 2 repas","CAM07",null,null,null,null,{"$f":"\"Juillet \"&Accueil!$F$1","v":"Juillet 2023"},null,"Pentecôte",{"$f":"BC5+49","v":"2023-05-28"}]
[null,null,null,"Légumes weekend samedi","LWS",null,null,null,null,null,null,null,"Figues","DW08",null,"Maïs","LMR08",null,"Maïs","LSLM08",null,null,null,null,"Radis","LSV08",null,null,null,null,null,null,null,null,null,null,"Croque-monsieur","VS08",null,null,null,null,"Mercredi et jeudi soirs","PAM08",null,"1 morceau de 400 grammes (Leclerc) pour 3 repas","CAM08",null,null,null,null,{"$f":"\"Août \"&Accueil!$F$1","v":"Août 2023"},null,"Lundi de Pentecôte",{"$f":"BC10+1","v":"2023-05-29"}]
[null,null,null,"Légumes weekend dimanche","LWD",null,null,null,null,null,null,null,"Fromage blanc","DW09",null,"Pâtes à la sauce tomates","LMR09",null,"Paella","LSLM09",null,null,null,null,"Salade","LSV09",null,null,null,null,null,null,null,null,null,null,"Foie","VS09",null,null,null,null,"Samedi et dimanche midis","PAM09",null,"1 morceau de 500 grammes pour 5 repas","CAM09",null,null,null,null,{"$f":"\"Septembre \"&Accueil!$F$1","v":"Septembre 2023"},null,"Fête nationale",{"$f":"DATE(BD1,7,14)","v":"2023-07-14"}]
[null,null,null,"Viandes midi retraite","VMR",null,null,null,null,null,null,null,"Fruits au sirop","DW10",null,"Pâtes au beurre","LMR10",null,"Poireau","LSLM10",null,null,null,null,"Salsifis","LSV10",null,null,null,null,null,null,null,null,null,null,"Fromage de tête","VS10",null,null,null,null,"Samedi et dimanche midis et soirs","PAM10",null,"1 pack de 4 pots pour le weekend. 1 pot pour 1 repas","CAM10",null,null,null,null,{"$f":"\"Otobre \"&Accueil!$F$1","v":"Otobre 2023"},null,"Assomption",{"$f":"DATE(BD1,8,15)","v":"2023-08-15"}]
[null,null,null,"Viandes midi weekend","VMW",null,null,null,null,null,null,null,"Fruits de saison","DW11",null,"Poireau","LMR11",null,"Pomme de terre","LSLM11",null,null,null,null,"Tomates","LSV11",null,null,null,null,null,null,null,null,null,null,"Jambon","VS11",null,null,null,null,"Samedi midi et soir","PAM11",null,"1 pack de 6 pots. 3 pots pour 1 repas","CAM11",null,null,null,null,{"$f":"\"Novembre \"&Accueil!$F$1","v":"Novembre 2023"},null,"Toussaint",{"$f":"DATE(BD1,11,1)","v":"2023-11-01"}]
[null,null,null,"Viandes soirs","VS",null,null,null,null,null,null,null,"Gâteau de riz","DW12",null,"Pomme de terre","LMR12",null,"Purée","LSLM12",null,null,null,null,null,null,null,null,null,null,null,null,null,null,null,null,"Jambonneau","VS12",null,null,null,null,"Vendredi soir","PAM12",null,"1 paquet pour 1 repas","CAM12",null,null,null,null,{"$f":"\"Décembre \"&Accueil!$F$1","v":"Décembre 2023"},null,"Armistice 1918",{"$f":"DATE(BD1,11,11)","v":"2023-11-11"}]
[null,null,null,null,null,null,null,null,null,null,null,null,"Gâteau de semoule","DW13",null,"Purée","LMR13",null,"Quenelles","LSLM13",null,null,null,null,null,null,null,null,null,null,null,null,null,null,null,null,"Mortadelle","VS13",null,null,null,null,null,null,null,"1 paquet pour 2 repas","CAM13",null,null,null,null,null,null,"Noël",{"$f":"DATE(BD1,12,25)","v":"2023-12-25"}]
[null,null,null,null,null,null,null,null,null,null,null,null,"Gâteaux samedi dimanche","DW14",null,"Radis","LMR14",null,"Riz","LSLM14",null,null,null,null,null,null,null,null,null,null,null,null,null,null,null,null,"Œufs","VS14",null,null,null,null,null,null,null,"1 paquet pour 2 repas. 1 ou 2 saucisses pour 1 repas","CAM14"]
[null,null,null,null,null,null,null,null,null,null,null,null,"Mousse au chocolat","DW15",null,"Riz","LMR15",null,null,null,null,null,null,null,null,null,null,null,null,null,null,null,null,null,null,null,"Pizza","VS15",null,null,null,null,null,null,null,"1 paquet pour 4 repas","CAM15"]
[null,null,null,null,null,null,null,null,null,null,null,null,"Oranges","DW16",null,"Salade","LMR16",null,null,null,null,null,null,null,null,null,null,null,null,null,null,null,null,null,null,null,"Poisson","VS16",null,null,null,null,null,null,null,"1 paquet pour 5 repas (betteraves rouges)","CAM16"]
[null,null,null,null,null,null,null,null,null,null,null,null,"Petits suisses","DW17",null,"Tomates","LMR17",null,null,null,null,null,null,null,null,null,null,null,null,null,null,null,null,null,null,null,"Quiche lorraine","VS17",null,null,null,null,null,null,null,"1 sachet de 2 kilogrammes. 1 pomme pour 1 repas","CAM17"]
[null,null,null,null,null,null,null,null,null,null,null,null,"Pruneaux","DW18",null,null,null,null,null,null,null,null,null,null,null,null,null,null,null,null,null,null,null,null,null,null,"Roulade à la pistache","VS18",null,null,null,null,null,null,null,"1 sachet pour 2 repas (Chips)","CAM18"]
[null,null,null,null,null,null,null,null,null,null,null,null,"Riz au lait","DW19",null,null,null,null,null,null,null,null,null,null,null,null,null,null,null,null,null,null,null,null,null,null,"Roulé au fromage","VS19",null,null,null,null,null,null,null,"1 sachet pour 4 repas","CAM19"]
[null,null,null,null,null,null,null,null,null,null,null,null,"Tapioca","DW20",null,null,null,null,null,null,null,null,null,null,null,null,null,null,null,null,null,null,null,null,null,null,"Salami","VS20",null,null,null,null,null,null,null,"1 sachet pour 6 repas. 5 tranches pour 1 repas (Saucisson)","CAM20"]
[null,null,null,null,null,null,null,null,null,null,null,null,"Yaourts","DW21",null,null,null,null,null,null,null,null,null,null,null,null,null,null,null,null,null,null,null,null,null,null,"Saucisses","VS21",null,null,null,null,null,null,null,"1 tranche pour 1 repas","CAM21"]
[null,null,null,null,null,null,null,null,null,null,null,null,null,null,null,null,null,null,null,null,null,null,null,null,null,null,null,null,null,null,null,null,null,null,null,null,"Saucisson","VS22",null,null,null,null,null,null,null,"1 tranche pour 2 repas","CAM22"]
[null,null,null,null,null,null,null,null,null,null,null,null,null,null,null,null,null,null,null,null,null,null,null,null,null,null,null,null,null,null,null,null,null,null,null,null,"Tête persillée","VS23",null,null,null,null,null,null,null,"125 grammes pour 1 repas (Bifteck haché de cheval)","CAM23"]
[null,null,null,null,null,null,null,null,null,null,null,null,null,null,null,null,null,null,null,null,null,null,null,null,null,null,null,null,null,null,null,null,null,null,null,null,"Tête roulée","VS24",null,null,null,null,null,null,null,"20 frites pour 1 repas","CAM24"]
[null,null,null,null,null,null,null,null,null,null,null,null,null,null,null,null,null,null,null,null,null,null,null,null,null,null,null,null,null,null,null,null,null,null,null,null,"Thon","VS25",null,null,null,null,null,null,null,"25 grammes pour 1 repas","CAM25"]
[null,null,null,null,null,null,null,null,null,null,null,null,null,null,null,null,null,null,null,null,null,null,null,null,null,null,null,null,null,null,null,null,null,null,null,null,"Viande cassoulet","VS26",null,null,null,null,null,null,null,"3 tranches pour 1 repas","CAM26"]
[null,null,null,null,null,null,null,null,null,null,null,null,null,null,null,null,null,null,null,null,null,null,null,null,null,null,null,null,null,null,null,null,null,null,null,null,"Viande choucroute","VS27",null,null,null,null,null,null,null,"5 cuillères pour 1 repas","CAM27"]
[null,null,null,null,null,null,null,null,null,null,null,null,null,null,null,null,null,null,null,null,null,null,null,null,null,null,null,null,null,null,null,null,null,null,null,null,"Viande paella","VS28",null,null,null,null,null,null,null,"50 grammes pour 1 repas","CAM28"]
[null,null,null,null,null,null,null,null,null,null,null,null,null,null,null,null,null,null,null,null,null,null,null,null,null,null,null,null,null,null,null,null,null,null,null,null,null,null,null,null,null,null,null,null,null,"Unité : 1 branche pour 1 repas","CAM29"]
[null,null,null,null,null,null,null,null,null,null,null,null,null,null,null,null,null,null,null,null,null,null,null,null,null,null,null,null,null,null,null,null,null,null,null,null,null,null,null,null,null,null,null,null,null,"Unité : 1 morceau pour 2 repas","CAM30"]
[null,null,null,null,null,null,null,null,null,null,null,null,null,null,null,null,null,null,null,null,null,null,null,null,null,null,null,null,null,null,null,null,null,null,null,null,null,null,null,null,null,null,null,null,null,"Unité : 1 pour 1 repas","CAM31"]
[null,null,null,null,null,null,null,null,null,null,null,null,null,null,null,null,null,null,null,null,null,null,null,null,null,null,null,null,null,null,null,null,null,null,null,null,null,null,null,null,null,null,null,null,null,"Unité : 1 pour 2 repas","CAM32"]
[null,null,null,null,null,null,null,null,null,null,null,null,null,null,null,null,null,null,null,null,null,null,null,null,null,null,null,null,null,null,null,null,null,null,null,null,null,null,null,null,null,null,null,null,null,"Unité : 1 pour 4 repas","CAM33"]
[null,null,null,null,null,null,null,null,null,null,null,null,null,null,null,null,null,null,null,null,null,null,null,null,null,null,null,null,null,null,null,null,null,null,null,null,null,null,null,null,null,null,null,null,null,"Unité : 1 tête pour 1 repas","CAM34"]
[null,null,null,null,null,null,null,null,null,null,null,null,null,null,null,null,null,null,null,null,null,null,null,null,null,null,null,null,null,null,null,null,null,null,null,null,null,null,null,null,null,null,null,null,null,"Unité : 2 à 4 pour 1 repas","CAM35"]
[null,null,null,null,null,null,null,null,null,null,null,null,null,null,null,null,null,null,null,null,null,null,null,null,null,null,null,null,null,null,null,null,null,null,null,null,null,null,null,null,null,null,null,null,null,"Unité : 2 pour 1 repas","CAM36"]

{"sheet":"BD articles menus","index":2,"n_rows":120,"n_cols":15,"rows_kept":120,"cut":false,"hidden":false,"merged":[]}
[]
["Nom nature création","Code nature création","Nom nature articles menus","Code nom nature articles menus","Nom articles menus","Code nom articles menus","Nom période articles menus","Code nom période articles menus","Nom conditionnement articles menus","Code nom conditionnement articles menus","Quantité pour un repas","Quantité pour la journée","Date création articles menus","Numéro création articles menus","Clé article"]
["Création articles menus","CAM","Dessert midi retraite","DMR","Pomme","DMR01","Lundi à vendredi midis","PAM05","1 sachet de 2 kilogrammes. 1 pomme pour 1 repas","CAM17",1,1,"mercredi 6 septembre 2023","DMR-01",{"$f":"TabBDArticlesMenus[[#This Row],[Code nom nature articles menus]]&TabBDArticlesMenus[[#This Row],[Nom articles menus]]","v":"DMRPomme"}]
["Création articles menus","CAM","Dessert soir","DS","Pomme","DS01","Lundi à vendredi soirs","PAM06","1 sachet de 2 kilogrammes. 1 pomme pour 1 repas","CAM17",1,1,"mercredi 6 septembre 2023","DS-01",{"$f":"TabBDArticlesMenus[[#This Row],[Code nom nature articles menus]]&TabBDArticlesMenus[[#This Row],[Nom articles menus]]","v":"DSPomme"}]
["Création articles menus","CAM","Desserts weekend","DW","Ananas","DW01","Samedi et dimanche midis et soirs","PAM10","Unité : 1 pour 4 repas","CAM33",0.25,0.5,"mercredi 6 septembre 2023","DW-01",{"$f":"TabBDArticlesMenus[[#This Row],[Code nom nature articles menus]]&TabBDArticlesMenus[[#This Row],[Nom articles menus]]","v":"DWAnanas"}]
["Création articles menus","CAM","Desserts weekend","DW","Autres fruits","DW02","Samedi et dimanche midis et soirs","PAM10","Unité : 2 à 4 pour 1 repas","CAM35",4,8,"mercredi 6 septembre 2023","DW-02",{"$f":"TabBDArticlesMenus[[#This Row],[Code nom nature articles menus]]&TabBDArticlesMenus[[#This Row],[Nom articles menus]]","v":"DWAutres fruits"}]
["Création articles menus","CAM","Desserts weekend","DW","Avocats","DW03","Samedi et dimanche midis et soirs","PAM10","Unité : 1 pour 1 repas","CAM31",1,2,"mercredi 6 septembre 2023","DW-03",{"$f":"TabBDArticlesMenus[[#This Row],[Code nom nature articles menus]]&TabBDArticlesMenus[[#This Row],[Nom articles menus]]","v":"DWAvocats"}]
["Création articles menus","CAM","Desserts weekend","DW","Bananes","DW04","Samedi et dimanche midis et soirs","PAM10","Unité : 1 pour 1 repas","CAM31",1,2,"mercredi 6 septembre 2023","DW-04",{"$f":"TabBDArticlesMenus[[#This Row],[Code nom nature articles menus]]&TabBDArticlesMenus[[#This Row],[Nom articles menus]]","v":"DWBananes"}]
["Création articles menus","CAM","Desserts weekend","DW","Clémentines","DW05","Samedi et dimanche midis et soirs","PAM10","Unité : 2 à 4 pour 1 repas","CAM35",4,8,"mercredi 6 septembre 2023","DW-05",{"$f":"TabBDArticlesMenus[[#This Row],[Code nom nature articles menus]]&TabBDArticlesMenus[[#This Row],[Nom articles menus]]","v":"DWClémentines"}]
["Création articles menus","CAM","Desserts weekend","DW","Crème","DW06","Samedi et dimanche midis et soirs","PAM10","1 pack de 4 pots pour le weekend. 1 pot pour 1 repas","CAM10",1,2,"mercredi 6 septembre 2023","DW-06",{"$f":"TabBDArticlesMenus[[#This Row],[Code nom nature articles menus]]&TabBDArticlesMenus[[#This Row],[Nom articles menus]]","v":"DWCrème"}]
["Création articles menus","CAM","Desserts weekend","DW","Dattes","DW07","Samedi et dimanche midis et soirs","PAM10","1 paquet pour 4 repas","CAM15",0.25,0.5,"mercredi 6 septembre 2023","DW-07",{"$f":"TabBDArticlesMenus[[#This Row],[Code nom nature articles menus]]&TabBDArticlesMenus[[#This Row],[Nom articles menus]]","v":"DWDattes"}]
["Création articles menus","CAM","Desserts weekend","DW","Figues","DW08","Samedi et dimanche midis et soirs","PAM10","1 paquet pour 4 repas","CAM15",0.25,0.5,"mercredi 6 septembre 2023","DW-08",{"$f":"TabBDArticlesMenus[[#This Row],[Code nom nature articles menus]]&TabBDArticlesMenus[[#This Row],[Nom articles menus]]","v":"DWFigues"}]
["Création articles menus","CAM","Desserts weekend","DW","Fromage blanc","DW09","Samedi et dimanche midis et soirs","PAM10","1 pack de 4 pots pour le weekend. 1 pot pour 1 repas","CAM10",1,2,"mercredi 6 septembre 2023","DW-09",{"$f":"TabBDArticlesMenus[[#This Row],[Code nom nature articles menus]]&TabBDArticlesMenus[[#This Row],[Nom articles menus]]","v":"DWFromage blanc"}]
["Création articles menus","CAM","Desserts weekend","DW","Fruits au sirop","DW10","Samedi et dimanche midis et soirs","PAM10","1 boîte pour 2 repas","CAM05",0.5,1,"mercredi 6 septembre 2023","DW-10",{"$f":"TabBDArticlesMenus[[#This Row],[Code nom nature articles menus]]&TabBDArticlesMenus[[#This Row],[Nom articles menus]]","v":"DWFruits au sirop"}]
["Création articles menus","CAM","Desserts weekend","DW","Fruits de saison","DW11","Samedi et dimanche midis et soirs","PAM10","Unité : 2 à 4 pour 1 repas","CAM35",4,8,"mercredi 6 septembre 2023","DW-11",{"$f":"TabBDArticlesMenus[[#This Row],[Code nom nature articles menus]]&TabBDArticlesMenus[[#This Row],[Nom articles menus]]","v":"DWFruits de saison"}]
["Création articles menus","CAM","Desserts weekend","DW","Gâteau de riz","DW12","Samedi et dimanche midis et soirs","PAM10","1 pack de 4 pots pour le weekend. 1 pot pour 1 repas","CAM10",1,2,"mercredi 6 septembre 2023","DW-12",{"$f":"TabBDArticlesMenus[[#This Row],[Code nom nature articles menus]]&TabBDArticlesMenus[[#This Row],[Nom articles menus]]","v":"DWGâteau de riz"}]
["Création articles menus","CAM","Desserts weekend","DW","Gâteau de semoule","DW13","Samedi et dimanche midis et soirs","PAM10","1 pack de 4 pots pour le weekend. 1 pot pour 1 repas","CAM10",1,2,"mercredi 6 septembre 2023","DW-13",{"$f":"TabBDArticlesMenus[[#This Row],[Code nom nature articles menus]]&TabBDArticlesMenus[[#This Row],[Nom articles menus]]","v":"DWGâteau de semoule"}]
["Création articles menus","CAM","Desserts weekend","DW","Gâteaux samedi dimanche","DW14","Samedi et dimanche midis et soirs","PAM10","1 boîte pour 2 repas","CAM05",0.5,1,"mercredi 6 septembre 2023","DW-14",{"$f":"TabBDArticlesMenus[[#This Row],[Code nom nature articles menus]]&TabBDArticlesMenus[[#This Row],[Nom articles menus]]","v":"DWGâteaux samedi dimanche"}]
["Création articles menus","CAM","Desserts weekend","DW","Mousse au chocolat","DW15","Samedi et dimanche midis et soirs","PAM10","1 pack de 4 pots pour le weekend. 1 pot pour 1 repas","CAM10",1,2,"mercredi 6 septembre 2023","DW-15",{"$f":"TabBDArticlesMenus[[#This Row],[Code nom nature articles menus]]&TabBDArticlesMenus[[#This Row],[Nom articles menus]]","v":"DWMousse au chocolat"}]
["Création articles menus","CAM","Desserts weekend","DW","Oranges","DW16","Samedi et dimanche midis et soirs","PAM10","Unité : 1 pour 1 repas","CAM31",1,2,"mercredi 6 septembre 2023","DW-16",{"$f":"TabBDArticlesMenus[[#This Row],[Code nom nature articles menus]]&TabBDArticlesMenus[[#This Row],[Nom articles menus]]","v":"DWOranges"}]
["Création articles menus","CAM","Desserts weekend","DW","Petits suisses","DW17","Samedi et dimanche midis et soirs","PAM10","1 pack de 6 pots. 3 pots pour 1 repas","CAM11",3,6,"mercredi 6 septembre 2023","DW-17",{"$f":"TabBDArticlesMenus[[#This Row],[Code nom nature articles menus]]&TabBDArticlesMenus[[#This Row],[Nom articles menus]]","v":"DWPetits suisses"}]
["Création articles menus","CAM","Desserts weekend","DW","Pruneaux","DW18","Samedi et dimanche midis et soirs","PAM10","1 paquet pour 4 repas","CAM15",0.25,0.5,"mercredi 6 septembre 2023","DW-18",{"$f":"TabBDArticlesMenus[[#This Row],[Code nom nature articles menus]]&TabBDArticlesMenus[[#This Row],[Nom articles menus]]","v":"DWPruneaux"}]
["Création articles menus","CAM","Desserts weekend","DW","Riz au lait","DW19","Samedi et dimanche midis et soirs","PAM10","1 pack de 4 pots pour le weekend. 1 pot pour 1 repas","CAM10",1,2,"mercredi 6 septembre 2023","DW-19",{"$f":"TabBDArticlesMenus[[#This Row],[Code nom nature articles menus]]&TabBDArticlesMenus[[#This Row],[Nom articles menus]]","v":"DWRiz au lait"}]
["Création articles menus","CAM","Desserts weekend","DW","Tapioca","DW20","Samedi et dimanche midis et soirs","PAM10","25 grammes pour 1 repas","CAM25",25,50,"mercredi 6 septembre 2023","DW-20",{"$f":"TabBDArticlesMenus[[#This Row],[Code nom nature articles menus]]&TabBDArticlesMenus[[#This Row],[Nom articles menus]]","v":"DWTapioca"}]
["Création articles menus","CAM","Desserts weekend","DW","Yaourts","DW21","Samedi et dimanche midis et soirs","PAM10","1 pack de 4 pots pour le weekend. 1 pot pour 1 repas","CAM10",1,2,"mercredi 6 septembre 2023","DW-21",{"$f":"TabBDArticlesMenus[[#This Row],[Code nom nature articles menus]]&TabBDArticlesMenus[[#This Row],[Nom articles menus]]","v":"DWYaourts"}]
["Création articles menus","CAM","Légumes midi retraite","LMR","Asperges","LMR01","Lundi à vendredi midis","PAM05","1 bocal ou 1 boîte pour 1 repas","CAM01",1,1,"mercredi 6 septembre 2023","LMR-01",{"$f":"TabBDArticlesMenus[[#This Row],[Code nom nature articles menus]]&TabBDArticlesMenus[[#This Row],[Nom articles menus]]","v":"LMRAsperges"}]
["Création articles menus","CAM","Légumes midi retraite","LMR","Avocat","LMR02","Lundi à vendredi midis","PAM05","Unité : 1 pour 1 repas","CAM31",1,1,"mercredi 6 septembre 2023","LMR-02",{"$f":"TabBDArticlesMenus[[#This Row],[Code nom nature articles menus]]&TabBDArticlesMenus[[#This Row],[Nom articles menus]]","v":"LMRAvocat"}]
["Création articles menus","CAM","Légumes midi retraite","LMR","Carottes","LMR03","Lundi à vendredi midis","PAM05","Unité : 2 pour 1 repas","CAM36",2,2,"mercredi 6 septembre 2023","LMR-03",{"$f":"TabBDArticlesMenus[[#This Row],[Code nom nature articles menus]]&TabBDArticlesMenus[[#This Row],[Nom articles menus]]","v":"LMRCarottes"}]
["Création articles menus","CAM","Légumes midi retraite","LMR","Céleri","LMR04","Lundi à vendredi midis","PAM05","Unité : 1 branche pour 1 repas","CAM29",1,1,"mercredi 6 septembre 2023","LMR-04",{"$f":"TabBDArticlesMenus[[#This Row],[Code nom nature articles menus]]&TabBDArticlesMenus[[#This Row],[Nom articles menus]]","v":"LMRCéleri"}]
["Création articles menus","CAM","Légumes midi retraite","LMR","Champignons","LMR05","Lundi à vendredi midis","PAM05","1 boîte pour 1 repas","CAM04",1,1,"mercredi 6 septembre 2023","LMR-05",{"$f":"TabBDArticlesMenus[[#This Row],[Code nom nature articles menus]]&TabBDArticlesMenus[[#This Row],[Nom articles menus]]","v":"LMRChampignons"}]
["Création articles menus","CAM","Légumes midi retraite","LMR","Concombre","LMR06","Lundi à vendredi midis","PAM05","Unité : 1 pour 1 repas","CAM31",1,1,"mercredi 6 septembre 2023","LMR-06",{"$f":"TabBDArticlesMenus[[#This Row],[Code nom nature articles menus]]&TabBDArticlesMenus[[#This Row],[Nom articles menus]]","v":"LMRConcombre"}]
["Création articles menus","CAM","Légumes midi retraite","LMR","Couscous","LMR07","Lundi à vendredi midis","PAM05","25 grammes pour 1 repas","CAM25",25,25,"mercredi 6 septembre 2023","LMR-07",{"$f":"TabBDArticlesMenus[[#This Row],[Code nom nature articles menus]]&TabBDArticlesMenus[[#This Row],[Nom articles menus]]","v":"LMRCouscous"}]
["Création articles menus","CAM","Légumes midi retraite","LMR","Maïs","LMR08","Lundi à vendredi midis","PAM05","1 boîte pour 2 repas","CAM05",0.5,0.5,"mercredi 6 septembre 2023","LMR-08",{"$f":"TabBDArticlesMenus[[#This Row],[Code nom nature articles menus]]&TabBDArticlesMenus[[#This Row],[Nom articles menus]]","v":"LMRMaïs"}]
["Création articles menus","CAM","Légumes midi retraite","LMR","Pâtes à la sauce tomates","LMR09","Lundi à vendredi midis","PAM05","5 cuillères pour 1 repas","CAM27",5,5,"mercredi 6 septembre 2023","LMR-09",{"$f":"TabBDArticlesMenus[[#This Row],[Code nom nature articles menus]]&TabBDArticlesMenus[[#This Row],[Nom articles menus]]","v":"LMRPâtes à la sauce tomates"}]
["Création articles menus","CAM","Légumes midi retraite","LMR","Pâtes au beurre","LMR10","Lundi à vendredi midis","PAM05","5 cuillères pour 1 repas","CAM27",5,5,"mercredi 6 septembre 2023","LMR-10",{"$f":"TabBDArticlesMenus[[#This Row],[Code nom nature articles menus]]&TabBDArticlesMenus[[#This Row],[Nom articles menus]]","v":"LMRPâtes au beurre"}]
["Création articles menus","CAM","Légumes midi retraite","LMR","Poireau","LMR11","Lundi à vendredi midis","PAM05","Unité : 1 pour 1 repas","CAM31",1,1,"mercredi 6 septembre 2023","LMR-11",{"$f":"TabBDArticlesMenus[[#This Row],[Code nom nature articles menus]]&TabBDArticlesMenus[[#This Row],[Nom articles menus]]","v":"LMRPoireau"}]
["Création articles menus","CAM","Légumes midi retraite","LMR","Pomme de terre","LMR12","Lundi à vendredi midis","PAM05","Unité : 1 pour 1 repas","CAM31",1,1,"mercredi 6 septembre 2023","LMR-12",{"$f":"TabBDArticlesMenus[[#This Row],[Code nom nature articles menus]]&TabBDArticlesMenus[[#This Row],[Nom articles menus]]","v":"LMRPomme de terre"}]
["Création articles menus","CAM","Légumes midi retraite","LMR","Purée","LMR13","Lundi à vendredi midis","PAM05","25 grammes pour 1 repas","CAM25",25,25,"mercredi 6 septembre 2023","LMR-13",{"$f":"TabBDArticlesMenus[[#This Row],[Code nom nature articles menus]]&TabBDArticlesMenus[[#This Row],[Nom articles menus]]","v":"LMRPurée"}]
["Création articles menus","CAM","Légumes midi retraite","LMR","Radis","LMR14","Lundi à vendredi midis","PAM05","1 botte ou 1 sachet pour 2 repas","CAM07",0.5,0.5,"mercredi 6 septembre 2023","LMR-14",{"$f":"TabBDArticlesMenus[[#This Row],[Code nom nature articles menus]]&TabBDArticlesMenus[[#This Row],[Nom articles menus]]","v":"LMRRadis"}]
["Création articles menus","CAM","Légumes midi retraite","LMR","Riz","LMR15","Lundi à vendredi midis","PAM05","25 grammes pour 1 repas","CAM25",25,25,"mercredi 6 septembre 2023","LMR-15",{"$f":"TabBDArticlesMenus[[#This Row],[Code nom nature articles menus]]&TabBDArticlesMenus[[#This Row],[Nom articles menus]]","v":"LMRRiz"}]
["Création articles menus","CAM","Légumes midi retraite","LMR","Salade","LMR16","Lundi à vendredi midis","PAM05","Unité : 1 tête pour 1 repas","CAM34",1,1,"mercredi 6 septembre 2023","LMR-16",{"$f":"TabBDArticlesMenus[[#This Row],[Code nom nature articles menus]]&TabBDArticlesMenus[[#This Row],[Nom articles menus]]","v":"LMRSalade"}]
["Création articles menus","CAM","Légumes midi retraite","LMR","Tomates","LMR17","Lundi à vendredi midis","PAM05","Unité : 2 pour 1 repas","CAM36",2,2,"mercredi 6 septembre 2023","LMR-17",{"$f":"TabBDArticlesMenus[[#This Row],[Code nom nature articles menus]]&TabBDArticlesMenus[[#This Row],[Nom articles menus]]","v":"LMRTomates"}]
["Création articles menus","CAM","Légumes soirs lundi mardi","LSLM","Cassoulet","LSLM01","Lundi et mardi soirs","PAM07","1 boîte pour 2 repas","CAM05",0.5,0.5,"mercredi 6 septembre 2023","LSLM-01",{"$f":"TabBDArticlesMenus[[#This Row],[Code nom nature articles menus]]&TabBDArticlesMenus[[#This Row],[Nom articles menus]]","v":"LSLMCassoulet"}]
["Création articles menus","CAM","Légumes soirs lundi mardi","LSLM","Choucroute","LSLM02","Lundi et mardi soirs","PAM07","1 boîte pour 2 repas","CAM05",0.5,0.5,"mercredi 6 septembre 2023","LSLM-02",{"$f":"TabBDArticlesMenus[[#This Row],[Code nom nature articles menus]]&TabBDArticlesMenus[[#This Row],[Nom articles menus]]","v":"LSLMChoucroute"}]
["Création articles menus","CAM","Légumes soirs lundi mardi","LSLM","Chou-fleur","LSLM03","Lundi et mardi soirs","PAM07","Unité : 1 pour 2 repas","CAM32",0.5,0.5,"mercredi 6 septembre 2023","LSLM-03",{"$f":"TabBDArticlesMenus[[#This Row],[Code nom nature articles menus]]&TabBDArticlesMenus[[#This Row],[Nom articles menus]]","v":"LSLMChou-fleur"}]
["Création articles menus","CAM","Légumes soirs lundi mardi","LSLM","Choux de Bruxelles","LSLM04","Lundi et mardi soirs","PAM07","1 boîte pour 2 repas","CAM05",0.5,0.5,"mercredi 6 septembre 2023","LSLM-04",{"$f":"TabBDArticlesMenus[[#This Row],[Code nom nature articles menus]]&TabBDArticlesMenus[[#This Row],[Nom articles menus]]","v":"LSLMChoux de Bruxelles"}]
["Création articles menus","CAM","Légumes soirs lundi mardi","LSLM","Couscous","LSLM05","Lundi et mardi soirs","PAM07","25 grammes pour 1 repas","CAM25",25,25,"mercredi 6 septembre 2023","LSLM-05",{"$f":"TabBDArticlesMenus[[#This Row],[Code nom nature articles menus]]&TabBDArticlesMenus[[#This Row],[Nom articles menus]]","v":"LSLMCouscous"}]
["Création articles menus","CAM","Légumes soirs lundi mardi","LSLM","Endives","LSLM06","Lundi et mardi soirs","PAM07","1 boîte pour 2 repas","CAM05",0.5,0.5,"mercredi 6 septembre 2023","LSLM-06",{"$f":"TabBDArticlesMenus[[#This Row],[Code nom nature articles menus]]&TabBDArticlesMenus[[#This Row],[Nom articles menus]]","v":"LSLMEndives"}]
["Création articles menus","CAM","Légumes soirs lundi mardi","LSLM","Haricots verts","LSLM07","Lundi et mardi soirs","PAM07","1 boîte pour 2 repas","CAM05",0.5,0.5,"mercredi 6 septembre 2023","LSLM-07",{"$f":"TabBDArticlesMenus[[#This Row],[Code nom nature articles menus]]&TabBDArticlesMenus[[#This Row],[Nom articles menus]]","v":"LSLMHaricots verts"}]
["Création articles menus","CAM","Légumes soirs lundi mardi","LSLM","Maïs","LSLM08","Lundi et mardi soirs","PAM07","1 boîte pour 2 repas","CAM05",0.5,0.5,"mercredi 6 septembre 2023","LSLM-08",{"$f":"TabBDArticlesMenus[[#This Row],[Code nom nature articles menus]]&TabBDArticlesMenus[[#This Row],[Nom articles menus]]","v":"LSLMMaïs"}]
["Création articles menus","CAM","Légumes soirs lundi mardi","LSLM","Paella","LSLM09","Lundi et mardi soirs","PAM07","1 boîte pour 2 repas","CAM05",0.5,0.5,"mercredi 6 septembre 2023","LSLM-09",{"$f":"TabBDArticlesMenus[[#This Row],[Code nom nature articles menus]]&TabBDArticlesMenus[[#This Row],[Nom articles menus]]","v":"LSLMPaella"}]
["Création articles menus","CAM","Légumes soirs lundi mardi","LSLM","Poireau","LSLM10","Lundi et mardi soirs","PAM07","Unité : 1 pour 1 repas","CAM31",1,1,"mercredi 6 septembre 2023","LSLM-10",{"$f":"TabBDArticlesMenus[[#This Row],[Code nom nature articles menus]]&TabBDArticlesMenus[[#This Row],[Nom articles menus]]","v":"LSLMPoireau"}]
["Création articles menus","CAM","Légumes soirs lundi mardi","LSLM","Pomme de terre","LSLM11","Lundi et mardi soirs","PAM07","Unité : 1 pour 1 repas","CAM31",1,1,"mercredi 6 septembre 2023","LSLM-11",{"$f":"TabBDArticlesMenus[[#This Row],[Code nom nature articles menus]]&TabBDArticlesMenus[[#This Row],[Nom articles menus]]","v":"LSLMPomme de terre"}]
["Création articles menus","CAM","Légumes soirs lundi mardi","LSLM","Purée","LSLM12","Lundi et mardi soirs","PAM07","25 grammes pour 1 repas","CAM25",25,25,"mercredi 6 septembre 2023","LSLM-12",{"$f":"TabBDArticlesMenus[[#This Row],[Code nom nature articles menus]]&TabBDArticlesMenus[[#This Row],[Nom articles menus]]","v":"LSLMPurée"}]
["Création articles menus","CAM","Légumes soirs lundi mardi","LSLM","Quenelles","LSLM13","Lundi et mardi soirs","PAM07","1 boîte pour 2 repas","CAM05",0.5,0.5,"mercredi 6 septembre 2023","LSLM-13",{"$f":"TabBDArticlesMenus[[#This Row],[Code nom nature articles menus]]&TabBDArticlesMenus[[#This Row],[Nom articles menus]]","v":"LSLMQuenelles"}]
["Création articles menus","CAM","Légumes soirs lundi mardi","LSLM","Riz","LSLM14","Lundi et mardi soirs","PAM07","25 grammes pour 1 repas","CAM25",25,25,"mercredi 6 septembre 2023","LSLM-14",{"$f":"TabBDArticlesMenus[[#This Row],[Code nom nature articles menus]]&TabBDArticlesMenus[[#This Row],[Nom articles menus]]","v":"LSLMRiz"}]
["Création articles menus","CAM","Légumes soirs mercredi jeudi","LSMJ","Macédoine de légumes","LSMJ01","Mercredi et jeudi soirs","PAM08","1 boîte pour 2 repas","CAM05",0.5,0.5,"mercredi 6 septembre 2023","LSMJ-01",{"$f":"TabBDArticlesMenus[[#This Row],[Code nom nature articles menus]]&TabBDArticlesMenus[[#This Row],[Nom articles menus]]","v":"LSMJMacédoine de légumes"}]
["Création articles menus","CAM","Légumes soirs mercredi jeudi","LSMJ","Petits pois","LSMJ02","Mercredi et jeudi soirs","PAM08","1 boîte pour 2 repas","CAM05",0.5,0.5,"mercredi 6 septembre 2023","LSMJ-02",{"$f":"TabBDArticlesMenus[[#This Row],[Code nom nature articles menus]]&TabBDArticlesMenus[[#This Row],[Nom articles menus]]","v":"LSMJPetits pois"}]
["Création articles menus","CAM","Légumes soirs mercredi jeudi","LSMJ","Petits pois et jeunes carottes","LSMJ03","Mercredi et jeudi soirs","PAM08","1 boîte pour 2 repas","CAM05",0.5,0.5,"mercredi 6 septembre 2023","LSMJ-03",{"$f":"TabBDArticlesMenus[[#This Row],[Code nom nature articles menus]]&TabBDArticlesMenus[[#This Row],[Nom articles menus]]","v":"LSMJPetits pois et jeunes carottes"}]
["Création articles menus","CAM","Légumes soirs mercredi jeudi","LSMJ","Ratatouille","LSMJ04","Mercredi et jeudi soirs","PAM08","1 boîte pour 2 repas","CAM05",0.5,0.5,"mercredi 6 septembre 2023","LSMJ-04",{"$f":"TabBDArticlesMenus[[#This Row],[Code nom nature articles menus]]&TabBDArticlesMenus[[#This Row],[Nom articles menus]]","v":"LSMJRatatouille"}]
["Création articles menus","CAM","Légumes soirs mercredi jeudi","LSMJ","Raviolis","LSMJ05","Mercredi et jeudi soirs","PAM08","1 boîte pour 2 repas","CAM05",0.5,0.5,"mercredi 6 septembre 2023","LSMJ-05",{"$f":"TabBDArticlesMenus[[#This Row],[Code nom nature articles menus]]&TabBDArticlesMenus[[#This Row],[Nom articles menus]]","v":"LSMJRaviolis"}]
["Création articles menus","CAM","Légumes soirs mercredi jeudi","LSMJ","Tomates pelées","LSMJ06","Mercredi et jeudi soirs","PAM08","1 boîte pour 2 repas","CAM05",0.5,0.5,"mercredi 6 septembre 2023","LSMJ-06",{"$f":"TabBDArticlesMenus[[#This Row],[Code nom nature articles menus]]&TabBDArticlesMenus[[#This Row],[Nom articles menus]]","v":"LSMJTomates pelées"}]
["Création articles menus","CAM","Légumes soirs vendredi","LSV","Asperges","LSV01","Vendredi soir","PAM12","1 bocal ou 1 boîte pour 1 repas","CAM01",1,1,"mercredi 6 septembre 2023","LSV-01",{"$f":"TabBDArticlesMenus[[#This Row],[Code nom nature articles menus]]&TabBDArticlesMenus[[#This Row],[Nom articles menus]]","v":"LSVAsperges"}]
["Création articles menus","CAM","Légumes soirs vendredi","LSV","Avocat","LSV02","Vendredi soir","PAM12","Unité : 1 pour 1 repas","CAM31",1,1,"mercredi 6 septembre 2023","LSV-02",{"$f":"TabBDArticlesMenus[[#This Row],[Code nom nature articles menus]]&TabBDArticlesMenus[[#This Row],[Nom articles menus]]","v":"LSVAvocat"}]
["Création articles menus","CAM","Légumes soirs vendredi","LSV","Betteraves rouges","LSV03","Vendredi soir","PAM12","1 paquet pour 5 repas (betteraves rouges)","CAM16",1,1,"mercredi 6 septembre 2023","LSV-03",{"$f":"TabBDArticlesMenus[[#This Row],[Code nom nature articles menus]]&TabBDArticlesMenus[[#This Row],[Nom articles menus]]","v":"LSVBetteraves rouges"}]
["Création articles menus","CAM","Légumes soirs vendredi","LSV","Carottes","LSV04","Vendredi soir","PAM12","Unité : 2 pour 1 repas","CAM36",2,2,"mercredi 6 septembre 2023","LSV-04",{"$f":"TabBDArticlesMenus[[#This Row],[Code nom nature articles menus]]&TabBDArticlesMenus[[#This Row],[Nom articles menus]]","v":"LSVCarottes"}]
["Création articles menus","CAM","Légumes soirs vendredi","LSV","Céleri","LSV05","Vendredi soir","PAM12","Unité : 1 branche pour 1 repas","CAM29",1,1,"mercredi 6 septembre 2023","LSV-05",{"$f":"TabBDArticlesMenus[[#This Row],[Code nom nature articles menus]]&TabBDArticlesMenus[[#This Row],[Nom articles menus]]","v":"LSVCéleri"}]
["Création articles menus","CAM","Légumes soirs vendredi","LSV","Champignons","LSV06","Vendredi soir","PAM12","1 boîte pour 1 repas","CAM04",1,1,"mercredi 6 septembre 2023","LSV-06",{"$f":"TabBDArticlesMenus[[#This Row],[Code nom nature articles menus]]&TabBDArticlesMenus[[#This Row],[Nom articles menus]]","v":"LSVChampignons"}]
["Création articles menus","CAM","Légumes soirs vendredi","LSV","Concombre","LSV07","Vendredi soir","PAM12","Unité : 1 pour 1 repas","CAM31",1,1,"mercredi 6 septembre 2023","LSV-07",{"$f":"TabBDArticlesMenus[[#This Row],[Code nom nature articles menus]]&TabBDArticlesMenus[[#This Row],[Nom articles menus]]","v":"LSVConcombre"}]
["Création articles menus","CAM","Légumes soirs vendredi","LSV","Radis","LSV08","Vendredi soir","PAM12","1 botte ou 1 sachet pour 1 repas","CAM06",1,1,"mercredi 6 septembre 2023","LSV-08",{"$f":"TabBDArticlesMenus[[#This Row],[Code nom nature articles menus]]&TabBDArticlesMenus[[#This Row],[Nom articles menus]]","v":"LSVRadis"}]
["Création articles menus","CAM","Légumes soirs vendredi","LSV","Salade","LSV09","Vendredi soir","PAM12","Unité : 1 tête pour 1 repas","CAM34",1,1,"mercredi 6 septembre 2023","LSV-09",{"$f":"TabBDArticlesMenus[[#This Row],[Code nom nature articles menus]]&TabBDArticlesMenus[[#This Row],[Nom articles menus]]","v":"LSVSalade"}]
["Création articles menus","CAM","Légumes soirs vendredi","LSV","Salsifis","LSV10","Vendredi soir","PAM12","1 boîte pour 1 repas","CAM04",1,1,"mercredi 6 septembre 2023","LSV-10",{"$f":"TabBDArticlesMenus[[#This Row],[Code nom nature articles menus]]&TabBDArticlesMenus[[#This Row],[Nom articles menus]]","v":"LSVSalsifis"}]
["Création articles menus","CAM","Légumes soirs vendredi","LSV","Tomates","LSV11","Vendredi soir","PAM12","Unité : 2 pour 1 repas","CAM36",2,2,"mercredi 6 septembre 2023","LSV-11",{"$f":"TabBDArticlesMenus[[#This Row],[Code nom nature articles menus]]&TabBDArticlesMenus[[#This Row],[Nom articles menus]]","v":"LSVTomates"}]
["Création articles menus","CAM","Légumes weekend dimanche","LWD","Asperges","LWD01","Dimanche soir","PAM03","1 bocal ou 1 boîte pour 1 repas","CAM01",1,1,"mercredi 6 septembre 2023","LWD-01",{"$f":"TabBDArticlesMenus[[#This Row],[Code nom nature articles menus]]&TabBDArticlesMenus[[#This Row],[Nom articles menus]]","v":"LWDAsperges"}]
["Création articles menus","CAM","Légumes weekend dimanche","LWD","Chips","LWD02","Dimanche midi et soir","PAM02","1 sachet pour 2 repas (Chips)","CAM18",0.5,1,"mercredi 6 septembre 2023","LWD-02",{"$f":"TabBDArticlesMenus[[#This Row],[Code nom nature articles menus]]&TabBDArticlesMenus[[#This Row],[Nom articles menus]]","v":"LWDChips"}]
["Création articles menus","CAM","Légumes weekend dimanche","LWD","Frites","LWD03","Dimanche midi","PAM01","20 frites pour 1 repas","CAM24",20,20,"mercredi 6 septembre 2023","LWD-03",{"$f":"TabBDArticlesMenus[[#This Row],[Code nom nature articles menus]]&TabBDArticlesMenus[[#This Row],[Nom articles menus]]","v":"LWDFrites"}]
["Création articles menus","CAM","Légumes weekend dimanche","LWD","Haricots verts","LWD04","Dimanche midi et soir","PAM02","1 boîte pour 2 repas","CAM05",0.5,1,"mercredi 6 septembre 2023","LWD-04",{"$f":"TabBDArticlesMenus[[#This Row],[Code nom nature articles menus]]&TabBDArticlesMenus[[#This Row],[Nom articles menus]]","v":"LWDHaricots verts"}]
["Création articles menus","CAM","Légumes weekend samedi","LWS","Pâtes à la sauce tomates","LWS01","Samedi midi et soir","PAM11","5 cuillères pour 1 repas","CAM27",5,10,"mercredi 6 septembre 2023","LWS-01",{"$f":"TabBDArticlesMenus[[#This Row],[Code nom nature articles menus]]&TabBDArticlesMenus[[#This Row],[Nom articles menus]]","v":"LWSPâtes à la sauce tomates"}]
["Création articles menus","CAM","Légumes weekend samedi","LWS","Pâtes au beurre","LWS02","Samedi midi et soir","PAM11","5 cuillères pour 1 repas","CAM27",5,10,"mercredi 6 septembre 2023","LWS-02",{"$f":"TabBDArticlesMenus[[#This Row],[Code nom nature articles menus]]&TabBDArticlesMenus[[#This Row],[Nom articles menus]]","v":"LWSPâtes au beurre"}]
["Création articles menus","CAM","Légumes weekend samedi","LWS","Pâtes au fromage râpé","LWS03","Samedi midi et soir","PAM11","5 cuillères pour 1 repas","CAM27",5,10,"mercredi 6 septembre 2023","LWS-03",{"$f":"TabBDArticlesMenus[[#This Row],[Code nom nature articles menus]]&TabBDArticlesMenus[[#This Row],[Nom articles menus]]","v":"LWSPâtes au fromage râpé"}]
["Création articles menus","CAM","Viandes midi retraite","VMR","Rôti d'agneau","VMR01","Lundi à vendredi midis","PAM05","1 morceau de 500 grammes pour 5 repas","CAM09",100,100,"mercredi 6 septembre 2023","VMR-01",{"$f":"TabBDArticlesMenus[[#This Row],[Code nom nature articles menus]]&TabBDArticlesMenus[[#This Row],[Nom articles menus]]","v":"VMRRôti d'agneau"}]
["Création articles menus","CAM","Viandes midi retraite","VMR","Rôti de bœuf","VMR02","Lundi à vendredi midis","PAM05","1 morceau de 500 grammes pour 5 repas","CAM09",100,100,"mercredi 6 septembre 2023","VMR-02",{"$f":"TabBDArticlesMenus[[#This Row],[Code nom nature articles menus]]&TabBDArticlesMenus[[#This Row],[Nom articles menus]]","v":"VMRRôti de bœuf"}]
["Création articles menus","CAM","Viandes midi retraite","VMR","Rôti de cheval","VMR03","Lundi à vendredi midis","PAM05","1 morceau de 500 grammes pour 5 repas","CAM09",100,100,"mercredi 6 septembre 2023","VMR-03",{"$f":"TabBDArticlesMenus[[#This Row],[Code nom nature articles menus]]&TabBDArticlesMenus[[#This Row],[Nom articles menus]]","v":"VMRRôti de cheval"}]
["Création articles menus","CAM","Viandes midi retraite","VMR","Rôti de porc","VMR04","Lundi à vendredi midis","PAM05","1 morceau de 500 grammes pour 5 repas","CAM09",100,100,"mercredi 6 septembre 2023","VMR-04",{"$f":"TabBDArticlesMenus[[#This Row],[Code nom nature articles menus]]&TabBDArticlesMenus[[#This Row],[Nom articles menus]]","v":"VMRRôti de porc"}]
["Création articles menus","CAM","Viandes midi retraite","VMR","Rôti de veau","VMR05","Lundi à vendredi midis","PAM05","1 morceau de 500 grammes pour 5 repas","CAM09",100,100,"mercredi 6 septembre 2023","VMR-05",{"$f":"TabBDArticlesMenus[[#This Row],[Code nom nature articles menus]]&TabBDArticlesMenus[[#This Row],[Nom articles menus]]","v":"VMRRôti de veau"}]
["Création articles menus","CAM","Viandes midi weekend","VMW","Agneau","VMW01","Samedi et dimanche midis","PAM09","1 tranche pour 1 repas","CAM21",1,1,"mercredi 6 septembre 2023","VMW-01",{"$f":"TabBDArticlesMenus[[#This Row],[Code nom nature articles menus]]&TabBDArticlesMenus[[#This Row],[Nom articles menus]]","v":"VMWAgneau"}]
["Création articles menus","CAM","Viandes midi weekend","VMW","Bœuf","VMW02","Samedi et dimanche midis","PAM09","1 tranche pour 1 repas","CAM21",1,1,"mercredi 6 septembre 2023","VMW-02",{"$f":"TabBDArticlesMenus[[#This Row],[Code nom nature articles menus]]&TabBDArticlesMenus[[#This Row],[Nom articles menus]]","v":"VMWBœuf"}]
["Création articles menus","CAM","Viandes midi weekend","VMW","Cheval","VMW03","Samedi et dimanche midis","PAM09","1 tranche pour 1 repas","CAM21",1,1,"mercredi 6 septembre 2023","VMW-03",{"$f":"TabBDArticlesMenus[[#This Row],[Code nom nature articles menus]]&TabBDArticlesMenus[[#This Row],[Nom articles menus]]","v":"VMWCheval"}]
["Création articles menus","CAM","Viandes midi weekend","VMW","Dinde","VMW04","Samedi et dimanche midis","PAM09","1 tranche pour 1 repas","CAM21",1,1,"mercredi 6 septembre 2023","VMW-04",{"$f":"TabBDArticlesMenus[[#This Row],[Code nom nature articles menus]]&TabBDArticlesMenus[[#This Row],[Nom articles menus]]","v":"VMWDinde"}]
["Création articles menus","CAM","Viandes midi weekend","VMW","Poisson","VMW05","Samedi et dimanche midis","PAM09","Unité : 1 pour 1 repas","CAM31",1,1,"mercredi 6 septembre 2023","VMW-05",{"$f":"TabBDArticlesMenus[[#This Row],[Code nom nature articles menus]]&TabBDArticlesMenus[[#This Row],[Nom articles menus]]","v":"VMWPoisson"}]
["Création articles menus","CAM","Viandes midi weekend","VMW","Porc","VMW06","Samedi et dimanche midis","PAM09","1 tranche pour 1 repas","CAM21",1,1,"mercredi 6 septembre 2023","VMW-06",{"$f":"TabBDArticlesMenus[[#This Row],[Code nom nature articles menus]]&TabBDArticlesMenus[[#This Row],[Nom articles menus]]","v":"VMWPorc"}]
["Création articles menus","CAM","Viandes midi weekend","VMW","Veau","VMW07","Samedi et dimanche midis","PAM09","1 tranche pour 1 repas","CAM21",1,1,"mercredi 6 septembre 2023","VMW-07",{"$f":"TabBDArticlesMenus[[#This Row],[Code nom nature articles menus]]&TabBDArticlesMenus[[#This Row],[Nom articles menus]]","v":"VMWVeau"}]
["Création articles menus","CAM","Viandes soirs","VS","Bifteck haché de bœuf","VS01","Lundi à dimanche soirs","PAM04","1 paquet pour 2 repas","CAM13",0.5,0.5,"mercredi 6 septembre 2023","VS-01",{"$f":"TabBDArticlesMenus[[#This Row],[Code nom nature articles menus]]&TabBDArticlesMenus[[#This Row],[Nom articles menus]]","v":"VSBifteck haché de bœuf"}]
["Création articles menus","CAM","Viandes soirs","VS","Bifteck haché de cheval","VS02","Lundi à dimanche soirs","PAM04","125 grammes pour 1 repas (Bifteckh haché de cheval)",null,125,125,"mercredi 6 septembre 2023","VS-02",{"$f":"TabBDArticlesMenus[[#This Row],[Code nom nature articles menus]]&TabBDArticlesMenus[[#This Row],[Nom articles menus]]","v":"VSBifteck haché de cheval"}]
["Création articles menus","CAM","Viandes soirs","VS","Bifteck haché de veau","VS03","Lundi à dimanche soirs","PAM04","1 paquet pour 2 repas","CAM13",0.5,0.5,"mercredi 6 septembre 2023","VS-03",{"$f":"TabBDArticlesMenus[[#This Row],[Code nom nature articles menus]]&TabBDArticlesMenus[[#This Row],[Nom articles menus]]","v":"VSBifteck haché de veau"}]
["Création articles menus","CAM","Viandes soirs","VS","Bouchée à la reine","VS04","Lundi à dimanche soirs","PAM04","1 boîte pour 2 repas","CAM05",0.5,0.5,"mercredi 6 septembre 2023","VS-04",{"$f":"TabBDArticlesMenus[[#This Row],[Code nom nature articles menus]]&TabBDArticlesMenus[[#This Row],[Nom articles menus]]","v":"VSBouchée à la reine"}]
["Création articles menus","CAM","Viandes soirs","VS","Boudin","VS05","Lundi à dimanche soirs","PAM04","1 paquet pour 2 repas","CAM13",0.5,0.5,"mercredi 6 septembre 2023","VS-05",{"$f":"TabBDArticlesMenus[[#This Row],[Code nom nature articles menus]]&TabBDArticlesMenus[[#This Row],[Nom articles menus]]","v":"VSBoudin"}]
["Création articles menus","CAM","Viandes soirs","VS","Cervelas","VS06","Lundi à dimanche soirs","PAM04","1 paquet pour 2 repas","CAM13",0.5,0.5,"mercredi 6 septembre 2023","VS-06",{"$f":"TabBDArticlesMenus[[#This Row],[Code nom nature articles menus]]&TabBDArticlesMenus[[#This Row],[Nom articles menus]]","v":"VSCervelas"}]
["Création articles menus","CAM","Viandes soirs","VS","Cœur","VS07","Lundi à dimanche soirs","PAM04","1 paquet pour 2 repas","CAM13",0.5,0.5,"mercredi 6 septembre 2023","VS-07",{"$f":"TabBDArticlesMenus[[#This Row],[Code nom nature articles menus]]&TabBDArticlesMenus[[#This Row],[Nom articles menus]]","v":"VSCœur"}]
["Création articles menus","CAM","Viandes soirs","VS","Croque-monsieur","VS08","Lundi à dimanche soirs","PAM04","1 boîte pour 2 repas","CAM05",0.5,0.5,"mercredi 6 septembre 2023","VS-08",{"$f":"TabBDArticlesMenus[[#This Row],[Code nom nature articles menus]]&TabBDArticlesMenus[[#This Row],[Nom articles menus]]","v":"VSCroque-monsieur"}]
["Création articles menus","CAM","Viandes soirs","VS","Foie","VS09","Lundi à dimanche soirs","PAM04","1 paquet pour 2 repas","CAM13",0.5,0.5,"mercredi 6 septembre 2023","VS-09",{"$f":"TabBDArticlesMenus[[#This Row],[Code nom nature articles menus]]&TabBDArticlesMenus[[#This Row],[Nom articles menus]]","v":"VSFoie"}]
["Création articles menus","CAM","Viandes soirs","VS","Fromage de tête","VS10","Lundi à dimanche soirs","PAM04","1 tranche pour 2 repas","CAM22",0.5,0.5,"mercredi 6 septembre 2023","VS-10",{"$f":"TabBDArticlesMenus[[#This Row],[Code nom nature articles menus]]&TabBDArticlesMenus[[#This Row],[Nom articles menus]]","v":"VSFromage de tête"}]
["Création articles menus","CAM","Viandes soirs","VS","Jambon","VS11","Lundi à dimanche soirs","PAM04","1 paquet pour 2 repas","CAM13",0.5,0.5,"mercredi 6 septembre 2023","VS-11",{"$f":"TabBDArticlesMenus[[#This Row],[Code nom nature articles menus]]&TabBDArticlesMenus[[#This Row],[Nom articles menus]]","v":"VSJambon"}]
["Création articles menus","CAM","Viandes soirs","VS","Jambonneau","VS12","Lundi à dimanche soirs","PAM04","1 paquet pour 2 repas","CAM13",0.5,0.5,"mercredi 6 septembre 2023","VS-12",{"$f":"TabBDArticlesMenus[[#This Row],[Code nom nature articles menus]]&TabBDArticlesMenus[[#This Row],[Nom articles menus]]","v":"VSJambonneau"}]
["Création articles menus","CAM","Viandes soirs","VS","Mortadelle","VS13","Lundi à dimanche soirs","PAM04","1 paquet pour 2 repas","CAM13",0.5,0.5,"mercredi 6 septembre 2023","VS-13",{"$f":"TabBDArticlesMenus[[#This Row],[Code nom nature articles menus]]&TabBDArticlesMenus[[#This Row],[Nom articles menus]]","v":"VSMortadelle"}]
["Création articles menus","CAM","Viandes soirs","VS","Œufs","VS14","Lundi à dimanche soirs","PAM04","1 boîte de 6 œufs. 3 œufs pour 1 repas","CAM02",3,3,"mercredi 6 septembre 2023","VS-14",{"$f":"TabBDArticlesMenus[[#This Row],[Code nom nature articles menus]]&TabBDArticlesMenus[[#This Row],[Nom articles menus]]","v":"VSŒufs"}]
["Création articles menus","CAM","Viandes soirs","VS","Pizza","VS15","Lundi à dimanche soirs","PAM04","1 paquet pour 2 repas","CAM13",0.5,0.5,"mercredi 6 septembre 2023","VS-15",{"$f":"TabBDArticlesMenus[[#This Row],[Code nom nature articles menus]]&TabBDArticlesMenus[[#This Row],[Nom articles menus]]","v":"VSPizza"}]
["Création articles menus","CAM","Viandes soirs","VS","Poisson","VS16","Lundi à dimanche soirs","PAM04","Unité : 1 pour 1 repas","CAM31",1,10,"mercredi 6 septembre 2023","VS-16",{"$f":"TabBDArticlesMenus[[#This Row],[Code nom nature articles menus]]&TabBDArticlesMenus[[#This Row],[Nom articles menus]]","v":"VSPoisson"}]
["Création articles menus","CAM","Viandes soirs","VS","Quiche lorraine","VS17","Lundi à dimanche soirs","PAM04","1 paquet pour 2 repas","CAM13",0.5,0.5,"mercredi 6 septembre 2023","VS-17",{"$f":"TabBDArticlesMenus[[#This Row],[Code nom nature articles menus]]&TabBDArticlesMenus[[#This Row],[Nom articles menus]]","v":"VSQuiche lorraine"}]
["Création articles menus","CAM","Viandes soirs","VS","Roulade à la pistache","VS18","Lundi à dimanche soirs","PAM04","3 tranches pour 1 repas","CAM26",3,3,"mercredi 6 septembre 2023","VS-18",{"$f":"TabBDArticlesMenus[[#This Row],[Code nom nature articles menus]]&TabBDArticlesMenus[[#This Row],[Nom articles menus]]","v":"VSRoulade à la pistache"}]
["Création articles menus","CAM","Viandes soirs","VS","Roulé au fromage","VS19","Lundi à dimanche soirs","PAM04","1 boîte pour 2 repas","CAM05",0.5,0.5,"mercredi 6 septembre 2023","VS-19",{"$f":"TabBDArticlesMenus[[#This Row],[Code nom nature articles menus]]&TabBDArticlesMenus[[#This Row],[Nom articles menus]]","v":"VSRoulé au fromage"}]
["Création articles menus","CAM","Viandes soirs","VS","Salami","VS20","Lundi à dimanche soirs","PAM04","1 paquet pour 2 repas","CAM13",0.5,0.5,"mercredi 6 septembre 2023","VS-20",{"$f":"TabBDArticlesMenus[[#This Row],[Code nom nature articles menus]]&TabBDArticlesMenus[[#This Row],[Nom articles menus]]","v":"VSSalami"}]
["Création articles menus","CAM","Viandes soirs","VS","Saucisses","VS21","Lundi à dimanche soirs","PAM04","1 paquet pour 2 repas","CAM13",0.5,0.5,"mercredi 6 septembre 2023","VS-21",{"$f":"TabBDArticlesMenus[[#This Row],[Code nom nature articles menus]]&TabBDArticlesMenus[[#This Row],[Nom articles menus]]","v":"VSSaucisses"}]
["Création articles menus","CAM","Viandes soirs","VS","Saucisson","VS22","Lundi à dimanche soirs","PAM04","1 sachet pour 6 repas. 5 tranches pour 1 repas (Saucisson)","CAM20",5,5,"mercredi 6 septembre 2023","VS-22",{"$f":"TabBDArticlesMenus[[#This Row],[Code nom nature articles menus]]&TabBDArticlesMenus[[#This Row],[Nom articles menus]]","v":"VSSaucisson"}]
["Création articles menus","CAM","Viandes soirs","VS","Tête persillée","VS23","Lundi à dimanche soirs","PAM04","1 tranche pour 2 repas","CAM22",0.5,0.5,"mercredi 6 septembre 2023","VS-23",{"$f":"TabBDArticlesMenus[[#This Row],[Code nom nature articles menus]]&TabBDArticlesMenus[[#This Row],[Nom articles menus]]","v":"VSTête persillée"}]
["Création articles menus","CAM","Viandes soirs","VS","Tête roulée","VS24","Lundi à dimanche soirs","PAM04","3 tranches pour 1 repas","CAM26",3,3,"mercredi 6 septembre 2023","VS-24",{"$f":"TabBDArticlesMenus[[#This Row],[Code nom nature articles menus]]&TabBDArticlesMenus[[#This Row],[Nom articles menus]]","v":"VSTête roulée"}]
["Création articles menus","CAM","Viandes soirs","VS","Thon","VS25","Lundi à dimanche soirs","PAM04","1 boîte pour 1 repas","CAM04",1,1,"mercredi 6 septembre 2023","VS-25",{"$f":"TabBDArticlesMenus[[#This Row],[Code nom nature articles menus]]&TabBDArticlesMenus[[#This Row],[Nom articles menus]]","v":"VSThon"}]
["Création articles menus","CAM","Viandes soirs","VS","Viande cassoulet","VS26","Lundi et mardi soirs","PAM07","1 boîte pour 2 repas","CAM05",0.5,0.5,"mercredi 6 septembre 2023","VS-26",{"$f":"TabBDArticlesMenus[[#This Row],[Code nom nature articles menus]]&TabBDArticlesMenus[[#This Row],[Nom articles menus]]","v":"VSViande cassoulet"}]
["Création articles menus","CAM","Viandes soirs","VS","Viande choucroute","VS27","Lundi et mardi soirs","PAM07","1 boîte pour 2 repas","CAM05",0.5,0.5,"mercredi 6 septembre 2023","VS-27",{"$f":"TabBDArticlesMenus[[#This Row],[Code nom nature articles menus]]&TabBDArticlesMenus[[#This Row],[Nom articles menus]]","v":"VSViande choucroute"}]
["Création articles menus","CAM","Viandes soirs","VS","Viande paella","VS28","Lundi et mardi soirs","PAM07","1 boîte pour 2 repas","CAM05",0.5,0.5,"mercredi 6 septembre 2023","VS-28",{"$f":"TabBDArticlesMenus[[#This Row],[Code nom nature articles menus]]&TabBDArticlesMenus[[#This Row],[Nom articles menus]]","v":"VSViande paella"}]

{"sheet":"BD menus","index":3,"n_rows":3,"n_cols":38,"rows_kept":3,"cut":false,"hidden":false,"merged":[[0,0,0,36]]}
[{"$f":"\"Base de données  de l'année \"&Accueil!$F$1&\".\"","v":"Base de données  de l'année 2023."}]
[]
["Nom nature création menu","Code nom nature création menu","Date menu","Date création menu","Nom légume","Code Nom légume","Nom période légume","Code Nom période légume","Nom conditionnement menu légume","Code nom conditionnement menu légume","Nom légume deux","Code Nom légume deux","Nom période légume deux","Code nom jour légume deux","Nom conditionnement menu légume deux","Code nom conditionnement menu légume deux","Quantité légume","Quantité légume deux","Nom viande","Code Nom viande","Nom période viande","Code Nom période viande","Nom conditionnement menu viande","Code nom conditionnement menu viande","Nom période viande midi weekend","Code jour menu viande midi weekend","Nom période menu viande midi weekend","Quantité viande","Nom dessert","Code Nom dessert","Nom période dessert","Code Nom période dessert","Nom conditionnement menu dessert","Code nom conditionnement menu dessert","Quantité dessert","Numéro création menu","Nom jour férié","Nom mois menu"]

{"sheet":"Menus midi retraite","index":4,"n_rows":50,"n_cols":8,"rows_kept":50,"cut":false,"hidden":false,"merged":[[49,0,49,7],[26,0,26,7],[29,0,29,7],[30,0,30,7],[33,0,33,7],[34,0,34,7],[37,0,37,7],[38,0,38,7],[41,0,41,7],[42,0,42,7],[45,0,45,7],[46,0,46,7],[25,0,25,7],[2,0,2,7],[5,0,5,7],[6,0,6,7],[9,0,9,7],[10,0,10,7],[13,0,13,7],[14,0,14,7],[17,0,17,7],[18,0,18,7],[21,0,21,7],[22,0,22,7]]}
[{"$f":"Accueil!$F$1","v":2023}]
[]
[{"$f":"\"État des menus midi retraite du mois de janvier \"&$A$1&\".\"","v":"État des menus midi retraite du mois de janvier 2023."}]
["Date menu","Nom légume","Nom viande","Nom dessert","Nom jour férié","Nom nature création menu","Numéro création menu","Nom mois menu"]
[]
[{"$f":"\"Imprimé à Limeil-Brévannes, le \"&TEXT(TODAY(),\"jjjj j mmmm aaaa\")&\".\"","v":"Imprimé à Limeil-Brévannes, le vendredi 8 septembre 2023."}]
[{"$f":"\"État des menus midi retraite du mois de février \"&$A$1&\".\"","v":"État des menus midi retraite du mois de février 2023."}]
["Date menu","Nom légume","Nom viande","Nom dessert","Nom jour férié","Nom nature création menu","Numéro création menu","Nom mois menu"]
[]
[{"$f":"\"Imprimé à Limeil-Brévannes, le \"&TEXT(TODAY(),\"jjjj j mmmm aaaa\")&\".\"","v":"Imprimé à Limeil-Brévannes, le vendredi 8 septembre 2023."}]
[{"$f":"\"État des menus midi retraite du mois de mars \"&$A$1&\".\"","v":"État des menus midi retraite du mois de mars 2023."}]
["Date menu","Nom légume","Nom viande","Nom dessert","Nom jour férié","Nom nature création menu","Numéro création menu","Nom mois menu"]
[]
[{"$f":"\"Imprimé à Limeil-Brévannes, le \"&TEXT(TODAY(),\"jjjj j mmmm aaaa\")&\".\"","v":"Imprimé à Limeil-Brévannes, le vendredi 8 septembre 2023."}]
[{"$f":"\"État des menus midi retraite du mois d'avril \"&$A$1&\".\"","v":"État des menus midi retraite du mois d'avril 2023."}]
["Date menu","Nom légume","Nom viande","Nom dessert","Nom jour férié","Nom nature création menu","Numéro création menu","Nom mois menu"]
[]
[{"$f":"\"Imprimé à Limeil-Brévannes, le \"&TEXT(TODAY(),\"jjjj j mmmm aaaa\")&\".\"","v":"Imprimé à Limeil-Brévannes, le vendredi 8 septembre 2023."}]
[{"$f":"\"État des menus midi retraite du mois de mai \"&$A$1&\".\"","v":"État des menus midi retraite du mois de mai 2023."}]
["Date menu","Nom légume","Nom viande","Nom dessert","Nom jour férié","Nom nature création menu","Numéro création menu","Nom mois menu"]
[]
[{"$f":"\"Imprimé à Limeil-Brévannes, le \"&TEXT(TODAY(),\"jjjj j mmmm aaaa\")&\".\"","v":"Imprimé à Limeil-Brévannes, le vendredi 8 septembre 2023."}]
[{"$f":"\"État des menus midi retraite du mois de juin \"&$A$1&\".\"","v":"État des menus midi retraite du mois de juin 2023."}]
["Date menu","Nom légume","Nom viande","Nom dessert","Nom jour férié","Nom nature création menu","Numéro création menu","Nom mois menu"]
[]
[{"$f":"\"Imprimé à Limeil-Brévannes, le \"&TEXT(TODAY(),\"jjjj j mmmm aaaa\")&\".\"","v":"Imprimé à Limeil-Brévannes, le vendredi 8 septembre 2023."}]
[{"$f":"\"État des menus midi retraite du mois de juillet \"&$A$1&\".\"","v":"État des menus midi retraite du mois de juillet 2023."}]
["Date menu","Nom légume","Nom viande","Nom dessert","Nom jour férié","Nom nature création menu","Numéro création menu","Nom mois menu"]
[]
[{"$f":"\"Imprimé à Limeil-Brévannes, le \"&TEXT(TODAY(),\"jjjj j mmmm aaaa\")&\".\"","v":"Imprimé à Limeil-Brévannes, le vendredi 8 septembre 2023."}]
[{"$f":"\"État des menus midi retraite du mois d'août \"&$A$1&\".\"","v":"État des menus midi retraite du mois d'août 2023."}]
["Date menu","Nom légume","Nom viande","Nom dessert","Nom jour férié","Nom nature création menu","Numéro création menu","Nom mois menu"]
[]
[{"$f":"\"Imprimé à Limeil-Brévannes, le \"&TEXT(TODAY(),\"jjjj j mmmm aaaa\")&\".\"","v":"Imprimé à Limeil-Brévannes, le vendredi 8 septembre 2023."}]
[{"$f":"\"État des menus midi retraite du mois de septembre \"&$A$1&\".\"","v":"État des menus midi retraite du mois de septembre 2023."}]
["Date menu","Nom légume","Nom viande","Nom dessert","Nom jour férié","Nom nature création menu","Numéro création menu","Nom mois menu"]
[]
[{"$f":"\"Imprimé à Limeil-Brévannes, le \"&TEXT(TODAY(),\"jjjj j mmmm aaaa\")&\".\"","v":"Imprimé à Limeil-Brévannes, le vendredi 8 septembre 2023."}]
[{"$f":"\"État des menus midi retraite du mois d'octobre \"&$A$1&\".\"","v":"État des menus midi retraite du mois d'octobre 2023."}]
["Date menu","Nom légume","Nom viande","Nom dessert","Nom jour férié","Nom nature création menu","Numéro création menu","Nom mois menu"]
[]
[{"$f":"\"Imprimé à Limeil-Brévannes, le \"&TEXT(TODAY(),\"jjjj j mmmm aaaa\")&\".\"","v":"Imprimé à Limeil-Brévannes, le vendredi 8 septembre 2023."}]
[{"$f":"\"État des menus midi retraite du mois de novembre \"&$A$1&\".\"","v":"État des menus midi retraite du mois de novembre 2023."}]
["Date menu","Nom légume","Nom viande","Nom dessert","Nom jour férié","Nom nature création menu","Numéro création menu","Nom mois menu"]
[]
[{"$f":"\"Imprimé à Limeil-Brévannes, le \"&TEXT(TODAY(),\"jjjj j mmmm aaaa\")&\".\"","v":"Imprimé à Limeil-Brévannes, le vendredi 8 septembre 2023."}]
[{"$f":"\"État des menus midi retraite du mois de décembre \"&$A$1&\".\"","v":"État des menus midi retraite du mois de décembre 2023."}]
["Date menu","Nom légume","Nom viande","Nom dessert","Nom jour férié","Nom nature création menu","Numéro création menu","Nom mois menu"]
[]
[{"$f":"\"Imprimé à Limeil-Brévannes, le \"&TEXT(TODAY(),\"jjjj j mmmm aaaa\")&\".\"","v":"Imprimé à Limeil-Brévannes, le vendredi 8 septembre 2023."}]

{"sheet":"Menus journaliers","index":5,"n_rows":50,"n_cols":9,"rows_kept":50,"cut":false,"hidden":false,"merged":[[42,0,42,8],[45,0,45,8],[46,0,46,8],[49,0,49,8],[33,0,33,8],[34,0,34,8],[37,0,37,8],[38,0,38,8],[41,0,41,8],[22,0,22,8],[25,0,25,8],[26,0,26,8],[29,0,29,8],[30,0,30,8],[13,0,13,8],[14,0,14,8],[17,0,17,8],[18,0,18,8],[21,0,21,8],[2,0,2,8],[5,0,5,8],[6,0,6,8],[9,0,9,8],[10,0,10,8]]}
[{"$f":"Accueil!$F$1","v":2023}]
[]
[{"$f":"\"État des menus journaliers du mois de janvier \"&$A$1&\".\"","v":"État des menus journaliers du mois de janvier 2023."}]
["Date menu","Nom légume","Nom légume deux","Nom viande","Nom dessert","Nom jour férié","Nom nature création menu","Numéro création menu","Nom mois menu"]
[]
[{"$f":"\"Imprimé à Limeil-Brévannes, le \"&TEXT(TODAY(),\"jjjj j mmmm aaaa\")&\".\"","v":"Imprimé à Limeil-Brévannes, le vendredi 8 septembre 2023."}]
[{"$f":"\"État des menus journaliers du mois de février \"&$A$1&\".\"","v":"État des menus journaliers du mois de février 2023."}]
["Date menu","Nom légume","Nom légume deux","Nom viande","Nom dessert","Nom jour férié","Nom nature création menu","Numéro création menu","Nom mois menu"]
[]
[{"$f":"\"Imprimé à Limeil-Brévannes, le \"&TEXT(TODAY(),\"jjjj j mmmm aaaa\")&\".\"","v":"Imprimé à Limeil-Brévannes, le vendredi 8 septembre 2023."}]
[{"$f":"\"État des menus journaliers du mois de mars \"&$A$1&\".\"","v":"État des menus journaliers du mois de mars 2023."}]
["Date menu","Nom légume","Nom légume deux","Nom viande","Nom dessert","Nom jour férié","Nom nature création menu","Numéro création menu","Nom mois menu"]
[]
[{"$f":"\"Imprimé à Limeil-Brévannes, le \"&TEXT(TODAY(),\"jjjj j mmmm aaaa\")&\".\"","v":"Imprimé à Limeil-Brévannes, le vendredi 8 septembre 2023."}]
[{"$f":"\"État des menus journaliers du mois d'avril \"&$A$1&\".\"","v":"État des menus journaliers du mois d'avril 2023."}]
["Date menu","Nom légume","Nom légume deux","Nom viande","Nom dessert","Nom jour férié","Nom nature création menu","Numéro création menu","Nom mois menu"]
[]
[{"$f":"\"Imprimé à Limeil-Brévannes, le \"&TEXT(TODAY(),\"jjjj j mmmm aaaa\")&\".\"","v":"Imprimé à Limeil-Brévannes, le vendredi 8 septembre 2023."}]
[{"$f":"\"État des menus journaliers du mois de mai \"&$A$1&\".\"","v":"État des menus journaliers du mois de mai 2023."}]
["Date menu","Nom légume","Nom légume deux","Nom viande","Nom dessert","Nom jour férié","Nom nature création menu","Numéro création menu","Nom mois menu"]
[]
[{"$f":"\"Imprimé à Limeil-Brévannes, le \"&TEXT(TODAY(),\"jjjj j mmmm aaaa\")&\".\"","v":"Imprimé à Limeil-Brévannes, le vendredi 8 septembre 2023."}]
[{"$f":"\"État des menus journaliers du mois de juin \"&$A$1&\".\"","v":"État des menus journaliers du mois de juin 2023."}]
["Date menu","Nom légume","Nom légume deux","Nom viande","Nom dessert","Nom jour férié","Nom nature création menu","Numéro création menu","Nom mois menu"]
[]
[{"$f":"\"Imprimé à Limeil-Brévannes, le \"&TEXT(TODAY(),\"jjjj j mmmm aaaa\")&\".\"","v":"Imprimé à Limeil-Brévannes, le vendredi 8 septembre 2023."}]
[{"$f":"\"État des menus journaliers du mois de juillet \"&$A$1&\".\"","v":"État des menus journaliers du mois de juillet 2023."}]
["Date menu","Nom légume","Nom légume deux","Nom viande","Nom dessert","Nom jour férié","Nom nature création menu","Numéro création menu","Nom mois menu"]
[]
[{"$f":"\"Imprimé à Limeil-Brévannes, le \"&TEXT(TODAY(),\"jjjj j mmmm aaaa\")&\".\"","v":"Imprimé à Limeil-Brévannes, le vendredi 8 septembre 2023."}]
[{"$f":"\"État des menus journaliers du mois d'août \"&$A$1&\".\"","v":"État des menus journaliers du mois d'août 2023."}]
["Date menu","Nom légume","Nom légume deux","Nom viande","Nom dessert","Nom jour férié","Nom nature création menu","Numéro création menu","Nom mois menu"]
[]
[{"$f":"\"Imprimé à Limeil-Brévannes, le \"&TEXT(TODAY(),\"jjjj j mmmm aaaa\")&\".\"","v":"Imprimé à Limeil-Brévannes, le vendredi 8 septembre 2023."}]
[{"$f":"\"État des menus journaliers du mois de septembre \"&$A$1&\".\"","v":"État des menus journaliers du mois de septembre 2023."}]
["Date menu","Nom légume","Nom légume deux","Nom viande","Nom dessert","Nom jour férié","Nom nature création menu","Numéro création menu","Nom mois menu"]
[]
[{"$f":"\"Imprimé à Limeil-Brévannes, le \"&TEXT(TODAY(),\"jjjj j mmmm aaaa\")&\".\"","v":"Imprimé à Limeil-Brévannes, le vendredi 8 septembre 2023."}]
[{"$f":"\"État des menus journaliers du mois d'octobre \"&$A$1&\".\"","v":"État des menus journaliers du mois d'octobre 2023."}]
["Date menu","Nom légume","Nom légume deux","Nom viande","Nom dessert","Nom jour férié","Nom nature création menu","Numéro création menu","Nom mois menu"]
[]
[{"$f":"\"Imprimé à Limeil-Brévannes, le \"&TEXT(TODAY(),\"jjjj j mmmm aaaa\")&\".\"","v":"Imprimé à Limeil-Brévannes, le vendredi 8 septembre 2023."}]
[{"$f":"\"État des menus journaliers du mois de novembre \"&$A$1&\".\"","v":"État des menus journaliers du mois de novembre 2023."}]
["Date menu","Nom légume","Nom légume deux","Nom viande","Nom dessert","Nom jour férié","Nom nature création menu","Numéro création menu","Nom mois menu"]
[]
[{"$f":"\"Imprimé à Limeil-Brévannes, le \"&TEXT(TODAY(),\"jjjj j mmmm aaaa\")&\".\"","v":"Imprimé à Limeil-Brévannes, le vendredi 8 septembre 2023."}]
[{"$f":"\"État des menus journaliers du mois de décembre \"&$A$1&\".\"","v":"État des menus journaliers du mois de décembre 2023."}]
["Date menu","Nom légume","Nom légume deux","Nom viande","Nom dessert","Nom jour férié","Nom nature création menu","Numéro création menu","Nom mois menu"]
[]
[{"$f":"\"Imprimé à Limeil-Brévannes, le \"&TEXT(TODAY(),\"jjjj j mmmm aaaa\")&\".\"","v":"Imprimé à Limeil-Brévannes, le vendredi 8 septembre 2023."}]

{"sheet":"Menus viandes midi weekend","index":6,"n_rows":50,"n_cols":7,"rows_kept":50,"cut":false,"hidden":false,"merged":[[2,0,2,6],[5,0,5,6],[6,0,6,6],[9,0,9,6],[10,0,10,6],[13,0,13,6],[14,0,14,6],[17,0,17,6],[18,0,18,6],[21,0,21,6],[22,0,22,6],[25,0,25,6],[26,0,26,6],[29,0,29,6],[30,0,30,6],[42,0,42,6],[45,0,45,6],[46,0,46,6],[49,0,49,6],[33,0,33,6],[34,0,34,6],[37,0,37,6],[38,0,38,6],[41,0,41,6]]}
[{"$f":"Accueil!$F$1","v":2023}]
[]
[{"$f":"\"État des menus viandes midi weekend du mois de janvier \"&$A$1&\".\"","v":"État des menus viandes midi weekend du mois de janvier 2023."}]
["Date menu","Nom viande","Nom jour férié","Nom nature création menu","Numéro création menu","Nom mois menu","Période viande midi weekend"]
[]
[{"$f":"\"Imprimé à Limeil-Brévannes, le \"&TEXT(TODAY(),\"jjjj j mmmm aaaa\")&\".\"","v":"Imprimé à Limeil-Brévannes, le vendredi 8 septembre 2023."}]
[{"$f":"\"État des menus viandes midi weekend du mois de février \"&$A$1&\".\"","v":"État des menus viandes midi weekend du mois de février 2023."}]
["Date menu","Nom viande","Nom jour férié","Nom nature création menu","Numéro création menu","Nom mois menu","Période viande midi weekend"]
[]
[{"$f":"\"Imprimé à Limeil-Brévannes, le \"&TEXT(TODAY(),\"jjjj j mmmm aaaa\")&\".\"","v":"Imprimé à Limeil-Brévannes, le vendredi 8 septembre 2023."}]
[{"$f":"\"État des menus viandes midi weekend du mois de mars \"&$A$1&\".\"","v":"État des menus viandes midi weekend du mois de mars 2023."}]
["Date menu","Nom viande","Nom jour férié","Nom nature création menu","Numéro création menu","Nom mois menu","Période viande midi weekend"]
[]
[{"$f":"\"Imprimé à Limeil-Brévannes, le \"&TEXT(TODAY(),\"jjjj j mmmm aaaa\")&\".\"","v":"Imprimé à Limeil-Brévannes, le vendredi 8 septembre 2023."}]
[{"$f":"\"État des menus viandes midi weekend du mois d'avril \"&$A$1&\".\"","v":"État des menus viandes midi weekend du mois d'avril 2023."}]
["Date menu","Nom viande","Nom jour férié","Nom nature création menu","Numéro création menu","Nom mois menu","Période viande midi weekend"]
[]
[{"$f":"\"Imprimé à Limeil-Brévannes, le \"&TEXT(TODAY(),\"jjjj j mmmm aaaa\")&\".\"","v":"Imprimé à Limeil-Brévannes, le vendredi 8 septembre 2023."}]
[{"$f":"\"État des menus viandes midi weekend du mois de mai \"&$A$1&\".\"","v":"État des menus viandes midi weekend du mois de mai 2023."}]
["Date menu","Nom viande","Nom jour férié","Nom nature création menu","Numéro création menu","Nom mois menu","Période viande midi weekend"]
[]
[{"$f":"\"Imprimé à Limeil-Brévannes, le \"&TEXT(TODAY(),\"jjjj j mmmm aaaa\")&\".\"","v":"Imprimé à Limeil-Brévannes, le vendredi 8 septembre 2023."}]
[{"$f":"\"État des menus viandes midi weekend du mois de juin \"&$A$1&\".\"","v":"État des menus viandes midi weekend du mois de juin 2023."}]
["Date menu","Nom viande","Nom jour férié","Nom nature création menu","Numéro création menu","Nom mois menu","Période viande midi weekend"]
[]
[{"$f":"\"Imprimé à Limeil-Brévannes, le \"&TEXT(TODAY(),\"jjjj j mmmm aaaa\")&\".\"","v":"Imprimé à Limeil-Brévannes, le vendredi 8 septembre 2023."}]
[{"$f":"\"État des menus viandes midi weekend du mois de juillet \"&$A$1&\".\"","v":"État des menus viandes midi weekend du mois de juillet 2023."}]
["Date menu","Nom viande","Nom jour férié","Nom nature création menu","Numéro création menu","Nom mois menu","Période viande midi weekend"]
[]
[{"$f":"\"Imprimé à Limeil-Brévannes, le \"&TEXT(TODAY(),\"jjjj j mmmm aaaa\")&\".\"","v":"Imprimé à Limeil-Brévannes, le vendredi 8 septembre 2023."}]
[{"$f":"\"État des menus viandes midi weekend du mois d'août \"&$A$1&\".\"","v":"État des menus viandes midi weekend du mois d'août 2023."}]
["Date menu","Nom viande","Nom jour férié","Nom nature création menu","Numéro création menu","Nom mois menu","Période viande midi weekend"]
[]
[{"$f":"\"Imprimé à Limeil-Brévannes, le \"&TEXT(TODAY(),\"jjjj j mmmm aaaa\")&\".\"","v":"Imprimé à Limeil-Brévannes, le vendredi 8 septembre 2023."}]
[{"$f":"\"État des menus viandes midi weekend du mois de septembre \"&$A$1&\".\"","v":"État des menus viandes midi weekend du mois de septembre 2023."}]
["Date menu","Nom viande","Nom jour férié","Nom nature création menu","Numéro création menu","Nom mois menu","Période viande midi weekend"]
[]
[{"$f":"\"Imprimé à Limeil-Brévannes, le \"&TEXT(TODAY(),\"jjjj j mmmm aaaa\")&\".\"","v":"Imprimé à Limeil-Brévannes, le vendredi 8 septembre 2023."}]
[{"$f":"\"État des menus viandes midi weekend du mois d'octobre \"&$A$1&\".\"","v":"État des menus viandes midi weekend du mois d'octobre 2023."}]
["Date menu","Nom viande","Nom jour férié","Nom nature création menu","Numéro création menu","Nom mois menu","Période viande midi weekend"]
[]
[{"$f":"\"Imprimé à Limeil-Brévannes, le \"&TEXT(TODAY(),\"jjjj j mmmm aaaa\")&\".\"","v":"Imprimé à Limeil-Brévannes, le vendredi 8 septembre 2023."}]
[{"$f":"\"État des menus viandes midi weekend du mois de novembre \"&$A$1&\".\"","v":"État des menus viandes midi weekend du mois de novembre 2023."}]
["Date menu","Nom viande","Nom jour férié","Nom nature création menu","Numéro création menu","Nom mois menu","Période viande midi weekend"]
[]
[{"$f":"\"Imprimé à Limeil-Brévannes, le \"&TEXT(TODAY(),\"jjjj j mmmm aaaa\")&\".\"","v":"Imprimé à Limeil-Brévannes, le vendredi 8 septembre 2023."}]
[{"$f":"\"État des menus viandes midi weekend du mois de décembre \"&$A$1&\".\"","v":"État des menus viandes midi weekend du mois de décembre 2023."}]
["Date menu","Nom viande","Nom jour férié","Nom nature création menu","Numéro création menu","Nom mois menu","Période viande midi weekend"]
[]
[{"$f":"\"Imprimé à Limeil-Brévannes, le \"&TEXT(TODAY(),\"jjjj j mmmm aaaa\")&\".\"","v":"Imprimé à Limeil-Brévannes, le vendredi 8 septembre 2023."}]

{"sheet":"Quantités desserts","index":7,"n_rows":31,"n_cols":14,"rows_kept":31,"cut":false,"hidden":false,"merged":[[25,0,25,13],[0,0,0,13]]}
[{"$f":"\"Quantités desserts de l'année \"&Accueil!$F$1&\" par mois et nom des desserts.\"","v":"Quantités desserts de l'année 2023 par mois et nom des desserts."}]
[]
["Nom des desserts","Janvier","Février","Mars","Avril","Mai","Juin","Juillet","Août","Septembre","Octobre","Novembre","Décembre",{"$f":"\"Total des desserts de l'année \"&Accueil!$F$1","v":"Total des desserts de l'année 2023"}]
["Ananas",{"$f":"SUMIFS(TabBDMenus[Quantité dessert],TabBDMenus[Nom dessert],$A4,TabBDMenus[Nom mois menu],$B$3)","v":0},{"$f":"SUMIFS(TabBDMenus[Quantité dessert],TabBDMenus[Nom dessert],$A4,TabBDMenus[Nom mois menu],$C$3)","v":0},{"$f":"SUMIFS(TabBDMenus[Quantité dessert],TabBDMenus[Nom dessert],$A4,TabBDMenus[Nom mois menu],$D$3)","v":0},{"$f":"SUMIFS(TabBDMenus[Quantité dessert],TabBDMenus[Nom dessert],$A4,TabBDMenus[Nom mois menu],$E$3)","v":0},{"$f":"SUMIFS(TabBDMenus[Quantité dessert],TabBDMenus[Nom dessert],$A4,TabBDMenus[Nom mois menu],$F$3)","v":0},{"$f":"SUMIFS(TabBDMenus[Quantité dessert],TabBDMenus[Nom dessert],$A4,TabBDMenus[Nom mois menu],$G$3)","v":0},{"$f":"SUMIFS(TabBDMenus[Quantité dessert],TabBDMenus[Nom dessert],$A4,TabBDMenus[Nom mois menu],$H$3)","v":0},{"$f":"SUMIFS(TabBDMenus[Quantité dessert],TabBDMenus[Nom dessert],$A4,TabBDMenus[Nom mois menu],$I$3)","v":0},{"$f":"SUMIFS(TabBDMenus[Quantité dessert],TabBDMenus[Nom dessert],$A4,TabBDMenus[Nom mois menu],$J$3)","v":0},{"$f":"SUMIFS(TabBDMenus[Quantité dessert],TabBDMenus[Nom dessert],$A4,TabBDMenus[Nom mois menu],$K$3)","v":0},{"$f":"SUMIFS(TabBDMenus[Quantité dessert],TabBDMenus[Nom dessert],$A4,TabBDMenus[Nom mois menu],$L$3)","v":0},{"$f":"SUMIFS(TabBDMenus[Quantité dessert],TabBDMenus[Nom dessert],$A4,TabBDMenus[Nom mois menu],$M$3)","v":0},{"$f":"SUM($B4:$M4)","v":0}]
["Autres fruits",{"$f":"SUMIFS(TabBDMenus[Quantité dessert],TabBDMenus[Nom dessert],$A5,TabBDMenus[Nom mois menu],$B$3)","v":0},{"$f":"SUMIFS(TabBDMenus[Quantité dessert],TabBDMenus[Nom dessert],$A5,TabBDMenus[Nom mois menu],$C$3)","v":0},{"$f":"SUMIFS(TabBDMenus[Quantité dessert],TabBDMenus[Nom dessert],$A5,TabBDMenus[Nom mois menu],$D$3)","v":0},{"$f":"SUMIFS(TabBDMenus[Quantité dessert],TabBDMenus[Nom dessert],$A5,TabBDMenus[Nom mois menu],$E$3)","v":0},{"$f":"SUMIFS(TabBDMenus[Quantité dessert],TabBDMenus[Nom dessert],$A5,TabBDMenus[Nom mois menu],$F$3)","v":0},{"$f":"SUMIFS(TabBDMenus[Quantité dessert],TabBDMenus[Nom dessert],$A5,TabBDMenus[Nom mois menu],$G$3)","v":0},{"$f":"SUMIFS(TabBDMenus[Quantité dessert],TabBDMenus[Nom dessert],$A5,TabBDMenus[Nom mois menu],$H$3)","v":0},{"$f":"SUMIFS(TabBDMenus[Quantité dessert],TabBDMenus[Nom dessert],$A5,TabBDMenus[Nom mois menu],$I$3)","v":0},{"$f":"SUMIFS(TabBDMenus[Quantité dessert],TabBDMenus[Nom dessert],$A5,TabBDMenus[Nom mois menu],$J$3)","v":0},{"$f":"SUMIFS(TabBDMenus[Quantité dessert],TabBDMenus[Nom dessert],$A5,TabBDMenus[Nom mois menu],$K$3)","v":0},{"$f":"SUMIFS(TabBDMenus[Quantité dessert],TabBDMenus[Nom dessert],$A5,TabBDMenus[Nom mois menu],$L$3)","v":0},{"$f":"SUMIFS(TabBDMenus[Quantité dessert],TabBDMenus[Nom dessert],$A5,TabBDMenus[Nom mois menu],$M$3)","v":0},{"$f":"SUM($B5:$M5)","v":0}]
["Avocats",{"$f":"SUMIFS(TabBDMenus[Quantité dessert],TabBDMenus[Nom dessert],$A6,TabBDMenus[Nom mois menu],$B$3)","v":0},{"$f":"SUMIFS(TabBDMenus[Quantité dessert],TabBDMenus[Nom dessert],$A6,TabBDMenus[Nom mois menu],$C$3)","v":0},{"$f":"SUMIFS(TabBDMenus[Quantité dessert],TabBDMenus[Nom dessert],$A6,TabBDMenus[Nom mois menu],$D$3)","v":0},{"$f":"SUMIFS(TabBDMenus[Quantité dessert],TabBDMenus[Nom dessert],$A6,TabBDMenus[Nom mois menu],$E$3)","v":0},{"$f":"SUMIFS(TabBDMenus[Quantité dessert],TabBDMenus[Nom dessert],$A6,TabBDMenus[Nom mois menu],$F$3)","v":0},{"$f":"SUMIFS(TabBDMenus[Quantité dessert],TabBDMenus[Nom dessert],$A6,TabBDMenus[Nom mois menu],$G$3)","v":0},{"$f":"SUMIFS(TabBDMenus[Quantité dessert],TabBDMenus[Nom dessert],$A6,TabBDMenus[Nom mois menu],$H$3)","v":0},{"$f":"SUMIFS(TabBDMenus[Quantité dessert],TabBDMenus[Nom dessert],$A6,TabBDMenus[Nom mois menu],$I$3)","v":0},{"$f":"SUMIFS(TabBDMenus[Quantité dessert],TabBDMenus[Nom dessert],$A6,TabBDMenus[Nom mois menu],$J$3)","v":0},{"$f":"SUMIFS(TabBDMenus[Quantité dessert],TabBDMenus[Nom dessert],$A6,TabBDMenus[Nom mois menu],$K$3)","v":0},{"$f":"SUMIFS(TabBDMenus[Quantité dessert],TabBDMenus[Nom dessert],$A6,TabBDMenus[Nom mois menu],$L$3)","v":0},{"$f":"SUMIFS(TabBDMenus[Quantité dessert],TabBDMenus[Nom dessert],$A6,TabBDMenus[Nom mois menu],$M$3)","v":0},0]
["Bananes",{"$f":"SUMIFS(TabBDMenus[Quantité dessert],TabBDMenus[Nom dessert],$A7,TabBDMenus[Nom mois menu],$B$3)","v":0},{"$f":"SUMIFS(TabBDMenus[Quantité dessert],TabBDMenus[Nom dessert],$A7,TabBDMenus[Nom mois menu],$C$3)","v":0},{"$f":"SUMIFS(TabBDMenus[Quantité dessert],TabBDMenus[Nom dessert],$A7,TabBDMenus[Nom mois menu],$D$3)","v":0},{"$f":"SUMIFS(TabBDMenus[Quantité dessert],TabBDMenus[Nom dessert],$A7,TabBDMenus[Nom mois menu],$E$3)","v":0},{"$f":"SUMIFS(TabBDMenus[Quantité dessert],TabBDMenus[Nom dessert],$A7,TabBDMenus[Nom mois menu],$F$3)","v":0},{"$f":"SUMIFS(TabBDMenus[Quantité dessert],TabBDMenus[Nom dessert],$A7,TabBDMenus[Nom mois menu],$G$3)","v":0},{"$f":"SUMIFS(TabBDMenus[Quantité dessert],TabBDMenus[Nom dessert],$A7,TabBDMenus[Nom mois menu],$H$3)","v":0},{"$f":"SUMIFS(TabBDMenus[Quantité dessert],TabBDMenus[Nom dessert],$A7,TabBDMenus[Nom mois menu],$I$3)","v":0},{"$f":"SUMIFS(TabBDMenus[Quantité dessert],TabBDMenus[Nom dessert],$A7,TabBDMenus[Nom mois menu],$J$3)","v":0},{"$f":"SUMIFS(TabBDMenus[Quantité dessert],TabBDMenus[Nom dessert],$A7,TabBDMenus[Nom mois menu],$K$3)","v":0},{"$f":"SUMIFS(TabBDMenus[Quantité dessert],TabBDMenus[Nom dessert],$A7,TabBDMenus[Nom mois menu],$L$3)","v":0},{"$f":"SUMIFS(TabBDMenus[Quantité dessert],TabBDMenus[Nom dessert],$A7,TabBDMenus[Nom mois menu],$M$3)","v":0},0]
["Clémentines",{"$f":"SUMIFS(TabBDMenus[Quantité dessert],TabBDMenus[Nom dessert],$A8,TabBDMenus[Nom mois menu],$B$3)","v":0},{"$f":"SUMIFS(TabBDMenus[Quantité dessert],TabBDMenus[Nom dessert],$A8,TabBDMenus[Nom mois menu],$C$3)","v":0},{"$f":"SUMIFS(TabBDMenus[Quantité dessert],TabBDMenus[Nom dessert],$A8,TabBDMenus[Nom mois menu],$D$3)","v":0},{"$f":"SUMIFS(TabBDMenus[Quantité dessert],TabBDMenus[Nom dessert],$A8,TabBDMenus[Nom mois menu],$E$3)","v":0},{"$f":"SUMIFS(TabBDMenus[Quantité dessert],TabBDMenus[Nom dessert],$A8,TabBDMenus[Nom mois menu],$F$3)","v":0},{"$f":"SUMIFS(TabBDMenus[Quantité dessert],TabBDMenus[Nom dessert],$A8,TabBDMenus[Nom mois menu],$G$3)","v":0},{"$f":"SUMIFS(TabBDMenus[Quantité dessert],TabBDMenus[Nom dessert],$A8,TabBDMenus[Nom mois menu],$H$3)","v":0},{"$f":"SUMIFS(TabBDMenus[Quantité dessert],TabBDMenus[Nom dessert],$A8,TabBDMenus[Nom mois menu],$I$3)","v":0},{"$f":"SUMIFS(TabBDMenus[Quantité dessert],TabBDMenus[Nom dessert],$A8,TabBDMenus[Nom mois menu],$J$3)","v":0},{"$f":"SUMIFS(TabBDMenus[Quantité dessert],TabBDMenus[Nom dessert],$A8,TabBDMenus[Nom mois menu],$K$3)","v":0},{"$f":"SUMIFS(TabBDMenus[Quantité dessert],TabBDMenus[Nom dessert],$A8,TabBDMenus[Nom mois menu],$L$3)","v":0},{"$f":"SUMIFS(TabBDMenus[Quantité dessert],TabBDMenus[Nom dessert],$A8,TabBDMenus[Nom mois menu],$M$3)","v":0},0]
["Crème",{"$f":"SUMIFS(TabBDMenus[Quantité dessert],TabBDMenus[Nom dessert],$A9,TabBDMenus[Nom mois menu],$B$3)","v":0},{"$f":"SUMIFS(TabBDMenus[Quantité dessert],TabBDMenus[Nom dessert],$A9,TabBDMenus[Nom mois menu],$C$3)","v":0},{"$f":"SUMIFS(TabBDMenus[Quantité dessert],TabBDMenus[Nom dessert],$A9,TabBDMenus[Nom mois menu],$D$3)","v":0},{"$f":"SUMIFS(TabBDMenus[Quantité dessert],TabBDMenus[Nom dessert],$A9,TabBDMenus[Nom mois menu],$E$3)","v":0},{"$f":"SUMIFS(TabBDMenus[Quantité dessert],TabBDMenus[Nom dessert],$A9,TabBDMenus[Nom mois menu],$F$3)","v":0},{"$f":"SUMIFS(TabBDMenus[Quantité dessert],TabBDMenus[Nom dessert],$A9,TabBDMenus[Nom mois menu],$G$3)","v":0},{"$f":"SUMIFS(TabBDMenus[Quantité dessert],TabBDMenus[Nom dessert],$A9,TabBDMenus[Nom mois menu],$H$3)","v":0},{"$f":"SUMIFS(TabBDMenus[Quantité dessert],TabBDMenus[Nom dessert],$A9,TabBDMenus[Nom mois menu],$I$3)","v":0},{"$f":"SUMIFS(TabBDMenus[Quantité dessert],TabBDMenus[Nom dessert],$A9,TabBDMenus[Nom mois menu],$J$3)","v":0},{"$f":"SUMIFS(TabBDMenus[Quantité dessert],TabBDMenus[Nom dessert],$A9,TabBDMenus[Nom mois menu],$K$3)","v":0},{"$f":"SUMIFS(TabBDMenus[Quantité dessert],TabBDMenus[Nom dessert],$A9,TabBDMenus[Nom mois menu],$L$3)","v":0},{"$f":"SUMIFS(TabBDMenus[Quantité dessert],TabBDMenus[Nom dessert],$A9,TabBDMenus[Nom mois menu],$M$3)","v":0},0]
["Dattes",{"$f":"SUMIFS(TabBDMenus[Quantité dessert],TabBDMenus[Nom dessert],$A10,TabBDMenus[Nom mois menu],$B$3)","v":0},{"$f":"SUMIFS(TabBDMenus[Quantité dessert],TabBDMenus[Nom dessert],$A10,TabBDMenus[Nom mois menu],$C$3)","v":0},{"$f":"SUMIFS(TabBDMenus[Quantité dessert],TabBDMenus[Nom dessert],$A10,TabBDMenus[Nom mois menu],$D$3)","v":0},{"$f":"SUMIFS(TabBDMenus[Quantité dessert],TabBDMenus[Nom dessert],$A10,TabBDMenus[Nom mois menu],$E$3)","v":0},{"$f":"SUMIFS(TabBDMenus[Quantité dessert],TabBDMenus[Nom dessert],$A10,TabBDMenus[Nom mois menu],$F$3)","v":0},{"$f":"SUMIFS(TabBDMenus[Quantité dessert],TabBDMenus[Nom dessert],$A10,TabBDMenus[Nom mois menu],$G$3)","v":0},{"$f":"SUMIFS(TabBDMenus[Quantité dessert],TabBDMenus[Nom dessert],$A10,TabBDMenus[Nom mois menu],$H$3)","v":0},{"$f":"SUMIFS(TabBDMenus[Quantité dessert],TabBDMenus[Nom dessert],$A10,TabBDMenus[Nom mois menu],$I$3)","v":0},{"$f":"SUMIFS(TabBDMenus[Quantité dessert],TabBDMenus[Nom dessert],$A10,TabBDMenus[Nom mois menu],$J$3)","v":0},{"$f":"SUMIFS(TabBDMenus[Quantité dessert],TabBDMenus[Nom dessert],$A10,TabBDMenus[Nom mois menu],$K$3)","v":0},{"$f":"SUMIFS(TabBDMenus[Quantité dessert],TabBDMenus[Nom dessert],$A10,TabBDMenus[Nom mois menu],$L$3)","v":0},{"$f":"SUMIFS(TabBDMenus[Quantité dessert],TabBDMenus[Nom dessert],$A10,TabBDMenus[Nom mois menu],$M$3)","v":0},0]
["Figues",{"$f":"SUMIFS(TabBDMenus[Quantité dessert],TabBDMenus[Nom dessert],$A11,TabBDMenus[Nom mois menu],$B$3)","v":0},{"$f":"SUMIFS(TabBDMenus[Quantité dessert],TabBDMenus[Nom dessert],$A11,TabBDMenus[Nom mois menu],$C$3)","v":0},{"$f":"SUMIFS(TabBDMenus[Quantité dessert],TabBDMenus[Nom dessert],$A11,TabBDMenus[Nom mois menu],$D$3)","v":0},{"$f":"SUMIFS(TabBDMenus[Quantité dessert],TabBDMenus[Nom dessert],$A11,TabBDMenus[Nom mois menu],$E$3)","v":0},{"$f":"SUMIFS(TabBDMenus[Quantité dessert],TabBDMenus[Nom dessert],$A11,TabBDMenus[Nom mois menu],$F$3)","v":0},{"$f":"SUMIFS(TabBDMenus[Quantité dessert],TabBDMenus[Nom dessert],$A11,TabBDMenus[Nom mois menu],$G$3)","v":0},{"$f":"SUMIFS(TabBDMenus[Quantité dessert],TabBDMenus[Nom dessert],$A11,TabBDMenus[Nom mois menu],$H$3)","v":0},{"$f":"SUMIFS(TabBDMenus[Quantité dessert],TabBDMenus[Nom dessert],$A11,TabBDMenus[Nom mois menu],$I$3)","v":0},{"$f":"SUMIFS(TabBDMenus[Quantité dessert],TabBDMenus[Nom dessert],$A11,TabBDMenus[Nom mois menu],$J$3)","v":0},{"$f":"SUMIFS(TabBDMenus[Quantité dessert],TabBDMenus[Nom dessert],$A11,TabBDMenus[Nom mois menu],$K$3)","v":0},{"$f":"SUMIFS(TabBDMenus[Quantité dessert],TabBDMenus[Nom dessert],$A11,TabBDMenus[Nom mois menu],$L$3)","v":0},{"$f":"SUMIFS(TabBDMenus[Quantité dessert],TabBDMenus[Nom dessert],$A11,TabBDMenus[Nom mois menu],$M$3)","v":0},0]
["Fromage blanc",{"$f":"SUMIFS(TabBDMenus[Quantité dessert],TabBDMenus[Nom dessert],$A12,TabBDMenus[Nom mois menu],$B$3)","v":0},{"$f":"SUMIFS(TabBDMenus[Quantité dessert],TabBDMenus[Nom dessert],$A12,TabBDMenus[Nom mois menu],$C$3)","v":0},{"$f":"SUMIFS(TabBDMenus[Quantité dessert],TabBDMenus[Nom dessert],$A12,TabBDMenus[Nom mois menu],$D$3)","v":0},{"$f":"SUMIFS(TabBDMenus[Quantité dessert],TabBDMenus[Nom dessert],$A12,TabBDMenus[Nom mois menu],$E$3)","v":0},{"$f":"SUMIFS(TabBDMenus[Quantité dessert],TabBDMenus[Nom dessert],$A12,TabBDMenus[Nom mois menu],$F$3)","v":0},{"$f":"SUMIFS(TabBDMenus[Quantité dessert],TabBDMenus[Nom dessert],$A12,TabBDMenus[Nom mois menu],$G$3)","v":0},{"$f":"SUMIFS(TabBDMenus[Quantité dessert],TabBDMenus[Nom dessert],$A12,TabBDMenus[Nom mois menu],$H$3)","v":0},{"$f":"SUMIFS(TabBDMenus[Quantité dessert],TabBDMenus[Nom dessert],$A12,TabBDMenus[Nom mois menu],$I$3)","v":0},{"$f":"SUMIFS(TabBDMenus[Quantité dessert],TabBDMenus[Nom dessert],$A12,TabBDMenus[Nom mois menu],$J$3)","v":0},{"$f":"SUMIFS(TabBDMenus[Quantité dessert],TabBDMenus[Nom dessert],$A12,TabBDMenus[Nom mois menu],$K$3)","v":0},{"$f":"SUMIFS(TabBDMenus[Quantité dessert],TabBDMenus[Nom dessert],$A12,TabBDMenus[Nom mois menu],$L$3)","v":0},{"$f":"SUMIFS(TabBDMenus[Quantité dessert],TabBDMenus[Nom dessert],$A12,TabBDMenus[Nom mois menu],$M$3)","v":0},0]
["Fruits au sirop",{"$f":"SUMIFS(TabBDMenus[Quantité dessert],TabBDMenus[Nom dessert],$A13,TabBDMenus[Nom mois menu],$B$3)","v":0},{"$f":"SUMIFS(TabBDMenus[Quantité dessert],TabBDMenus[Nom dessert],$A13,TabBDMenus[Nom mois menu],$C$3)","v":0},{"$f":"SUMIFS(TabBDMenus[Quantité dessert],TabBDMenus[Nom dessert],$A13,TabBDMenus[Nom mois menu],$D$3)","v":0},{"$f":"SUMIFS(TabBDMenus[Quantité dessert],TabBDMenus[Nom dessert],$A13,TabBDMenus[Nom mois menu],$E$3)","v":0},{"$f":"SUMIFS(TabBDMenus[Quantité dessert],TabBDMenus[Nom dessert],$A13,TabBDMenus[Nom mois menu],$F$3)","v":0},{"$f":"SUMIFS(TabBDMenus[Quantité dessert],TabBDMenus[Nom dessert],$A13,TabBDMenus[Nom mois menu],$G$3)","v":0},{"$f":"SUMIFS(TabBDMenus[Quantité dessert],TabBDMenus[Nom dessert],$A13,TabBDMenus[Nom mois menu],$H$3)","v":0},{"$f":"SUMIFS(TabBDMenus[Quantité dessert],TabBDMenus[Nom dessert],$A13,TabBDMenus[Nom mois menu],$I$3)","v":0},{"$f":"SUMIFS(TabBDMenus[Quantité dessert],TabBDMenus[Nom dessert],$A13,TabBDMenus[Nom mois menu],$J$3)","v":0},{"$f":"SUMIFS(TabBDMenus[Quantité dessert],TabBDMenus[Nom dessert],$A13,TabBDMenus[Nom mois menu],$K$3)","v":0},{"$f":"SUMIFS(TabBDMenus[Quantité dessert],TabBDMenus[Nom dessert],$A13,TabBDMenus[Nom mois menu],$L$3)","v":0},{"$f":"SUMIFS(TabBDMenus[Quantité dessert],TabBDMenus[Nom dessert],$A13,TabBDMenus[Nom mois menu],$M$3)","v":0},0]
["Fruits de saison",{"$f":"SUMIFS(TabBDMenus[Quantité dessert],TabBDMenus[Nom dessert],$A14,TabBDMenus[Nom mois menu],$B$3)","v":0},{"$f":"SUMIFS(TabBDMenus[Quantité dessert],TabBDMenus[Nom dessert],$A14,TabBDMenus[Nom mois menu],$C$3)","v":0},{"$f":"SUMIFS(TabBDMenus[Quantité dessert],TabBDMenus[Nom dessert],$A14,TabBDMenus[Nom mois menu],$D$3)","v":0},{"$f":"SUMIFS(TabBDMenus[Quantité dessert],TabBDMenus[Nom dessert],$A14,TabBDMenus[Nom mois menu],$E$3)","v":0},{"$f":"SUMIFS(TabBDMenus[Quantité dessert],TabBDMenus[Nom dessert],$A14,TabBDMenus[Nom mois menu],$F$3)","v":0},{"$f":"SUMIFS(TabBDMenus[Quantité dessert],TabBDMenus[Nom dessert],$A14,TabBDMenus[Nom mois menu],$G$3)","v":0},{"$f":"SUMIFS(TabBDMenus[Quantité dessert],TabBDMenus[Nom dessert],$A14,TabBDMenus[Nom mois menu],$H$3)","v":0},{"$f":"SUMIFS(TabBDMenus[Quantité dessert],TabBDMenus[Nom dessert],$A14,TabBDMenus[Nom mois menu],$I$3)","v":0},{"$f":"SUMIFS(TabBDMenus[Quantité dessert],TabBDMenus[Nom dessert],$A14,TabBDMenus[Nom mois menu],$J$3)","v":0},{"$f":"SUMIFS(TabBDMenus[Quantité dessert],TabBDMenus[Nom dessert],$A14,TabBDMenus[Nom mois menu],$K$3)","v":0},{"$f":"SUMIFS(TabBDMenus[Quantité dessert],TabBDMenus[Nom dessert],$A14,TabBDMenus[Nom mois menu],$L$3)","v":0},{"$f":"SUMIFS(TabBDMenus[Quantité dessert],TabBDMenus[Nom dessert],$A14,TabBDMenus[Nom mois menu],$M$3)","v":0},0]
["Gâteau de riz",{"$f":"SUMIFS(TabBDMenus[Quantité dessert],TabBDMenus[Nom dessert],$A15,TabBDMenus[Nom mois menu],$B$3)","v":0},{"$f":"SUMIFS(TabBDMenus[Quantité dessert],TabBDMenus[Nom dessert],$A15,TabBDMenus[Nom mois menu],$C$3)","v":0},{"$f":"SUMIFS(TabBDMenus[Quantité dessert],TabBDMenus[Nom dessert],$A15,TabBDMenus[Nom mois menu],$D$3)","v":0},{"$f":"SUMIFS(TabBDMenus[Quantité dessert],TabBDMenus[Nom dessert],$A15,TabBDMenus[Nom mois menu],$E$3)","v":0},{"$f":"SUMIFS(TabBDMenus[Quantité dessert],TabBDMenus[Nom dessert],$A15,TabBDMenus[Nom mois menu],$F$3)","v":0},{"$f":"SUMIFS(TabBDMenus[Quantité dessert],TabBDMenus[Nom dessert],$A15,TabBDMenus[Nom mois menu],$G$3)","v":0},{"$f":"SUMIFS(TabBDMenus[Quantité dessert],TabBDMenus[Nom dessert],$A15,TabBDMenus[Nom mois menu],$H$3)","v":0},{"$f":"SUMIFS(TabBDMenus[Quantité dessert],TabBDMenus[Nom dessert],$A15,TabBDMenus[Nom mois menu],$I$3)","v":0},{"$f":"SUMIFS(TabBDMenus[Quantité dessert],TabBDMenus[Nom dessert],$A15,TabBDMenus[Nom mois menu],$J$3)","v":0},{"$f":"SUMIFS(TabBDMenus[Quantité dessert],TabBDMenus[Nom dessert],$A15,TabBDMenus[Nom mois menu],$K$3)","v":0},{"$f":"SUMIFS(TabBDMenus[Quantité dessert],TabBDMenus[Nom dessert],$A15,TabBDMenus[Nom mois menu],$L$3)","v":0},{"$f":"SUMIFS(TabBDMenus[Quantité dessert],TabBDMenus[Nom dessert],$A15,TabBDMenus[Nom mois menu],$M$3)","v":0},0]
["Gâteau de semoule",{"$f":"SUMIFS(TabBDMenus[Quantité dessert],TabBDMenus[Nom dessert],$A16,TabBDMenus[Nom mois menu],$B$3)","v":0},{"$f":"SUMIFS(TabBDMenus[Quantité dessert],TabBDMenus[Nom dessert],$A16,TabBDMenus[Nom mois menu],$C$3)","v":0},{"$f":"SUMIFS(TabBDMenus[Quantité dessert],TabBDMenus[Nom dessert],$A16,TabBDMenus[Nom mois menu],$D$3)","v":0},{"$f":"SUMIFS(TabBDMenus[Quantité dessert],TabBDMenus[Nom dessert],$A16,TabBDMenus[Nom mois menu],$E$3)","v":0},{"$f":"SUMIFS(TabBDMenus[Quantité dessert],TabBDMenus[Nom dessert],$A16,TabBDMenus[Nom mois menu],$F$3)","v":0},{"$f":"SUMIFS(TabBDMenus[Quantité dessert],TabBDMenus[Nom dessert],$A16,TabBDMenus[Nom mois menu],$G$3)","v":0},{"$f":"SUMIFS(TabBDMenus[Quantité dessert],TabBDMenus[Nom dessert],$A16,TabBDMenus[Nom mois menu],$H$3)","v":0},{"$f":"SUMIFS(TabBDMenus[Quantité dessert],TabBDMenus[Nom dessert],$A16,TabBDMenus[Nom mois menu],$I$3)","v":0},{"$f":"SUMIFS(TabBDMenus[Quantité dessert],TabBDMenus[Nom dessert],$A16,TabBDMenus[Nom mois menu],$J$3)","v":0},{"$f":"SUMIFS(TabBDMenus[Quantité dessert],TabBDMenus[Nom dessert],$A16,TabBDMenus[Nom mois menu],$K$3)","v":0},{"$f":"SUMIFS(TabBDMenus[Quantité dessert],TabBDMenus[Nom dessert],$A16,TabBDMenus[Nom mois menu],$L$3)","v":0},{"$f":"SUMIFS(TabBDMenus[Quantité dessert],TabBDMenus[Nom dessert],$A16,TabBDMenus[Nom mois menu],$M$3)","v":0},0]
["Gâteaux samedi dimanche",{"$f":"SUMIFS(TabBDMenus[Quantité dessert],TabBDMenus[Nom dessert],$A17,TabBDMenus[Nom mois menu],$B$3)","v":0},{"$f":"SUMIFS(TabBDMenus[Quantité dessert],TabBDMenus[Nom dessert],$A17,TabBDMenus[Nom mois menu],$C$3)","v":0},{"$f":"SUMIFS(TabBDMenus[Quantité dessert],TabBDMenus[Nom dessert],$A17,TabBDMenus[Nom mois menu],$D$3)","v":0},{"$f":"SUMIFS(TabBDMenus[Quantité dessert],TabBDMenus[Nom dessert],$A17,TabBDMenus[Nom mois menu],$E$3)","v":0},{"$f":"SUMIFS(TabBDMenus[Quantité dessert],TabBDMenus[Nom dessert],$A17,TabBDMenus[Nom mois menu],$F$3)","v":0},{"$f":"SUMIFS(TabBDMenus[Quantité dessert],TabBDMenus[Nom dessert],$A17,TabBDMenus[Nom mois menu],$G$3)","v":0},{"$f":"SUMIFS(TabBDMenus[Quantité dessert],TabBDMenus[Nom dessert],$A17,TabBDMenus[Nom mois menu],$H$3)","v":0},{"$f":"SUMIFS(TabBDMenus[Quantité dessert],TabBDMenus[Nom dessert],$A17,TabBDMenus[Nom mois menu],$I$3)","v":0},{"$f":"SUMIFS(TabBDMenus[Quantité dessert],TabBDMenus[Nom dessert],$A17,TabBDMenus[Nom mois menu],$J$3)","v":0},{"$f":"SUMIFS(TabBDMenus[Quantité dessert],TabBDMenus[Nom dessert],$A17,TabBDMenus[Nom mois menu],$K$3)","v":0},{"$f":"SUMIFS(TabBDMenus[Quantité dessert],TabBDMenus[Nom dessert],$A17,TabBDMenus[Nom mois menu],$L$3)","v":0},{"$f":"SUMIFS(TabBDMenus[Quantité dessert],TabBDMenus[Nom dessert],$A17,TabBDMenus[Nom mois menu],$M$3)","v":0},0]
["Mousse au chocolat",{"$f":"SUMIFS(TabBDMenus[Quantité dessert],TabBDMenus[Nom dessert],$A18,TabBDMenus[Nom mois menu],$B$3)","v":0},{"$f":"SUMIFS(TabBDMenus[Quantité dessert],TabBDMenus[Nom dessert],$A18,TabBDMenus[Nom mois menu],$C$3)","v":0},{"$f":"SUMIFS(TabBDMenus[Quantité dessert],TabBDMenus[Nom dessert],$A18,TabBDMenus[Nom mois menu],$D$3)","v":0},{"$f":"SUMIFS(TabBDMenus[Quantité dessert],TabBDMenus[Nom dessert],$A18,TabBDMenus[Nom mois menu],$E$3)","v":0},{"$f":"SUMIFS(TabBDMenus[Quantité dessert],TabBDMenus[Nom dessert],$A18,TabBDMenus[Nom mois menu],$F$3)","v":0},{"$f":"SUMIFS(TabBDMenus[Quantité dessert],TabBDMenus[Nom dessert],$A18,TabBDMenus[Nom mois menu],$G$3)","v":0},{"$f":"SUMIFS(TabBDMenus[Quantité dessert],TabBDMenus[Nom dessert],$A18,TabBDMenus[Nom mois menu],$H$3)","v":0},{"$f":"SUMIFS(TabBDMenus[Quantité dessert],TabBDMenus[Nom dessert],$A18,TabBDMenus[Nom mois menu],$I$3)","v":0},{"$f":"SUMIFS(TabBDMenus[Quantité dessert],TabBDMenus[Nom dessert],$A18,TabBDMenus[Nom mois menu],$J$3)","v":0},{"$f":"SUMIFS(TabBDMenus[Quantité dessert],TabBDMenus[Nom dessert],$A18,TabBDMenus[Nom mois menu],$K$3)","v":0},{"$f":"SUMIFS(TabBDMenus[Quantité dessert],TabBDMenus[Nom dessert],$A18,TabBDMenus[Nom mois menu],$L$3)","v":0},{"$f":"SUMIFS(TabBDMenus[Quantité dessert],TabBDMenus[Nom dessert],$A18,TabBDMenus[Nom mois menu],$M$3)","v":0},0]
["Oranges",{"$f":"SUMIFS(TabBDMenus[Quantité dessert],TabBDMenus[Nom dessert],$A19,TabBDMenus[Nom mois menu],$B$3)","v":0},{"$f":"SUMIFS(TabBDMenus[Quantité dessert],TabBDMenus[Nom dessert],$A19,TabBDMenus[Nom mois menu],$C$3)","v":0},{"$f":"SUMIFS(TabBDMenus[Quantité dessert],TabBDMenus[Nom dessert],$A19,TabBDMenus[Nom mois menu],$D$3)","v":0},{"$f":"SUMIFS(TabBDMenus[Quantité dessert],TabBDMenus[Nom dessert],$A19,TabBDMenus[Nom mois menu],$E$3)","v":0},{"$f":"SUMIFS(TabBDMenus[Quantité dessert],TabBDMenus[Nom dessert],$A19,TabBDMenus[Nom mois menu],$F$3)","v":0},{"$f":"SUMIFS(TabBDMenus[Quantité dessert],TabBDMenus[Nom dessert],$A19,TabBDMenus[Nom mois menu],$G$3)","v":0},{"$f":"SUMIFS(TabBDMenus[Quantité dessert],TabBDMenus[Nom dessert],$A19,TabBDMenus[Nom mois menu],$H$3)","v":0},{"$f":"SUMIFS(TabBDMenus[Quantité dessert],TabBDMenus[Nom dessert],$A19,TabBDMenus[Nom mois menu],$I$3)","v":0},{"$f":"SUMIFS(TabBDMenus[Quantité dessert],TabBDMenus[Nom dessert],$A19,TabBDMenus[Nom mois menu],$J$3)","v":0},{"$f":"SUMIFS(TabBDMenus[Quantité dessert],TabBDMenus[Nom dessert],$A19,TabBDMenus[Nom mois menu],$K$3)","v":0},{"$f":"SUMIFS(TabBDMenus[Quantité dessert],TabBDMenus[Nom dessert],$A19,TabBDMenus[Nom mois menu],$L$3)","v":0},{"$f":"SUMIFS(TabBDMenus[Quantité dessert],TabBDMenus[Nom dessert],$A19,TabBDMenus[Nom mois menu],$M$3)","v":0},0]
["Petits suisses",{"$f":"SUMIFS(TabBDMenus[Quantité dessert],TabBDMenus[Nom dessert],$A20,TabBDMenus[Nom mois menu],$B$3)","v":0},{"$f":"SUMIFS(TabBDMenus[Quantité dessert],TabBDMenus[Nom dessert],$A20,TabBDMenus[Nom mois menu],$C$3)","v":0},{"$f":"SUMIFS(TabBDMenus[Quantité dessert],TabBDMenus[Nom dessert],$A20,TabBDMenus[Nom mois menu],$D$3)","v":0},{"$f":"SUMIFS(TabBDMenus[Quantité dessert],TabBDMenus[Nom dessert],$A20,TabBDMenus[Nom mois menu],$E$3)","v":0},{"$f":"SUMIFS(TabBDMenus[Quantité dessert],TabBDMenus[Nom dessert],$A20,TabBDMenus[Nom mois menu],$F$3)","v":0},{"$f":"SUMIFS(TabBDMenus[Quantité dessert],TabBDMenus[Nom dessert],$A20,TabBDMenus[Nom mois menu],$G$3)","v":0},{"$f":"SUMIFS(TabBDMenus[Quantité dessert],TabBDMenus[Nom dessert],$A20,TabBDMenus[Nom mois menu],$H$3)","v":0},{"$f":"SUMIFS(TabBDMenus[Quantité dessert],TabBDMenus[Nom dessert],$A20,TabBDMenus[Nom mois menu],$I$3)","v":0},{"$f":"SUMIFS(TabBDMenus[Quantité dessert],TabBDMenus[Nom dessert],$A20,TabBDMenus[Nom mois menu],$J$3)","v":0},{"$f":"SUMIFS(TabBDMenus[Quantité dessert],TabBDMenus[Nom dessert],$A20,TabBDMenus[Nom mois menu],$K$3)","v":0},{"$f":"SUMIFS(TabBDMenus[Quantité dessert],TabBDMenus[Nom dessert],$A20,TabBDMenus[Nom mois menu],$L$3)","v":0},{"$f":"SUMIFS(TabBDMenus[Quantité dessert],TabBDMenus[Nom dessert],$A20,TabBDMenus[Nom mois menu],$M$3)","v":0},0]
["Pomme",{"$f":"SUMIFS(TabBDMenus[Quantité dessert],TabBDMenus[Nom dessert],$A21,TabBDMenus[Nom mois menu],$B$3)","v":0},{"$f":"SUMIFS(TabBDMenus[Quantité dessert],TabBDMenus[Nom dessert],$A21,TabBDMenus[Nom mois menu],$C$3)","v":0},{"$f":"SUMIFS(TabBDMenus[Quantité dessert],TabBDMenus[Nom dessert],$A21,TabBDMenus[Nom mois menu],$D$3)","v":0},{"$f":"SUMIFS(TabBDMenus[Quantité dessert],TabBDMenus[Nom dessert],$A21,TabBDMenus[Nom mois menu],$E$3)","v":0},{"$f":"SUMIFS(TabBDMenus[Quantité dessert],TabBDMenus[Nom dessert],$A21,TabBDMenus[Nom mois menu],$F$3)","v":0},{"$f":"SUMIFS(TabBDMenus[Quantité dessert],TabBDMenus[Nom dessert],$A21,TabBDMenus[Nom mois menu],$G$3)","v":0},{"$f":"SUMIFS(TabBDMenus[Quantité dessert],TabBDMenus[Nom dessert],$A21,TabBDMenus[Nom mois menu],$H$3)","v":0},{"$f":"SUMIFS(TabBDMenus[Quantité dessert],TabBDMenus[Nom dessert],$A21,TabBDMenus[Nom mois menu],$I$3)","v":0},{"$f":"SUMIFS(TabBDMenus[Quantité dessert],TabBDMenus[Nom dessert],$A21,TabBDMenus[Nom mois menu],$J$3)","v":0},{"$f":"SUMIFS(TabBDMenus[Quantité dessert],TabBDMenus[Nom dessert],$A21,TabBDMenus[Nom mois menu],$K$3)","v":0},{"$f":"SUMIFS(TabBDMenus[Quantité dessert],TabBDMenus[Nom dessert],$A21,TabBDMenus[Nom mois menu],$L$3)","v":0},{"$f":"SUMIFS(TabBDMenus[Quantité dessert],TabBDMenus[Nom dessert],$A21,TabBDMenus[Nom mois menu],$M$3)","v":0},0]
["Pruneaux",{"$f":"SUMIFS(TabBDMenus[Quantité dessert],TabBDMenus[Nom dessert],$A22,TabBDMenus[Nom mois menu],$B$3)","v":0},{"$f":"SUMIFS(TabBDMenus[Quantité dessert],TabBDMenus[Nom dessert],$A22,TabBDMenus[Nom mois menu],$C$3)","v":0},{"$f":"SUMIFS(TabBDMenus[Quantité dessert],TabBDMenus[Nom dessert],$A22,TabBDMenus[Nom mois menu],$D$3)","v":0},{"$f":"SUMIFS(TabBDMenus[Quantité dessert],TabBDMenus[Nom dessert],$A22,TabBDMenus[Nom mois menu],$E$3)","v":0},{"$f":"SUMIFS(TabBDMenus[Quantité dessert],TabBDMenus[Nom dessert],$A22,TabBDMenus[Nom mois menu],$F$3)","v":0},{"$f":"SUMIFS(TabBDMenus[Quantité dessert],TabBDMenus[Nom dessert],$A22,TabBDMenus[Nom mois menu],$G$3)","v":0},{"$f":"SUMIFS(TabBDMenus[Quantité dessert],TabBDMenus[Nom dessert],$A22,TabBDMenus[Nom mois menu],$H$3)","v":0},{"$f":"SUMIFS(TabBDMenus[Quantité dessert],TabBDMenus[Nom dessert],$A22,TabBDMenus[Nom mois menu],$I$3)","v":0},{"$f":"SUMIFS(TabBDMenus[Quantité dessert],TabBDMenus[Nom dessert],$A22,TabBDMenus[Nom mois menu],$J$3)","v":0},{"$f":"SUMIFS(TabBDMenus[Quantité dessert],TabBDMenus[Nom dessert],$A22,TabBDMenus[Nom mois menu],$K$3)","v":0},{"$f":"SUMIFS(TabBDMenus[Quantité dessert],TabBDMenus[Nom dessert],$A22,TabBDMenus[Nom mois menu],$L$3)","v":0},{"$f":"SUMIFS(TabBDMenus[Quantité dessert],TabBDMenus[Nom dessert],$A22,TabBDMenus[Nom mois menu],$M$3)","v":0},0]
["Riz au lait",{"$f":"SUMIFS(TabBDMenus[Quantité dessert],TabBDMenus[Nom dessert],$A23,TabBDMenus[Nom mois menu],$B$3)","v":0},{"$f":"SUMIFS(TabBDMenus[Quantité dessert],TabBDMenus[Nom dessert],$A23,TabBDMenus[Nom mois menu],$C$3)","v":0},{"$f":"SUMIFS(TabBDMenus[Quantité dessert],TabBDMenus[Nom dessert],$A23,TabBDMenus[Nom mois menu],$D$3)","v":0},{"$f":"SUMIFS(TabBDMenus[Quantité dessert],TabBDMenus[Nom dessert],$A23,TabBDMenus[Nom mois menu],$E$3)","v":0},{"$f":"SUMIFS(TabBDMenus[Quantité dessert],TabBDMenus[Nom dessert],$A23,TabBDMenus[Nom mois menu],$F$3)","v":0},{"$f":"SUMIFS(TabBDMenus[Quantité dessert],TabBDMenus[Nom dessert],$A23,TabBDMenus[Nom mois menu],$G$3)","v":0},{"$f":"SUMIFS(TabBDMenus[Quantité dessert],TabBDMenus[Nom dessert],$A23,TabBDMenus[Nom mois menu],$H$3)","v":0},{"$f":"SUMIFS(TabBDMenus[Quantité dessert],TabBDMenus[Nom dessert],$A23,TabBDMenus[Nom mois menu],$I$3)","v":0},{"$f":"SUMIFS(TabBDMenus[Quantité dessert],TabBDMenus[Nom dessert],$A23,TabBDMenus[Nom mois menu],$J$3)","v":0},{"$f":"SUMIFS(TabBDMenus[Quantité dessert],TabBDMenus[Nom dessert],$A23,TabBDMenus[Nom mois menu],$K$3)","v":0},{"$f":"SUMIFS(TabBDMenus[Quantité dessert],TabBDMenus[Nom dessert],$A23,TabBDMenus[Nom mois menu],$L$3)","v":0},{"$f":"SUMIFS(TabBDMenus[Quantité dessert],TabBDMenus[Nom dessert],$A23,TabBDMenus[Nom mois menu],$M$3)","v":0},0]
["Tapioca",{"$f":"SUMIFS(TabBDMenus[Quantité dessert],TabBDMenus[Nom dessert],$A24,TabBDMenus[Nom mois menu],$B$3)","v":0},{"$f":"SUMIFS(TabBDMenus[Quantité dessert],TabBDMenus[Nom dessert],$A24,TabBDMenus[Nom mois menu],$C$3)","v":0},{"$f":"SUMIFS(TabBDMenus[Quantité dessert],TabBDMenus[Nom dessert],$A24,TabBDMenus[Nom mois menu],$D$3)","v":0},{"$f":"SUMIFS(TabBDMenus[Quantité dessert],TabBDMenus[Nom dessert],$A24,TabBDMenus[Nom mois menu],$E$3)","v":0},{"$f":"SUMIFS(TabBDMenus[Quantité dessert],TabBDMenus[Nom dessert],$A24,TabBDMenus[Nom mois menu],$F$3)","v":0},{"$f":"SUMIFS(TabBDMenus[Quantité dessert],TabBDMenus[Nom dessert],$A24,TabBDMenus[Nom mois menu],$G$3)","v":0},{"$f":"SUMIFS(TabBDMenus[Quantité dessert],TabBDMenus[Nom dessert],$A24,TabBDMenus[Nom mois menu],$H$3)","v":0},{"$f":"SUMIFS(TabBDMenus[Quantité dessert],TabBDMenus[Nom dessert],$A24,TabBDMenus[Nom mois menu],$I$3)","v":0},{"$f":"SUMIFS(TabBDMenus[Quantité dessert],TabBDMenus[Nom dessert],$A24,TabBDMenus[Nom mois menu],$J$3)","v":0},{"$f":"SUMIFS(TabBDMenus[Quantité dessert],TabBDMenus[Nom dessert],$A24,TabBDMenus[Nom mois menu],$K$3)","v":0},{"$f":"SUMIFS(TabBDMenus[Quantité dessert],TabBDMenus[Nom dessert],$A24,TabBDMenus[Nom mois menu],$L$3)","v":0},{"$f":"SUMIFS(TabBDMenus[Quantité dessert],TabBDMenus[Nom dessert],$A24,TabBDMenus[Nom mois menu],$M$3)","v":0},0]
["Yaourts",{"$f":"SUMIFS(TabBDMenus[Quantité dessert],TabBDMenus[Nom dessert],$A25,TabBDMenus[Nom mois menu],$B$3)","v":0},{"$f":"SUMIFS(TabBDMenus[Quantité dessert],TabBDMenus[Nom dessert],$A25,TabBDMenus[Nom mois menu],$C$3)","v":0},{"$f":"SUMIFS(TabBDMenus[Quantité dessert],TabBDMenus[Nom dessert],$A25,TabBDMenus[Nom mois menu],$D$3)","v":0},{"$f":"SUMIFS(TabBDMenus[Quantité dessert],TabBDMenus[Nom dessert],$A25,TabBDMenus[Nom mois menu],$E$3)","v":0},{"$f":"SUMIFS(TabBDMenus[Quantité dessert],TabBDMenus[Nom dessert],$A25,TabBDMenus[Nom mois menu],$F$3)","v":0},{"$f":"SUMIFS(TabBDMenus[Quantité dessert],TabBDMenus[Nom dessert],$A25,TabBDMenus[Nom mois menu],$G$3)","v":0},{"$f":"SUMIFS(TabBDMenus[Quantité dessert],TabBDMenus[Nom dessert],$A25,TabBDMenus[Nom mois menu],$H$3)","v":0},{"$f":"SUMIFS(TabBDMenus[Quantité dessert],TabBDMenus[Nom dessert],$A25,TabBDMenus[Nom mois menu],$I$3)","v":0},{"$f":"SUMIFS(TabBDMenus[Quantité dessert],TabBDMenus[Nom dessert],$A25,TabBDMenus[Nom mois menu],$J$3)","v":0},{"$f":"SUMIFS(TabBDMenus[Quantité dessert],TabBDMenus[Nom dessert],$A25,TabBDMenus[Nom mois menu],$K$3)","v":0},{"$f":"SUMIFS(TabBDMenus[Quantité dessert],TabBDMenus[Nom dessert],$A25,TabBDMenus[Nom mois menu],$L$3)","v":0},{"$f":"SUMIFS(TabBDMenus[Quantité dessert],TabBDMenus[Nom dessert],$A25,TabBDMenus[Nom mois menu],$M$3)","v":0},0]
[{"$f":"\"Imprimé à Limeil-Brévannes, le \"&TEXT(TODAY(),\"jjjj j mmmm aaaa\")&\".\"","v":"Imprimé à Limeil-Brévannes, le vendredi 8 septembre 2023."}]
["Pour la création des formules, ne pas passer par ni Formules, ni Insérer une fonction. tapez le signe égal, tapez SOMME.SI.ENS, tapez une parenthèse ouvrante, tapez Tab (la liste des Tab disponibles apparaît, cliquez sur"]
["TabBDMenus), tapez un crochet ouvrant, la liste des noms définis disponibles s'affiche à l'écran (ici choisir QMD) tapez un point virgule tapez Tab (la liste des Tab disponibles apparaît, cliquez sur TabBDMenus), tapez un "]
["crochet ouvrant, le liste des noms définis disponibles s'affiche à l'écran (ici cliquez sur NMD) tapez un point virgule À partir de la feuille Quantités dessert, cliquez sur la cellule A4 tapez un point virgule tapez Tab (la liste"]
["des Tab disponibles apparaît, cliquez sur TabBDMenus tapez un crochet ouvrant, la liste des noms définis disponibles s'affiche à l'écran (ici cliquez sur Mois) tapez un point virgule À partir de la feuille Quantités desserts,"]
["cliquez sur la cellule B3 tapez une parenthèse fermante. Rendre A4 en référence relative sur la colonne. Rendre B3 en référence absolue."]

{"sheet":"Quantités légumes","index":8,"n_rows":45,"n_cols":14,"rows_kept":45,"cut":false,"hidden":false,"merged":[[0,0,0,13],[39,0,39,13]]}
[{"$f":"\"Quantités légumes de l'année \"&Accueil!$F$1&\" par mois et nom des légumes.\"","v":"Quantités légumes de l'année 2023 par mois et nom des légumes."}]
[]
["Nom des légumes","Janvier","Février","Mars","Avril","Mai","Juin","Juillet","Août","Septembre","Octobre","Novembre","Décembre",{"$f":"\"Total des légumes de l'année \"&Accueil!$F$1","v":"Total des légumes de l'année 2023"}]
["Asperges",{"$f":"SUMIFS(TabBDMenus[Quantité légume],TabBDMenus[Nom légume],$A4,TabBDMenus[Nom mois menu],$B$3)+SUMIFS(TabBDMenus[Quantité légume deux],TabBDMenus[Nom légume deux],$A4,TabBDMenus[Nom mois menu],$B$3)","v":0},{"$f":"SUMIFS(TabBDMenus[Quantité légume],TabBDMenus[Nom légume],$A4,TabBDMenus[Nom mois menu],$C$3)+SUMIFS(TabBDMenus[Quantité légume deux],TabBDMenus[Nom légume deux],$A4,TabBDMenus[Nom mois menu],$C$3)","v":0},{"$f":"SUMIFS(TabBDMenus[Quantité légume],TabBDMenus[Nom légume],$A4,TabBDMenus[Nom mois menu],$D$3)+SUMIFS(TabBDMenus[Quantité légume deux],TabBDMenus[Nom légume deux],$A4,TabBDMenus[Nom mois menu],$D$3)","v":0},{"$f":"SUMIFS(TabBDMenus[Quantité légume],TabBDMenus[Nom légume],$A4,TabBDMenus[Nom mois menu],$E$3)+SUMIFS(TabBDMenus[Quantité légume deux],TabBDMenus[Nom légume deux],$A4,TabBDMenus[Nom mois menu],$E$3)","v":0},{"$f":"SUMIFS(TabBDMenus[Quantité légume],TabBDMenus[Nom légume],$A4,TabBDMenus[Nom mois menu],$F$3)+SUMIFS(TabBDMenus[Quantité légume deux],TabBDMenus[Nom légume deux],$A4,TabBDMenus[Nom mois menu],$F$3)","v":0},{"$f":"SUMIFS(TabBDMenus[Quantité légume],TabBDMenus[Nom légume],$A4,TabBDMenus[Nom mois menu],$G$3)+SUMIFS(TabBDMenus[Quantité légume deux],TabBDMenus[Nom légume deux],$A4,TabBDMenus[Nom mois menu],$G$3)","v":0},{"$f":"SUMIFS(TabBDMenus[Quantité légume],TabBDMenus[Nom légume],$A4,TabBDMenus[Nom mois menu],$H$3)+SUMIFS(TabBDMenus[Quantité légume deux],TabBDMenus[Nom légume deux],$A4,TabBDMenus[Nom mois menu],$H$3)","v":0},{"$f":"SUMIFS(TabBDMenus[Quantité légume],TabBDMenus[Nom légume],$A4,TabBDMenus[Nom mois menu],$I$3)+SUMIFS(TabBDMenus[Quantité légume deux],TabBDMenus[Nom légume deux],$A4,TabBDMenus[Nom mois menu],$I$3)","v":0},{"$f":"SUMIFS(TabBDMenus[Quantité légume],TabBDMenus[Nom légume],$A4,TabBDMenus[Nom mois menu],$J$3)+SUMIFS(TabBDMenus[Quantité légume deux],TabBDMenus[Nom légume deux],$A4,TabBDMenus[Nom mois menu],$J$3)","v":0},{"$f":"SUMIFS(TabBDMenus[Quantité légume],TabBDMenus[Nom légume],$A4,TabBDMenus[Nom mois menu],$K$3)+SUMIFS(TabBDMenus[Quantité légume deux],TabBDMenus[Nom légume deux],$A4,TabBDMenus[Nom mois menu],$K$3)","v":0},{"$f":"SUMIFS(TabBDMenus[Quantité légume],TabBDMenus[Nom légume],$A4,TabBDMenus[Nom mois menu],$L$3)+SUMIFS(TabBDMenus[Quantité légume deux],TabBDMenus[Nom légume deux],$A4,TabBDMenus[Nom mois menu],$L$3)","v":0},{"$f":"SUMIFS(TabBDMenus[Quantité légume],TabBDMenus[Nom légume],$A4,TabBDMenus[Nom mois menu],$M$3)+SUMIFS(TabBDMenus[Quantité légume deux],TabBDMenus[Nom légume deux],$A4,TabBDMenus[Nom mois menu],$M$3)","v":0},{"$f":"SUM($B4:$M4)","v":0}]
["Avocat",{"$f":"SUMIFS(TabBDMenus[Quantité légume],TabBDMenus[Nom légume],$A5,TabBDMenus[Nom mois menu],$B$3)+SUMIFS(TabBDMenus[Quantité légume deux],TabBDMenus[Nom légume deux],$A5,TabBDMenus[Nom mois menu],$B$3)","v":0},{"$f":"SUMIFS(TabBDMenus[Quantité légume],TabBDMenus[Nom légume],$A5,TabBDMenus[Nom mois menu],$C$3)+SUMIFS(TabBDMenus[Quantité légume deux],TabBDMenus[Nom légume deux],$A5,TabBDMenus[Nom mois menu],$C$3)","v":0},{"$f":"SUMIFS(TabBDMenus[Quantité légume],TabBDMenus[Nom légume],$A5,TabBDMenus[Nom mois menu],$D$3)+SUMIFS(TabBDMenus[Quantité légume deux],TabBDMenus[Nom légume deux],$A5,TabBDMenus[Nom mois menu],$D$3)","v":0},{"$f":"SUMIFS(TabBDMenus[Quantité légume],TabBDMenus[Nom légume],$A5,TabBDMenus[Nom mois menu],$E$3)+SUMIFS(TabBDMenus[Quantité légume deux],TabBDMenus[Nom légume deux],$A5,TabBDMenus[Nom mois menu],$E$3)","v":0},{"$f":"SUMIFS(TabBDMenus[Quantité légume],TabBDMenus[Nom légume],$A5,TabBDMenus[Nom mois menu],$F$3)+SUMIFS(TabBDMenus[Quantité légume deux],TabBDMenus[Nom légume deux],$A5,TabBDMenus[Nom mois menu],$F$3)","v":0},{"$f":"SUMIFS(TabBDMenus[Quantité légume],TabBDMenus[Nom légume],$A5,TabBDMenus[Nom mois menu],$G$3)+SUMIFS(TabBDMenus[Quantité légume deux],TabBDMenus[Nom légume deux],$A5,TabBDMenus[Nom mois menu],$G$3)","v":0},{"$f":"SUMIFS(TabBDMenus[Quantité légume],TabBDMenus[Nom légume],$A5,TabBDMenus[Nom mois menu],$H$3)+SUMIFS(TabBDMenus[Quantité légume deux],TabBDMenus[Nom légume deux],$A5,TabBDMenus[Nom mois menu],$H$3)","v":0},{"$f":"SUMIFS(TabBDMenus[Quantité légume],TabBDMenus[Nom légume],$A5,TabBDMenus[Nom mois menu],$I$3)+SUMIFS(TabBDMenus[Quantité légume deux],TabBDMenus[Nom légume deux],$A5,TabBDMenus[Nom mois menu],$I$3)","v":0},{"$f":"SUMIFS(TabBDMenus[Quantité légume],TabBDMenus[Nom légume],$A5,TabBDMenus[Nom mois menu],$J$3)+SUMIFS(TabBDMenus[Quantité légume deux],TabBDMenus[Nom légume deux],$A5,TabBDMenus[Nom mois menu],$J$3)","v":0},{"$f":"SUMIFS(TabBDMenus[Quantité légume],TabBDMenus[Nom légume],$A5,TabBDMenus[Nom mois menu],$K$3)+SUMIFS(TabBDMenus[Quantité légume deux],TabBDMenus[Nom légume deux],$A5,TabBDMenus[Nom mois menu],$K$3)","v":0},{"$f":"SUMIFS(TabBDMenus[Quantité légume],TabBDMenus[Nom légume],$A5,TabBDMenus[Nom mois menu],$L$3)+SUMIFS(TabBDMenus[Quantité légume deux],TabBDMenus[Nom légume deux],$A5,TabBDMenus[Nom mois menu],$L$3)","v":0},{"$f":"SUMIFS(TabBDMenus[Quantité légume],TabBDMenus[Nom légume],$A5,TabBDMenus[Nom mois menu],$M$3)+SUMIFS(TabBDMenus[Quantité légume deux],TabBDMenus[Nom légume deux],$A5,TabBDMenus[Nom mois menu],$M$3)","v":0},{"$f":"SUM($B5:$M5)","v":0}]
["Betterave rouge",{"$f":"SUMIFS(TabBDMenus[Quantité légume],TabBDMenus[Nom légume],$A6,TabBDMenus[Nom mois menu],$B$3)+SUMIFS(TabBDMenus[Quantité légume deux],TabBDMenus[Nom légume deux],$A6,TabBDMenus[Nom mois menu],$B$3)","v":0},{"$f":"SUMIFS(TabBDMenus[Quantité légume],TabBDMenus[Nom légume],$A6,TabBDMenus[Nom mois menu],$C$3)+SUMIFS(TabBDMenus[Quantité légume deux],TabBDMenus[Nom légume deux],$A6,TabBDMenus[Nom mois menu],$C$3)","v":0},{"$f":"SUMIFS(TabBDMenus[Quantité légume],TabBDMenus[Nom légume],$A6,TabBDMenus[Nom mois menu],$D$3)+SUMIFS(TabBDMenus[Quantité légume deux],TabBDMenus[Nom légume deux],$A6,TabBDMenus[Nom mois menu],$D$3)","v":0},{"$f":"SUMIFS(TabBDMenus[Quantité légume],TabBDMenus[Nom légume],$A6,TabBDMenus[Nom mois menu],$E$3)+SUMIFS(TabBDMenus[Quantité légume deux],TabBDMenus[Nom légume deux],$A6,TabBDMenus[Nom mois menu],$E$3)","v":0},{"$f":"SUMIFS(TabBDMenus[Quantité légume],TabBDMenus[Nom légume],$A6,TabBDMenus[Nom mois menu],$F$3)+SUMIFS(TabBDMenus[Quantité légume deux],TabBDMenus[Nom légume deux],$A6,TabBDMenus[Nom mois menu],$F$3)","v":0},{"$f":"SUMIFS(TabBDMenus[Quantité légume],TabBDMenus[Nom légume],$A6,TabBDMenus[Nom mois menu],$G$3)+SUMIFS(TabBDMenus[Quantité légume deux],TabBDMenus[Nom légume deux],$A6,TabBDMenus[Nom mois menu],$G$3)","v":0},{"$f":"SUMIFS(TabBDMenus[Quantité légume],TabBDMenus[Nom légume],$A6,TabBDMenus[Nom mois menu],$H$3)+SUMIFS(TabBDMenus[Quantité légume deux],TabBDMenus[Nom légume deux],$A6,TabBDMenus[Nom mois menu],$H$3)","v":0},{"$f":"SUMIFS(TabBDMenus[Quantité légume],TabBDMenus[Nom légume],$A6,TabBDMenus[Nom mois menu],$I$3)+SUMIFS(TabBDMenus[Quantité légume deux],TabBDMenus[Nom légume deux],$A6,TabBDMenus[Nom mois menu],$I$3)","v":0},{"$f":"SUMIFS(TabBDMenus[Quantité légume],TabBDMenus[Nom légume],$A6,TabBDMenus[Nom mois menu],$J$3)+SUMIFS(TabBDMenus[Quantité légume deux],TabBDMenus[Nom légume deux],$A6,TabBDMenus[Nom mois menu],$J$3)","v":0},{"$f":"SUMIFS(TabBDMenus[Quantité légume],TabBDMenus[Nom légume],$A6,TabBDMenus[Nom mois menu],$K$3)+SUMIFS(TabBDMenus[Quantité légume deux],TabBDMenus[Nom légume deux],$A6,TabBDMenus[Nom mois menu],$K$3)","v":0},{"$f":"SUMIFS(TabBDMenus[Quantité légume],TabBDMenus[Nom légume],$A6,TabBDMenus[Nom mois menu],$L$3)+SUMIFS(TabBDMenus[Quantité légume deux],TabBDMenus[Nom légume deux],$A6,TabBDMenus[Nom mois menu],$L$3)","v":0},{"$f":"SUMIFS(TabBDMenus[Quantité légume],TabBDMenus[Nom légume],$A6,TabBDMenus[Nom mois menu],$M$3)+SUMIFS(TabBDMenus[Quantité légume deux],TabBDMenus[Nom légume deux],$A6,TabBDMenus[Nom mois menu],$M$3)","v":0},0]
["Carottes",{"$f":"SUMIFS(TabBDMenus[Quantité légume],TabBDMenus[Nom légume],$A7,TabBDMenus[Nom mois menu],$B$3)+SUMIFS(TabBDMenus[Quantité légume deux],TabBDMenus[Nom légume deux],$A7,TabBDMenus[Nom mois menu],$B$3)","v":0},{"$f":"SUMIFS(TabBDMenus[Quantité légume],TabBDMenus[Nom légume],$A7,TabBDMenus[Nom mois menu],$C$3)+SUMIFS(TabBDMenus[Quantité légume deux],TabBDMenus[Nom légume deux],$A7,TabBDMenus[Nom mois menu],$C$3)","v":0},{"$f":"SUMIFS(TabBDMenus[Quantité légume],TabBDMenus[Nom légume],$A7,TabBDMenus[Nom mois menu],$D$3)+SUMIFS(TabBDMenus[Quantité légume deux],TabBDMenus[Nom légume deux],$A7,TabBDMenus[Nom mois menu],$D$3)","v":0},{"$f":"SUMIFS(TabBDMenus[Quantité légume],TabBDMenus[Nom légume],$A7,TabBDMenus[Nom mois menu],$E$3)+SUMIFS(TabBDMenus[Quantité légume deux],TabBDMenus[Nom légume deux],$A7,TabBDMenus[Nom mois menu],$E$3)","v":0},{"$f":"SUMIFS(TabBDMenus[Quantité légume],TabBDMenus[Nom légume],$A7,TabBDMenus[Nom mois menu],$F$3)+SUMIFS(TabBDMenus[Quantité légume deux],TabBDMenus[Nom légume deux],$A7,TabBDMenus[Nom mois menu],$F$3)","v":0},{"$f":"SUMIFS(TabBDMenus[Quantité légume],TabBDMenus[Nom légume],$A7,TabBDMenus[Nom mois menu],$G$3)+SUMIFS(TabBDMenus[Quantité légume deux],TabBDMenus[Nom légume deux],$A7,TabBDMenus[Nom mois menu],$G$3)","v":0},{"$f":"SUMIFS(TabBDMenus[Quantité légume],TabBDMenus[Nom légume],$A7,TabBDMenus[Nom mois menu],$H$3)+SUMIFS(TabBDMenus[Quantité légume deux],TabBDMenus[Nom légume deux],$A7,TabBDMenus[Nom mois menu],$H$3)","v":0},{"$f":"SUMIFS(TabBDMenus[Quantité légume],TabBDMenus[Nom légume],$A7,TabBDMenus[Nom mois menu],$I$3)+SUMIFS(TabBDMenus[Quantité légume deux],TabBDMenus[Nom légume deux],$A7,TabBDMenus[Nom mois menu],$I$3)","v":0},{"$f":"SUMIFS(TabBDMenus[Quantité légume],TabBDMenus[Nom légume],$A7,TabBDMenus[Nom mois menu],$J$3)+SUMIFS(TabBDMenus[Quantité légume deux],TabBDMenus[Nom légume deux],$A7,TabBDMenus[Nom mois menu],$J$3)","v":0},{"$f":"SUMIFS(TabBDMenus[Quantité légume],TabBDMenus[Nom légume],$A7,TabBDMenus[Nom mois menu],$K$3)+SUMIFS(TabBDMenus[Quantité légume deux],TabBDMenus[Nom légume deux],$A7,TabBDMenus[Nom mois menu],$K$3)","v":0},{"$f":"SUMIFS(TabBDMenus[Quantité légume],TabBDMenus[Nom légume],$A7,TabBDMenus[Nom mois menu],$L$3)+SUMIFS(TabBDMenus[Quantité légume deux],TabBDMenus[Nom légume deux],$A7,TabBDMenus[Nom mois menu],$L$3)","v":0},{"$f":"SUMIFS(TabBDMenus[Quantité légume],TabBDMenus[Nom légume],$A7,TabBDMenus[Nom mois menu],$M$3)+SUMIFS(TabBDMenus[Quantité légume deux],TabBDMenus[Nom légume deux],$A7,TabBDMenus[Nom mois menu],$M$3)","v":0},0]
["Cassoulet",{"$f":"SUMIFS(TabBDMenus[Quantité légume],TabBDMenus[Nom légume],$A8,TabBDMenus[Nom mois menu],$B$3)+SUMIFS(TabBDMenus[Quantité légume deux],TabBDMenus[Nom légume deux],$A8,TabBDMenus[Nom mois menu],$B$3)","v":0},{"$f":"SUMIFS(TabBDMenus[Quantité légume],TabBDMenus[Nom légume],$A8,TabBDMenus[Nom mois menu],$C$3)+SUMIFS(TabBDMenus[Quantité légume deux],TabBDMenus[Nom légume deux],$A8,TabBDMenus[Nom mois menu],$C$3)","v":0},{"$f":"SUMIFS(TabBDMenus[Quantité légume],TabBDMenus[Nom légume],$A8,TabBDMenus[Nom mois menu],$D$3)+SUMIFS(TabBDMenus[Quantité légume deux],TabBDMenus[Nom légume deux],$A8,TabBDMenus[Nom mois menu],$D$3)","v":0},{"$f":"SUMIFS(TabBDMenus[Quantité légume],TabBDMenus[Nom légume],$A8,TabBDMenus[Nom mois menu],$E$3)+SUMIFS(TabBDMenus[Quantité légume deux],TabBDMenus[Nom légume deux],$A8,TabBDMenus[Nom mois menu],$E$3)","v":0},{"$f":"SUMIFS(TabBDMenus[Quantité légume],TabBDMenus[Nom légume],$A8,TabBDMenus[Nom mois menu],$F$3)+SUMIFS(TabBDMenus[Quantité légume deux],TabBDMenus[Nom légume deux],$A8,TabBDMenus[Nom mois menu],$F$3)","v":0},{"$f":"SUMIFS(TabBDMenus[Quantité légume],TabBDMenus[Nom légume],$A8,TabBDMenus[Nom mois menu],$G$3)+SUMIFS(TabBDMenus[Quantité légume deux],TabBDMenus[Nom légume deux],$A8,TabBDMenus[Nom mois menu],$G$3)","v":0},{"$f":"SUMIFS(TabBDMenus[Quantité légume],TabBDMenus[Nom légume],$A8,TabBDMenus[Nom mois menu],$H$3)+SUMIFS(TabBDMenus[Quantité légume deux],TabBDMenus[Nom légume deux],$A8,TabBDMenus[Nom mois menu],$H$3)","v":0},{"$f":"SUMIFS(TabBDMenus[Quantité légume],TabBDMenus[Nom légume],$A8,TabBDMenus[Nom mois menu],$I$3)+SUMIFS(TabBDMenus[Quantité légume deux],TabBDMenus[Nom légume deux],$A8,TabBDMenus[Nom mois menu],$I$3)","v":0},{"$f":"SUMIFS(TabBDMenus[Quantité légume],TabBDMenus[Nom légume],$A8,TabBDMenus[Nom mois menu],$J$3)+SUMIFS(TabBDMenus[Quantité légume deux],TabBDMenus[Nom légume deux],$A8,TabBDMenus[Nom mois menu],$J$3)","v":0},{"$f":"SUMIFS(TabBDMenus[Quantité légume],TabBDMenus[Nom légume],$A8,TabBDMenus[Nom mois menu],$K$3)+SUMIFS(TabBDMenus[Quantité légume deux],TabBDMenus[Nom légume deux],$A8,TabBDMenus[Nom mois menu],$K$3)","v":0},{"$f":"SUMIFS(TabBDMenus[Quantité légume],TabBDMenus[Nom légume],$A8,TabBDMenus[Nom mois menu],$L$3)+SUMIFS(TabBDMenus[Quantité légume deux],TabBDMenus[Nom légume deux],$A8,TabBDMenus[Nom mois menu],$L$3)","v":0},{"$f":"SUMIFS(TabBDMenus[Quantité légume],TabBDMenus[Nom légume],$A8,TabBDMenus[Nom mois menu],$M$3)+SUMIFS(TabBDMenus[Quantité légume deux],TabBDMenus[Nom légume deux],$A8,TabBDMenus[Nom mois menu],$M$3)","v":0},0]
["Céleri",{"$f":"SUMIFS(TabBDMenus[Quantité légume],TabBDMenus[Nom légume],$A9,TabBDMenus[Nom mois menu],$B$3)+SUMIFS(TabBDMenus[Quantité légume deux],TabBDMenus[Nom légume deux],$A9,TabBDMenus[Nom mois menu],$B$3)","v":0},{"$f":"SUMIFS(TabBDMenus[Quantité légume],TabBDMenus[Nom légume],$A9,TabBDMenus[Nom mois menu],$C$3)+SUMIFS(TabBDMenus[Quantité légume deux],TabBDMenus[Nom légume deux],$A9,TabBDMenus[Nom mois menu],$C$3)","v":0},{"$f":"SUMIFS(TabBDMenus[Quantité légume],TabBDMenus[Nom légume],$A9,TabBDMenus[Nom mois menu],$D$3)+SUMIFS(TabBDMenus[Quantité légume deux],TabBDMenus[Nom légume deux],$A9,TabBDMenus[Nom mois menu],$D$3)","v":0},{"$f":"SUMIFS(TabBDMenus[Quantité légume],TabBDMenus[Nom légume],$A9,TabBDMenus[Nom mois menu],$E$3)+SUMIFS(TabBDMenus[Quantité légume deux],TabBDMenus[Nom légume deux],$A9,TabBDMenus[Nom mois menu],$E$3)","v":0},{"$f":"SUMIFS(TabBDMenus[Quantité légume],TabBDMenus[Nom légume],$A9,TabBDMenus[Nom mois menu],$F$3)+SUMIFS(TabBDMenus[Quantité légume deux],TabBDMenus[Nom légume deux],$A9,TabBDMenus[Nom mois menu],$F$3)","v":0},{"$f":"SUMIFS(TabBDMenus[Quantité légume],TabBDMenus[Nom légume],$A9,TabBDMenus[Nom mois menu],$G$3)+SUMIFS(TabBDMenus[Quantité légume deux],TabBDMenus[Nom légume deux],$A9,TabBDMenus[Nom mois menu],$G$3)","v":0},{"$f":"SUMIFS(TabBDMenus[Quantité légume],TabBDMenus[Nom légume],$A9,TabBDMenus[Nom mois menu],$H$3)+SUMIFS(TabBDMenus[Quantité légume deux],TabBDMenus[Nom légume deux],$A9,TabBDMenus[Nom mois menu],$H$3)","v":0},{"$f":"SUMIFS(TabBDMenus[Quantité légume],TabBDMenus[Nom légume],$A9,TabBDMenus[Nom mois menu],$I$3)+SUMIFS(TabBDMenus[Quantité légume deux],TabBDMenus[Nom légume deux],$A9,TabBDMenus[Nom mois menu],$I$3)","v":0},{"$f":"SUMIFS(TabBDMenus[Quantité légume],TabBDMenus[Nom légume],$A9,TabBDMenus[Nom mois menu],$J$3)+SUMIFS(TabBDMenus[Quantité légume deux],TabBDMenus[Nom légume deux],$A9,TabBDMenus[Nom mois menu],$J$3)","v":0},{"$f":"SUMIFS(TabBDMenus[Quantité légume],TabBDMenus[Nom légume],$A9,TabBDMenus[Nom mois menu],$K$3)+SUMIFS(TabBDMenus[Quantité légume deux],TabBDMenus[Nom légume deux],$A9,TabBDMenus[Nom mois menu],$K$3)","v":0},{"$f":"SUMIFS(TabBDMenus[Quantité légume],TabBDMenus[Nom légume],$A9,TabBDMenus[Nom mois menu],$L$3)+SUMIFS(TabBDMenus[Quantité légume deux],TabBDMenus[Nom légume deux],$A9,TabBDMenus[Nom mois menu],$L$3)","v":0},{"$f":"SUMIFS(TabBDMenus[Quantité légume],TabBDMenus[Nom légume],$A9,TabBDMenus[Nom mois menu],$M$3)+SUMIFS(TabBDMenus[Quantité légume deux],TabBDMenus[Nom légume deux],$A9,TabBDMenus[Nom mois menu],$M$3)","v":0},0]
["Champignons",{"$f":"SUMIFS(TabBDMenus[Quantité légume],TabBDMenus[Nom légume],$A10,TabBDMenus[Nom mois menu],$B$3)+SUMIFS(TabBDMenus[Quantité légume deux],TabBDMenus[Nom légume deux],$A10,TabBDMenus[Nom mois menu],$B$3)","v":0},{"$f":"SUMIFS(TabBDMenus[Quantité légume],TabBDMenus[Nom légume],$A10,TabBDMenus[Nom mois menu],$C$3)+SUMIFS(TabBDMenus[Quantité légume deux],TabBDMenus[Nom légume deux],$A10,TabBDMenus[Nom mois menu],$C$3)","v":0},{"$f":"SUMIFS(TabBDMenus[Quantité légume],TabBDMenus[Nom légume],$A10,TabBDMenus[Nom mois menu],$D$3)+SUMIFS(TabBDMenus[Quantité légume deux],TabBDMenus[Nom légume deux],$A10,TabBDMenus[Nom mois menu],$D$3)","v":0},{"$f":"SUMIFS(TabBDMenus[Quantité légume],TabBDMenus[Nom légume],$A10,TabBDMenus[Nom mois menu],$E$3)+SUMIFS(TabBDMenus[Quantité légume deux],TabBDMenus[Nom légume deux],$A10,TabBDMenus[Nom mois menu],$E$3)","v":0},{"$f":"SUMIFS(TabBDMenus[Quantité légume],TabBDMenus[Nom légume],$A10,TabBDMenus[Nom mois menu],$F$3)+SUMIFS(TabBDMenus[Quantité légume deux],TabBDMenus[Nom légume deux],$A10,TabBDMenus[Nom mois menu],$F$3)","v":0},{"$f":"SUMIFS(TabBDMenus[Quantité légume],TabBDMenus[Nom légume],$A10,TabBDMenus[Nom mois menu],$G$3)+SUMIFS(TabBDMenus[Quantité légume deux],TabBDMenus[Nom légume deux],$A10,TabBDMenus[Nom mois menu],$G$3)","v":0},{"$f":"SUMIFS(TabBDMenus[Quantité légume],TabBDMenus[Nom légume],$A10,TabBDMenus[Nom mois menu],$H$3)+SUMIFS(TabBDMenus[Quantité légume deux],TabBDMenus[Nom légume deux],$A10,TabBDMenus[Nom mois menu],$H$3)","v":0},{"$f":"SUMIFS(TabBDMenus[Quantité légume],TabBDMenus[Nom légume],$A10,TabBDMenus[Nom mois menu],$I$3)+SUMIFS(TabBDMenus[Quantité légume deux],TabBDMenus[Nom légume deux],$A10,TabBDMenus[Nom mois menu],$I$3)","v":0},{"$f":"SUMIFS(TabBDMenus[Quantité légume],TabBDMenus[Nom légume],$A10,TabBDMenus[Nom mois menu],$J$3)+SUMIFS(TabBDMenus[Quantité légume deux],TabBDMenus[Nom légume deux],$A10,TabBDMenus[Nom mois menu],$J$3)","v":0},{"$f":"SUMIFS(TabBDMenus[Quantité légume],TabBDMenus[Nom légume],$A10,TabBDMenus[Nom mois menu],$K$3)+SUMIFS(TabBDMenus[Quantité légume deux],TabBDMenus[Nom légume deux],$A10,TabBDMenus[Nom mois menu],$K$3)","v":0},{"$f":"SUMIFS(TabBDMenus[Quantité légume],TabBDMenus[Nom légume],$A10,TabBDMenus[Nom mois menu],$L$3)+SUMIFS(TabBDMenus[Quantité légume deux],TabBDMenus[Nom légume deux],$A10,TabBDMenus[Nom mois menu],$L$3)","v":0},{"$f":"SUMIFS(TabBDMenus[Quantité légume],TabBDMenus[Nom légume],$A10,TabBDMenus[Nom mois menu],$M$3)+SUMIFS(TabBDMenus[Quantité légume deux],TabBDMenus[Nom légume deux],$A10,TabBDMenus[Nom mois menu],$M$3)","v":0},0]
["Chips",{"$f":"SUMIFS(TabBDMenus[Quantité légume],TabBDMenus[Nom légume],$A11,TabBDMenus[Nom mois menu],$B$3)+SUMIFS(TabBDMenus[Quantité légume deux],TabBDMenus[Nom légume deux],$A11,TabBDMenus[Nom mois menu],$B$3)","v":0},{"$f":"SUMIFS(TabBDMenus[Quantité légume],TabBDMenus[Nom légume],$A11,TabBDMenus[Nom mois menu],$C$3)+SUMIFS(TabBDMenus[Quantité légume deux],TabBDMenus[Nom légume deux],$A11,TabBDMenus[Nom mois menu],$C$3)","v":0},{"$f":"SUMIFS(TabBDMenus[Quantité légume],TabBDMenus[Nom légume],$A11,TabBDMenus[Nom mois menu],$D$3)+SUMIFS(TabBDMenus[Quantité légume deux],TabBDMenus[Nom légume deux],$A11,TabBDMenus[Nom mois menu],$D$3)","v":0},{"$f":"SUMIFS(TabBDMenus[Quantité légume],TabBDMenus[Nom légume],$A11,TabBDMenus[Nom mois menu],$E$3)+SUMIFS(TabBDMenus[Quantité légume deux],TabBDMenus[Nom légume deux],$A11,TabBDMenus[Nom mois menu],$E$3)","v":0},{"$f":"SUMIFS(TabBDMenus[Quantité légume],TabBDMenus[Nom légume],$A11,TabBDMenus[Nom mois menu],$F$3)+SUMIFS(TabBDMenus[Quantité légume deux],TabBDMenus[Nom légume deux],$A11,TabBDMenus[Nom mois menu],$F$3)","v":0},{"$f":"SUMIFS(TabBDMenus[Quantité légume],TabBDMenus[Nom légume],$A11,TabBDMenus[Nom mois menu],$G$3)+SUMIFS(TabBDMenus[Quantité légume deux],TabBDMenus[Nom légume deux],$A11,TabBDMenus[Nom mois menu],$G$3)","v":0},{"$f":"SUMIFS(TabBDMenus[Quantité légume],TabBDMenus[Nom légume],$A11,TabBDMenus[Nom mois menu],$H$3)+SUMIFS(TabBDMenus[Quantité légume deux],TabBDMenus[Nom légume deux],$A11,TabBDMenus[Nom mois menu],$H$3)","v":0},{"$f":"SUMIFS(TabBDMenus[Quantité légume],TabBDMenus[Nom légume],$A11,TabBDMenus[Nom mois menu],$I$3)+SUMIFS(TabBDMenus[Quantité légume deux],TabBDMenus[Nom légume deux],$A11,TabBDMenus[Nom mois menu],$I$3)","v":0},{"$f":"SUMIFS(TabBDMenus[Quantité légume],TabBDMenus[Nom légume],$A11,TabBDMenus[Nom mois menu],$J$3)+SUMIFS(TabBDMenus[Quantité légume deux],TabBDMenus[Nom légume deux],$A11,TabBDMenus[Nom mois menu],$J$3)","v":0},{"$f":"SUMIFS(TabBDMenus[Quantité légume],TabBDMenus[Nom légume],$A11,TabBDMenus[Nom mois menu],$K$3)+SUMIFS(TabBDMenus[Quantité légume deux],TabBDMenus[Nom légume deux],$A11,TabBDMenus[Nom mois menu],$K$3)","v":0},{"$f":"SUMIFS(TabBDMenus[Quantité légume],TabBDMenus[Nom légume],$A11,TabBDMenus[Nom mois menu],$L$3)+SUMIFS(TabBDMenus[Quantité légume deux],TabBDMenus[Nom légume deux],$A11,TabBDMenus[Nom mois menu],$L$3)","v":0},{"$f":"SUMIFS(TabBDMenus[Quantité légume],TabBDMenus[Nom légume],$A11,TabBDMenus[Nom mois menu],$M$3)+SUMIFS(TabBDMenus[Quantité légume deux],TabBDMenus[Nom légume deux],$A11,TabBDMenus[Nom mois menu],$M$3)","v":0},0]
["Choucroute",{"$f":"SUMIFS(TabBDMenus[Quantité légume],TabBDMenus[Nom légume],$A12,TabBDMenus[Nom mois menu],$B$3)+SUMIFS(TabBDMenus[Quantité légume deux],TabBDMenus[Nom légume deux],$A12,TabBDMenus[Nom mois menu],$B$3)","v":0},{"$f":"SUMIFS(TabBDMenus[Quantité légume],TabBDMenus[Nom légume],$A12,TabBDMenus[Nom mois menu],$C$3)+SUMIFS(TabBDMenus[Quantité légume deux],TabBDMenus[Nom légume deux],$A12,TabBDMenus[Nom mois menu],$C$3)","v":0},{"$f":"SUMIFS(TabBDMenus[Quantité légume],TabBDMenus[Nom légume],$A12,TabBDMenus[Nom mois menu],$D$3)+SUMIFS(TabBDMenus[Quantité légume deux],TabBDMenus[Nom légume deux],$A12,TabBDMenus[Nom mois menu],$D$3)","v":0},{"$f":"SUMIFS(TabBDMenus[Quantité légume],TabBDMenus[Nom légume],$A12,TabBDMenus[Nom mois menu],$E$3)+SUMIFS(TabBDMenus[Quantité légume deux],TabBDMenus[Nom légume deux],$A12,TabBDMenus[Nom mois menu],$E$3)","v":0},{"$f":"SUMIFS(TabBDMenus[Quantité légume],TabBDMenus[Nom légume],$A12,TabBDMenus[Nom mois menu],$F$3)+SUMIFS(TabBDMenus[Quantité légume deux],TabBDMenus[Nom légume deux],$A12,TabBDMenus[Nom mois menu],$F$3)","v":0},{"$f":"SUMIFS(TabBDMenus[Quantité légume],TabBDMenus[Nom légume],$A12,TabBDMenus[Nom mois menu],$G$3)+SUMIFS(TabBDMenus[Quantité légume deux],TabBDMenus[Nom légume deux],$A12,TabBDMenus[Nom mois menu],$G$3)","v":0},{"$f":"SUMIFS(TabBDMenus[Quantité légume],TabBDMenus[Nom légume],$A12,TabBDMenus[Nom mois menu],$H$3)+SUMIFS(TabBDMenus[Quantité légume deux],TabBDMenus[Nom légume deux],$A12,TabBDMenus[Nom mois menu],$H$3)","v":0},{"$f":"SUMIFS(TabBDMenus[Quantité légume],TabBDMenus[Nom légume],$A12,TabBDMenus[Nom mois menu],$I$3)+SUMIFS(TabBDMenus[Quantité légume deux],TabBDMenus[Nom légume deux],$A12,TabBDMenus[Nom mois menu],$I$3)","v":0},{"$f":"SUMIFS(TabBDMenus[Quantité légume],TabBDMenus[Nom légume],$A12,TabBDMenus[Nom mois menu],$J$3)+SUMIFS(TabBDMenus[Quantité légume deux],TabBDMenus[Nom légume deux],$A12,TabBDMenus[Nom mois menu],$J$3)","v":0},{"$f":"SUMIFS(TabBDMenus[Quantité légume],TabBDMenus[Nom légume],$A12,TabBDMenus[Nom mois menu],$K$3)+SUMIFS(TabBDMenus[Quantité légume deux],TabBDMenus[Nom légume deux],$A12,TabBDMenus[Nom mois menu],$K$3)","v":0},{"$f":"SUMIFS(TabBDMenus[Quantité légume],TabBDMenus[Nom légume],$A12,TabBDMenus[Nom mois menu],$L$3)+SUMIFS(TabBDMenus[Quantité légume deux],TabBDMenus[Nom légume deux],$A12,TabBDMenus[Nom mois menu],$L$3)","v":0},{"$f":"SUMIFS(TabBDMenus[Quantité légume],TabBDMenus[Nom légume],$A12,TabBDMenus[Nom mois menu],$M$3)+SUMIFS(TabBDMenus[Quantité légume deux],TabBDMenus[Nom légume deux],$A12,TabBDMenus[Nom mois menu],$M$3)","v":0},0]
["Chou-fleur",{"$f":"SUMIFS(TabBDMenus[Quantité légume],TabBDMenus[Nom légume],$A13,TabBDMenus[Nom mois menu],$B$3)+SUMIFS(TabBDMenus[Quantité légume deux],TabBDMenus[Nom légume deux],$A13,TabBDMenus[Nom mois menu],$B$3)","v":0},{"$f":"SUMIFS(TabBDMenus[Quantité légume],TabBDMenus[Nom légume],$A13,TabBDMenus[Nom mois menu],$C$3)+SUMIFS(TabBDMenus[Quantité légume deux],TabBDMenus[Nom légume deux],$A13,TabBDMenus[Nom mois menu],$C$3)","v":0},{"$f":"SUMIFS(TabBDMenus[Quantité légume],TabBDMenus[Nom légume],$A13,TabBDMenus[Nom mois menu],$D$3)+SUMIFS(TabBDMenus[Quantité légume deux],TabBDMenus[Nom légume deux],$A13,TabBDMenus[Nom mois menu],$D$3)","v":0},{"$f":"SUMIFS(TabBDMenus[Quantité légume],TabBDMenus[Nom légume],$A13,TabBDMenus[Nom mois menu],$E$3)+SUMIFS(TabBDMenus[Quantité légume deux],TabBDMenus[Nom légume deux],$A13,TabBDMenus[Nom mois menu],$E$3)","v":0},{"$f":"SUMIFS(TabBDMenus[Quantité légume],TabBDMenus[Nom légume],$A13,TabBDMenus[Nom mois menu],$F$3)+SUMIFS(TabBDMenus[Quantité légume deux],TabBDMenus[Nom légume deux],$A13,TabBDMenus[Nom mois menu],$F$3)","v":0},{"$f":"SUMIFS(TabBDMenus[Quantité légume],TabBDMenus[Nom légume],$A13,TabBDMenus[Nom mois menu],$G$3)+SUMIFS(TabBDMenus[Quantité légume deux],TabBDMenus[Nom légume deux],$A13,TabBDMenus[Nom mois menu],$G$3)","v":0},{"$f":"SUMIFS(TabBDMenus[Quantité légume],TabBDMenus[Nom légume],$A13,TabBDMenus[Nom mois menu],$H$3)+SUMIFS(TabBDMenus[Quantité légume deux],TabBDMenus[Nom légume deux],$A13,TabBDMenus[Nom mois menu],$H$3)","v":0},{"$f":"SUMIFS(TabBDMenus[Quantité légume],TabBDMenus[Nom légume],$A13,TabBDMenus[Nom mois menu],$I$3)+SUMIFS(TabBDMenus[Quantité légume deux],TabBDMenus[Nom légume deux],$A13,TabBDMenus[Nom mois menu],$I$3)","v":0},{"$f":"SUMIFS(TabBDMenus[Quantité légume],TabBDMenus[Nom légume],$A13,TabBDMenus[Nom mois menu],$J$3)+SUMIFS(TabBDMenus[Quantité légume deux],TabBDMenus[Nom légume deux],$A13,TabBDMenus[Nom mois menu],$J$3)","v":0},{"$f":"SUMIFS(TabBDMenus[Quantité légume],TabBDMenus[Nom légume],$A13,TabBDMenus[Nom mois menu],$K$3)+SUMIFS(TabBDMenus[Quantité légume deux],TabBDMenus[Nom légume deux],$A13,TabBDMenus[Nom mois menu],$K$3)","v":0},{"$f":"SUMIFS(TabBDMenus[Quantité légume],TabBDMenus[Nom légume],$A13,TabBDMenus[Nom mois menu],$L$3)+SUMIFS(TabBDMenus[Quantité légume deux],TabBDMenus[Nom légume deux],$A13,TabBDMenus[Nom mois menu],$L$3)","v":0},{"$f":"SUMIFS(TabBDMenus[Quantité légume],TabBDMenus[Nom légume],$A13,TabBDMenus[Nom mois menu],$M$3)+SUMIFS(TabBDMenus[Quantité légume deux],TabBDMenus[Nom légume deux],$A13,TabBDMenus[Nom mois menu],$M$3)","v":0},0]
["Choux de Bruxelles",{"$f":"SUMIFS(TabBDMenus[Quantité légume],TabBDMenus[Nom légume],$A14,TabBDMenus[Nom mois menu],$B$3)+SUMIFS(TabBDMenus[Quantité légume deux],TabBDMenus[Nom légume deux],$A14,TabBDMenus[Nom mois menu],$B$3)","v":0},{"$f":"SUMIFS(TabBDMenus[Quantité légume],TabBDMenus[Nom légume],$A14,TabBDMenus[Nom mois menu],$C$3)+SUMIFS(TabBDMenus[Quantité légume deux],TabBDMenus[Nom légume deux],$A14,TabBDMenus[Nom mois menu],$C$3)","v":0},{"$f":"SUMIFS(TabBDMenus[Quantité légume],TabBDMenus[Nom légume],$A14,TabBDMenus[Nom mois menu],$D$3)+SUMIFS(TabBDMenus[Quantité légume deux],TabBDMenus[Nom légume deux],$A14,TabBDMenus[Nom mois menu],$D$3)","v":0},{"$f":"SUMIFS(TabBDMenus[Quantité légume],TabBDMenus[Nom légume],$A14,TabBDMenus[Nom mois menu],$E$3)+SUMIFS(TabBDMenus[Quantité légume deux],TabBDMenus[Nom légume deux],$A14,TabBDMenus[Nom mois menu],$E$3)","v":0},{"$f":"SUMIFS(TabBDMenus[Quantité légume],TabBDMenus[Nom légume],$A14,TabBDMenus[Nom mois menu],$F$3)+SUMIFS(TabBDMenus[Quantité légume deux],TabBDMenus[Nom légume deux],$A14,TabBDMenus[Nom mois menu],$F$3)","v":0},{"$f":"SUMIFS(TabBDMenus[Quantité légume],TabBDMenus[Nom légume],$A14,TabBDMenus[Nom mois menu],$G$3)+SUMIFS(TabBDMenus[Quantité légume deux],TabBDMenus[Nom légume deux],$A14,TabBDMenus[Nom mois menu],$G$3)","v":0},{"$f":"SUMIFS(TabBDMenus[Quantité légume],TabBDMenus[Nom légume],$A14,TabBDMenus[Nom mois menu],$H$3)+SUMIFS(TabBDMenus[Quantité légume deux],TabBDMenus[Nom légume deux],$A14,TabBDMenus[Nom mois menu],$H$3)","v":0},{"$f":"SUMIFS(TabBDMenus[Quantité légume],TabBDMenus[Nom légume],$A14,TabBDMenus[Nom mois menu],$I$3)+SUMIFS(TabBDMenus[Quantité légume deux],TabBDMenus[Nom légume deux],$A14,TabBDMenus[Nom mois menu],$I$3)","v":0},{"$f":"SUMIFS(TabBDMenus[Quantité légume],TabBDMenus[Nom légume],$A14,TabBDMenus[Nom mois menu],$J$3)+SUMIFS(TabBDMenus[Quantité légume deux],TabBDMenus[Nom légume deux],$A14,TabBDMenus[Nom mois menu],$J$3)","v":0},{"$f":"SUMIFS(TabBDMenus[Quantité légume],TabBDMenus[Nom légume],$A14,TabBDMenus[Nom mois menu],$K$3)+SUMIFS(TabBDMenus[Quantité légume deux],TabBDMenus[Nom légume deux],$A14,TabBDMenus[Nom mois menu],$K$3)","v":0},{"$f":"SUMIFS(TabBDMenus[Quantité légume],TabBDMenus[Nom légume],$A14,TabBDMenus[Nom mois menu],$L$3)+SUMIFS(TabBDMenus[Quantité légume deux],TabBDMenus[Nom légume deux],$A14,TabBDMenus[Nom mois menu],$L$3)","v":0},{"$f":"SUMIFS(TabBDMenus[Quantité légume],TabBDMenus[Nom légume],$A14,TabBDMenus[Nom mois menu],$M$3)+SUMIFS(TabBDMenus[Quantité légume deux],TabBDMenus[Nom légume deux],$A14,TabBDMenus[Nom mois menu],$M$3)","v":0},0]
["Concombre",{"$f":"SUMIFS(TabBDMenus[Quantité légume],TabBDMenus[Nom légume],$A15,TabBDMenus[Nom mois menu],$B$3)+SUMIFS(TabBDMenus[Quantité légume deux],TabBDMenus[Nom légume deux],$A15,TabBDMenus[Nom mois menu],$B$3)","v":0},{"$f":"SUMIFS(TabBDMenus[Quantité légume],TabBDMenus[Nom légume],$A15,TabBDMenus[Nom mois menu],$C$3)+SUMIFS(TabBDMenus[Quantité légume deux],TabBDMenus[Nom légume deux],$A15,TabBDMenus[Nom mois menu],$C$3)","v":0},{"$f":"SUMIFS(TabBDMenus[Quantité légume],TabBDMenus[Nom légume],$A15,TabBDMenus[Nom mois menu],$D$3)+SUMIFS(TabBDMenus[Quantité légume deux],TabBDMenus[Nom légume deux],$A15,TabBDMenus[Nom mois menu],$D$3)","v":0},{"$f":"SUMIFS(TabBDMenus[Quantité légume],TabBDMenus[Nom légume],$A15,TabBDMenus[Nom mois menu],$E$3)+SUMIFS(TabBDMenus[Quantité légume deux],TabBDMenus[Nom légume deux],$A15,TabBDMenus[Nom mois menu],$E$3)","v":0},{"$f":"SUMIFS(TabBDMenus[Quantité légume],TabBDMenus[Nom légume],$A15,TabBDMenus[Nom mois menu],$F$3)+SUMIFS(TabBDMenus[Quantité légume deux],TabBDMenus[Nom légume deux],$A15,TabBDMenus[Nom mois menu],$F$3)","v":0},{"$f":"SUMIFS(TabBDMenus[Quantité légume],TabBDMenus[Nom légume],$A15,TabBDMenus[Nom mois menu],$G$3)+SUMIFS(TabBDMenus[Quantité légume deux],TabBDMenus[Nom légume deux],$A15,TabBDMenus[Nom mois menu],$G$3)","v":0},{"$f":"SUMIFS(TabBDMenus[Quantité légume],TabBDMenus[Nom légume],$A15,TabBDMenus[Nom mois menu],$H$3)+SUMIFS(TabBDMenus[Quantité légume deux],TabBDMenus[Nom légume deux],$A15,TabBDMenus[Nom mois menu],$H$3)","v":0},{"$f":"SUMIFS(TabBDMenus[Quantité légume],TabBDMenus[Nom légume],$A15,TabBDMenus[Nom mois menu],$I$3)+SUMIFS(TabBDMenus[Quantité légume deux],TabBDMenus[Nom légume deux],$A15,TabBDMenus[Nom mois menu],$I$3)","v":0},{"$f":"SUMIFS(TabBDMenus[Quantité légume],TabBDMenus[Nom légume],$A15,TabBDMenus[Nom mois menu],$J$3)+SUMIFS(TabBDMenus[Quantité légume deux],TabBDMenus[Nom légume deux],$A15,TabBDMenus[Nom mois menu],$J$3)","v":0},{"$f":"SUMIFS(TabBDMenus[Quantité légume],TabBDMenus[Nom légume],$A15,TabBDMenus[Nom mois menu],$K$3)+SUMIFS(TabBDMenus[Quantité légume deux],TabBDMenus[Nom légume deux],$A15,TabBDMenus[Nom mois menu],$K$3)","v":0},{"$f":"SUMIFS(TabBDMenus[Quantité légume],TabBDMenus[Nom légume],$A15,TabBDMenus[Nom mois menu],$L$3)+SUMIFS(TabBDMenus[Quantité légume deux],TabBDMenus[Nom légume deux],$A15,TabBDMenus[Nom mois menu],$L$3)","v":0},{"$f":"SUMIFS(TabBDMenus[Quantité légume],TabBDMenus[Nom légume],$A15,TabBDMenus[Nom mois menu],$M$3)+SUMIFS(TabBDMenus[Quantité légume deux],TabBDMenus[Nom légume deux],$A15,TabBDMenus[Nom mois menu],$M$3)","v":0},0]
["Couscous",{"$f":"SUMIFS(TabBDMenus[Quantité légume],TabBDMenus[Nom légume],$A16,TabBDMenus[Nom mois menu],$B$3)+SUMIFS(TabBDMenus[Quantité légume deux],TabBDMenus[Nom légume deux],$A16,TabBDMenus[Nom mois menu],$B$3)","v":0},{"$f":"SUMIFS(TabBDMenus[Quantité légume],TabBDMenus[Nom légume],$A16,TabBDMenus[Nom mois menu],$C$3)+SUMIFS(TabBDMenus[Quantité légume deux],TabBDMenus[Nom légume deux],$A16,TabBDMenus[Nom mois menu],$C$3)","v":0},{"$f":"SUMIFS(TabBDMenus[Quantité légume],TabBDMenus[Nom légume],$A16,TabBDMenus[Nom mois menu],$D$3)+SUMIFS(TabBDMenus[Quantité légume deux],TabBDMenus[Nom légume deux],$A16,TabBDMenus[Nom mois menu],$D$3)","v":0},{"$f":"SUMIFS(TabBDMenus[Quantité légume],TabBDMenus[Nom légume],$A16,TabBDMenus[Nom mois menu],$E$3)+SUMIFS(TabBDMenus[Quantité légume deux],TabBDMenus[Nom légume deux],$A16,TabBDMenus[Nom mois menu],$E$3)","v":0},{"$f":"SUMIFS(TabBDMenus[Quantité légume],TabBDMenus[Nom légume],$A16,TabBDMenus[Nom mois menu],$F$3)+SUMIFS(TabBDMenus[Quantité légume deux],TabBDMenus[Nom légume deux],$A16,TabBDMenus[Nom mois menu],$F$3)","v":0},{"$f":"SUMIFS(TabBDMenus[Quantité légume],TabBDMenus[Nom légume],$A16,TabBDMenus[Nom mois menu],$G$3)+SUMIFS(TabBDMenus[Quantité légume deux],TabBDMenus[Nom légume deux],$A16,TabBDMenus[Nom mois menu],$G$3)","v":0},{"$f":"SUMIFS(TabBDMenus[Quantité légume],TabBDMenus[Nom légume],$A16,TabBDMenus[Nom mois menu],$H$3)+SUMIFS(TabBDMenus[Quantité légume deux],TabBDMenus[Nom légume deux],$A16,TabBDMenus[Nom mois menu],$H$3)","v":0},{"$f":"SUMIFS(TabBDMenus[Quantité légume],TabBDMenus[Nom légume],$A16,TabBDMenus[Nom mois menu],$I$3)+SUMIFS(TabBDMenus[Quantité légume deux],TabBDMenus[Nom légume deux],$A16,TabBDMenus[Nom mois menu],$I$3)","v":0},{"$f":"SUMIFS(TabBDMenus[Quantité légume],TabBDMenus[Nom légume],$A16,TabBDMenus[Nom mois menu],$J$3)+SUMIFS(TabBDMenus[Quantité légume deux],TabBDMenus[Nom légume deux],$A16,TabBDMenus[Nom mois menu],$J$3)","v":0},{"$f":"SUMIFS(TabBDMenus[Quantité légume],TabBDMenus[Nom légume],$A16,TabBDMenus[Nom mois menu],$K$3)+SUMIFS(TabBDMenus[Quantité légume deux],TabBDMenus[Nom légume deux],$A16,TabBDMenus[Nom mois menu],$K$3)","v":0},{"$f":"SUMIFS(TabBDMenus[Quantité légume],TabBDMenus[Nom légume],$A16,TabBDMenus[Nom mois menu],$L$3)+SUMIFS(TabBDMenus[Quantité légume deux],TabBDMenus[Nom légume deux],$A16,TabBDMenus[Nom mois menu],$L$3)","v":0},{"$f":"SUMIFS(TabBDMenus[Quantité légume],TabBDMenus[Nom légume],$A16,TabBDMenus[Nom mois menu],$M$3)+SUMIFS(TabBDMenus[Quantité légume deux],TabBDMenus[Nom légume deux],$A16,TabBDMenus[Nom mois menu],$M$3)","v":0},0]
["Endives",{"$f":"SUMIFS(TabBDMenus[Quantité légume],TabBDMenus[Nom légume],$A17,TabBDMenus[Nom mois menu],$B$3)+SUMIFS(TabBDMenus[Quantité légume deux],TabBDMenus[Nom légume deux],$A17,TabBDMenus[Nom mois menu],$B$3)","v":0},{"$f":"SUMIFS(TabBDMenus[Quantité légume],TabBDMenus[Nom légume],$A17,TabBDMenus[Nom mois menu],$C$3)+SUMIFS(TabBDMenus[Quantité légume deux],TabBDMenus[Nom légume deux],$A17,TabBDMenus[Nom mois menu],$C$3)","v":0},{"$f":"SUMIFS(TabBDMenus[Quantité légume],TabBDMenus[Nom légume],$A17,TabBDMenus[Nom mois menu],$D$3)+SUMIFS(TabBDMenus[Quantité légume deux],TabBDMenus[Nom légume deux],$A17,TabBDMenus[Nom mois menu],$D$3)","v":0},{"$f":"SUMIFS(TabBDMenus[Quantité légume],TabBDMenus[Nom légume],$A17,TabBDMenus[Nom mois menu],$E$3)+SUMIFS(TabBDMenus[Quantité légume deux],TabBDMenus[Nom légume deux],$A17,TabBDMenus[Nom mois menu],$E$3)","v":0},{"$f":"SUMIFS(TabBDMenus[Quantité légume],TabBDMenus[Nom légume],$A17,TabBDMenus[Nom mois menu],$F$3)+SUMIFS(TabBDMenus[Quantité légume deux],TabBDMenus[Nom légume deux],$A17,TabBDMenus[Nom mois menu],$F$3)","v":0},{"$f":"SUMIFS(TabBDMenus[Quantité légume],TabBDMenus[Nom légume],$A17,TabBDMenus[Nom mois menu],$G$3)+SUMIFS(TabBDMenus[Quantité légume deux],TabBDMenus[Nom légume deux],$A17,TabBDMenus[Nom mois menu],$G$3)","v":0},{"$f":"SUMIFS(TabBDMenus[Quantité légume],TabBDMenus[Nom légume],$A17,TabBDMenus[Nom mois menu],$H$3)+SUMIFS(TabBDMenus[Quantité légume deux],TabBDMenus[Nom légume deux],$A17,TabBDMenus[Nom mois menu],$H$3)","v":0},{"$f":"SUMIFS(TabBDMenus[Quantité légume],TabBDMenus[Nom légume],$A17,TabBDMenus[Nom mois menu],$I$3)+SUMIFS(TabBDMenus[Quantité légume deux],TabBDMenus[Nom légume deux],$A17,TabBDMenus[Nom mois menu],$I$3)","v":0},{"$f":"SUMIFS(TabBDMenus[Quantité légume],TabBDMenus[Nom légume],$A17,TabBDMenus[Nom mois menu],$J$3)+SUMIFS(TabBDMenus[Quantité légume deux],TabBDMenus[Nom légume deux],$A17,TabBDMenus[Nom mois menu],$J$3)","v":0},{"$f":"SUMIFS(TabBDMenus[Quantité légume],TabBDMenus[Nom légume],$A17,TabBDMenus[Nom mois menu],$K$3)+SUMIFS(TabBDMenus[Quantité légume deux],TabBDMenus[Nom légume deux],$A17,TabBDMenus[Nom mois menu],$K$3)","v":0},{"$f":"SUMIFS(TabBDMenus[Quantité légume],TabBDMenus[Nom légume],$A17,TabBDMenus[Nom mois menu],$L$3)+SUMIFS(TabBDMenus[Quantité légume deux],TabBDMenus[Nom légume deux],$A17,TabBDMenus[Nom mois menu],$L$3)","v":0},{"$f":"SUMIFS(TabBDMenus[Quantité légume],TabBDMenus[Nom légume],$A17,TabBDMenus[Nom mois menu],$M$3)+SUMIFS(TabBDMenus[Quantité légume deux],TabBDMenus[Nom légume deux],$A17,TabBDMenus[Nom mois menu],$M$3)","v":0},0]
["Frites",{"$f":"SUMIFS(TabBDMenus[Quantité légume],TabBDMenus[Nom légume],$A18,TabBDMenus[Nom mois menu],$B$3)+SUMIFS(TabBDMenus[Quantité légume deux],TabBDMenus[Nom légume deux],$A18,TabBDMenus[Nom mois menu],$B$3)","v":0},{"$f":"SUMIFS(TabBDMenus[Quantité légume],TabBDMenus[Nom légume],$A18,TabBDMenus[Nom mois menu],$C$3)+SUMIFS(TabBDMenus[Quantité légume deux],TabBDMenus[Nom légume deux],$A18,TabBDMenus[Nom mois menu],$C$3)","v":0},{"$f":"SUMIFS(TabBDMenus[Quantité légume],TabBDMenus[Nom légume],$A18,TabBDMenus[Nom mois menu],$D$3)+SUMIFS(TabBDMenus[Quantité légume deux],TabBDMenus[Nom légume deux],$A18,TabBDMenus[Nom mois menu],$D$3)","v":0},{"$f":"SUMIFS(TabBDMenus[Quantité légume],TabBDMenus[Nom légume],$A18,TabBDMenus[Nom mois menu],$E$3)+SUMIFS(TabBDMenus[Quantité légume deux],TabBDMenus[Nom légume deux],$A18,TabBDMenus[Nom mois menu],$E$3)","v":0},{"$f":"SUMIFS(TabBDMenus[Quantité légume],TabBDMenus[Nom légume],$A18,TabBDMenus[Nom mois menu],$F$3)+SUMIFS(TabBDMenus[Quantité légume deux],TabBDMenus[Nom légume deux],$A18,TabBDMenus[Nom mois menu],$F$3)","v":0},{"$f":"SUMIFS(TabBDMenus[Quantité légume],TabBDMenus[Nom légume],$A18,TabBDMenus[Nom mois menu],$G$3)+SUMIFS(TabBDMenus[Quantité légume deux],TabBDMenus[Nom légume deux],$A18,TabBDMenus[Nom mois menu],$G$3)","v":0},{"$f":"SUMIFS(TabBDMenus[Quantité légume],TabBDMenus[Nom légume],$A18,TabBDMenus[Nom mois menu],$H$3)+SUMIFS(TabBDMenus[Quantité légume deux],TabBDMenus[Nom légume deux],$A18,TabBDMenus[Nom mois menu],$H$3)","v":0},{"$f":"SUMIFS(TabBDMenus[Quantité légume],TabBDMenus[Nom légume],$A18,TabBDMenus[Nom mois menu],$I$3)+SUMIFS(TabBDMenus[Quantité légume deux],TabBDMenus[Nom légume deux],$A18,TabBDMenus[Nom mois menu],$I$3)","v":0},{"$f":"SUMIFS(TabBDMenus[Quantité légume],TabBDMenus[Nom légume],$A18,TabBDMenus[Nom mois menu],$J$3)+SUMIFS(TabBDMenus[Quantité légume deux],TabBDMenus[Nom légume deux],$A18,TabBDMenus[Nom mois menu],$J$3)","v":0},{"$f":"SUMIFS(TabBDMenus[Quantité légume],TabBDMenus[Nom légume],$A18,TabBDMenus[Nom mois menu],$K$3)+SUMIFS(TabBDMenus[Quantité légume deux],TabBDMenus[Nom légume deux],$A18,TabBDMenus[Nom mois menu],$K$3)","v":0},{"$f":"SUMIFS(TabBDMenus[Quantité légume],TabBDMenus[Nom légume],$A18,TabBDMenus[Nom mois menu],$L$3)+SUMIFS(TabBDMenus[Quantité légume deux],TabBDMenus[Nom légume deux],$A18,TabBDMenus[Nom mois menu],$L$3)","v":0},{"$f":"SUMIFS(TabBDMenus[Quantité légume],TabBDMenus[Nom légume],$A18,TabBDMenus[Nom mois menu],$M$3)+SUMIFS(TabBDMenus[Quantité légume deux],TabBDMenus[Nom légume deux],$A18,TabBDMenus[Nom mois menu],$M$3)","v":0},0]
["Haricots verts",{"$f":"SUMIFS(TabBDMenus[Quantité légume],TabBDMenus[Nom légume],$A19,TabBDMenus[Nom mois menu],$B$3)+SUMIFS(TabBDMenus[Quantité légume deux],TabBDMenus[Nom légume deux],$A19,TabBDMenus[Nom mois menu],$B$3)","v":0},{"$f":"SUMIFS(TabBDMenus[Quantité légume],TabBDMenus[Nom légume],$A19,TabBDMenus[Nom mois menu],$C$3)+SUMIFS(TabBDMenus[Quantité légume deux],TabBDMenus[Nom légume deux],$A19,TabBDMenus[Nom mois menu],$C$3)","v":0},{"$f":"SUMIFS(TabBDMenus[Quantité légume],TabBDMenus[Nom légume],$A19,TabBDMenus[Nom mois menu],$D$3)+SUMIFS(TabBDMenus[Quantité légume deux],TabBDMenus[Nom légume deux],$A19,TabBDMenus[Nom mois menu],$D$3)","v":0},{"$f":"SUMIFS(TabBDMenus[Quantité légume],TabBDMenus[Nom légume],$A19,TabBDMenus[Nom mois menu],$E$3)+SUMIFS(TabBDMenus[Quantité légume deux],TabBDMenus[Nom légume deux],$A19,TabBDMenus[Nom mois menu],$E$3)","v":0},{"$f":"SUMIFS(TabBDMenus[Quantité légume],TabBDMenus[Nom légume],$A19,TabBDMenus[Nom mois menu],$F$3)+SUMIFS(TabBDMenus[Quantité légume deux],TabBDMenus[Nom légume deux],$A19,TabBDMenus[Nom mois menu],$F$3)","v":0},{"$f":"SUMIFS(TabBDMenus[Quantité légume],TabBDMenus[Nom légume],$A19,TabBDMenus[Nom mois menu],$G$3)+SUMIFS(TabBDMenus[Quantité légume deux],TabBDMenus[Nom légume deux],$A19,TabBDMenus[Nom mois menu],$G$3)","v":0},{"$f":"SUMIFS(TabBDMenus[Quantité légume],TabBDMenus[Nom légume],$A19,TabBDMenus[Nom mois menu],$H$3)+SUMIFS(TabBDMenus[Quantité légume deux],TabBDMenus[Nom légume deux],$A19,TabBDMenus[Nom mois menu],$H$3)","v":0},{"$f":"SUMIFS(TabBDMenus[Quantité légume],TabBDMenus[Nom légume],$A19,TabBDMenus[Nom mois menu],$I$3)+SUMIFS(TabBDMenus[Quantité légume deux],TabBDMenus[Nom légume deux],$A19,TabBDMenus[Nom mois menu],$I$3)","v":0},{"$f":"SUMIFS(TabBDMenus[Quantité légume],TabBDMenus[Nom légume],$A19,TabBDMenus[Nom mois menu],$J$3)+SUMIFS(TabBDMenus[Quantité légume deux],TabBDMenus[Nom légume deux],$A19,TabBDMenus[Nom mois menu],$J$3)","v":0},{"$f":"SUMIFS(TabBDMenus[Quantité légume],TabBDMenus[Nom légume],$A19,TabBDMenus[Nom mois menu],$K$3)+SUMIFS(TabBDMenus[Quantité légume deux],TabBDMenus[Nom légume deux],$A19,TabBDMenus[Nom mois menu],$K$3)","v":0},{"$f":"SUMIFS(TabBDMenus[Quantité légume],TabBDMenus[Nom légume],$A19,TabBDMenus[Nom mois menu],$L$3)+SUMIFS(TabBDMenus[Quantité légume deux],TabBDMenus[Nom légume deux],$A19,TabBDMenus[Nom mois menu],$L$3)","v":0},{"$f":"SUMIFS(TabBDMenus[Quantité légume],TabBDMenus[Nom légume],$A19,TabBDMenus[Nom mois menu],$M$3)+SUMIFS(TabBDMenus[Quantité légume deux],TabBDMenus[Nom légume deux],$A19,TabBDMenus[Nom mois menu],$M$3)","v":0},0]
["Macédoine de légumes",{"$f":"SUMIFS(TabBDMenus[Quantité légume],TabBDMenus[Nom légume],$A20,TabBDMenus[Nom mois menu],$B$3)+SUMIFS(TabBDMenus[Quantité légume deux],TabBDMenus[Nom légume deux],$A20,TabBDMenus[Nom mois menu],$B$3)","v":0},{"$f":"SUMIFS(TabBDMenus[Quantité légume],TabBDMenus[Nom légume],$A20,TabBDMenus[Nom mois menu],$C$3)+SUMIFS(TabBDMenus[Quantité légume deux],TabBDMenus[Nom légume deux],$A20,TabBDMenus[Nom mois menu],$C$3)","v":0},{"$f":"SUMIFS(TabBDMenus[Quantité légume],TabBDMenus[Nom légume],$A20,TabBDMenus[Nom mois menu],$D$3)+SUMIFS(TabBDMenus[Quantité légume deux],TabBDMenus[Nom légume deux],$A20,TabBDMenus[Nom mois menu],$D$3)","v":0},{"$f":"SUMIFS(TabBDMenus[Quantité légume],TabBDMenus[Nom légume],$A20,TabBDMenus[Nom mois menu],$E$3)+SUMIFS(TabBDMenus[Quantité légume deux],TabBDMenus[Nom légume deux],$A20,TabBDMenus[Nom mois menu],$E$3)","v":0},{"$f":"SUMIFS(TabBDMenus[Quantité légume],TabBDMenus[Nom légume],$A20,TabBDMenus[Nom mois menu],$F$3)+SUMIFS(TabBDMenus[Quantité légume deux],TabBDMenus[Nom légume deux],$A20,TabBDMenus[Nom mois menu],$F$3)","v":0},{"$f":"SUMIFS(TabBDMenus[Quantité légume],TabBDMenus[Nom légume],$A20,TabBDMenus[Nom mois menu],$G$3)+SUMIFS(TabBDMenus[Quantité légume deux],TabBDMenus[Nom légume deux],$A20,TabBDMenus[Nom mois menu],$G$3)","v":0},{"$f":"SUMIFS(TabBDMenus[Quantité légume],TabBDMenus[Nom légume],$A20,TabBDMenus[Nom mois menu],$H$3)+SUMIFS(TabBDMenus[Quantité légume deux],TabBDMenus[Nom légume deux],$A20,TabBDMenus[Nom mois menu],$H$3)","v":0},{"$f":"SUMIFS(TabBDMenus[Quantité légume],TabBDMenus[Nom légume],$A20,TabBDMenus[Nom mois menu],$I$3)+SUMIFS(TabBDMenus[Quantité légume deux],TabBDMenus[Nom légume deux],$A20,TabBDMenus[Nom mois menu],$I$3)","v":0},{"$f":"SUMIFS(TabBDMenus[Quantité légume],TabBDMenus[Nom légume],$A20,TabBDMenus[Nom mois menu],$J$3)+SUMIFS(TabBDMenus[Quantité légume deux],TabBDMenus[Nom légume deux],$A20,TabBDMenus[Nom mois menu],$J$3)","v":0},{"$f":"SUMIFS(TabBDMenus[Quantité légume],TabBDMenus[Nom légume],$A20,TabBDMenus[Nom mois menu],$K$3)+SUMIFS(TabBDMenus[Quantité légume deux],TabBDMenus[Nom légume deux],$A20,TabBDMenus[Nom mois menu],$K$3)","v":0},{"$f":"SUMIFS(TabBDMenus[Quantité légume],TabBDMenus[Nom légume],$A20,TabBDMenus[Nom mois menu],$L$3)+SUMIFS(TabBDMenus[Quantité légume deux],TabBDMenus[Nom légume deux],$A20,TabBDMenus[Nom mois menu],$L$3)","v":0},{"$f":"SUMIFS(TabBDMenus[Quantité légume],TabBDMenus[Nom légume],$A20,TabBDMenus[Nom mois menu],$M$3)+SUMIFS(TabBDMenus[Quantité légume deux],TabBDMenus[Nom légume deux],$A20,TabBDMenus[Nom mois menu],$M$3)","v":0},0]
["Maïs",{"$f":"SUMIFS(TabBDMenus[Quantité légume],TabBDMenus[Nom légume],$A21,TabBDMenus[Nom mois menu],$B$3)+SUMIFS(TabBDMenus[Quantité légume deux],TabBDMenus[Nom légume deux],$A21,TabBDMenus[Nom mois menu],$B$3)","v":0},{"$f":"SUMIFS(TabBDMenus[Quantité légume],TabBDMenus[Nom légume],$A21,TabBDMenus[Nom mois menu],$C$3)+SUMIFS(TabBDMenus[Quantité légume deux],TabBDMenus[Nom légume deux],$A21,TabBDMenus[Nom mois menu],$C$3)","v":0},{"$f":"SUMIFS(TabBDMenus[Quantité légume],TabBDMenus[Nom légume],$A21,TabBDMenus[Nom mois menu],$D$3)+SUMIFS(TabBDMenus[Quantité légume deux],TabBDMenus[Nom légume deux],$A21,TabBDMenus[Nom mois menu],$D$3)","v":0},{"$f":"SUMIFS(TabBDMenus[Quantité légume],TabBDMenus[Nom légume],$A21,TabBDMenus[Nom mois menu],$E$3)+SUMIFS(TabBDMenus[Quantité légume deux],TabBDMenus[Nom légume deux],$A21,TabBDMenus[Nom mois menu],$E$3)","v":0},{"$f":"SUMIFS(TabBDMenus[Quantité légume],TabBDMenus[Nom légume],$A21,TabBDMenus[Nom mois menu],$F$3)+SUMIFS(TabBDMenus[Quantité légume deux],TabBDMenus[Nom légume deux],$A21,TabBDMenus[Nom mois menu],$F$3)","v":0},{"$f":"SUMIFS(TabBDMenus[Quantité légume],TabBDMenus[Nom légume],$A21,TabBDMenus[Nom mois menu],$G$3)+SUMIFS(TabBDMenus[Quantité légume deux],TabBDMenus[Nom légume deux],$A21,TabBDMenus[Nom mois menu],$G$3)","v":0},{"$f":"SUMIFS(TabBDMenus[Quantité légume],TabBDMenus[Nom légume],$A21,TabBDMenus[Nom mois menu],$H$3)+SUMIFS(TabBDMenus[Quantité légume deux],TabBDMenus[Nom légume deux],$A21,TabBDMenus[Nom mois menu],$H$3)","v":0},{"$f":"SUMIFS(TabBDMenus[Quantité légume],TabBDMenus[Nom légume],$A21,TabBDMenus[Nom mois menu],$I$3)+SUMIFS(TabBDMenus[Quantité légume deux],TabBDMenus[Nom légume deux],$A21,TabBDMenus[Nom mois menu],$I$3)","v":0},{"$f":"SUMIFS(TabBDMenus[Quantité légume],TabBDMenus[Nom légume],$A21,TabBDMenus[Nom mois menu],$J$3)+SUMIFS(TabBDMenus[Quantité légume deux],TabBDMenus[Nom légume deux],$A21,TabBDMenus[Nom mois menu],$J$3)","v":0},{"$f":"SUMIFS(TabBDMenus[Quantité légume],TabBDMenus[Nom légume],$A21,TabBDMenus[Nom mois menu],$K$3)+SUMIFS(TabBDMenus[Quantité légume deux],TabBDMenus[Nom légume deux],$A21,TabBDMenus[Nom mois menu],$K$3)","v":0},{"$f":"SUMIFS(TabBDMenus[Quantité légume],TabBDMenus[Nom légume],$A21,TabBDMenus[Nom mois menu],$L$3)+SUMIFS(TabBDMenus[Quantité légume deux],TabBDMenus[Nom légume deux],$A21,TabBDMenus[Nom mois menu],$L$3)","v":0},{"$f":"SUMIFS(TabBDMenus[Quantité légume],TabBDMenus[Nom légume],$A21,TabBDMenus[Nom mois menu],$M$3)+SUMIFS(TabBDMenus[Quantité légume deux],TabBDMenus[Nom légume deux],$A21,TabBDMenus[Nom mois menu],$M$3)","v":0},0]
["Paella",{"$f":"SUMIFS(TabBDMenus[Quantité légume],TabBDMenus[Nom légume],$A22,TabBDMenus[Nom mois menu],$B$3)+SUMIFS(TabBDMenus[Quantité légume deux],TabBDMenus[Nom légume deux],$A22,TabBDMenus[Nom mois menu],$B$3)","v":0},{"$f":"SUMIFS(TabBDMenus[Quantité légume],TabBDMenus[Nom légume],$A22,TabBDMenus[Nom mois menu],$C$3)+SUMIFS(TabBDMenus[Quantité légume deux],TabBDMenus[Nom légume deux],$A22,TabBDMenus[Nom mois menu],$C$3)","v":0},{"$f":"SUMIFS(TabBDMenus[Quantité légume],TabBDMenus[Nom légume],$A22,TabBDMenus[Nom mois menu],$D$3)+SUMIFS(TabBDMenus[Quantité légume deux],TabBDMenus[Nom légume deux],$A22,TabBDMenus[Nom mois menu],$D$3)","v":0},{"$f":"SUMIFS(TabBDMenus[Quantité légume],TabBDMenus[Nom légume],$A22,TabBDMenus[Nom mois menu],$E$3)+SUMIFS(TabBDMenus[Quantité légume deux],TabBDMenus[Nom légume deux],$A22,TabBDMenus[Nom mois menu],$E$3)","v":0},{"$f":"SUMIFS(TabBDMenus[Quantité légume],TabBDMenus[Nom légume],$A22,TabBDMenus[Nom mois menu],$F$3)+SUMIFS(TabBDMenus[Quantité légume deux],TabBDMenus[Nom légume deux],$A22,TabBDMenus[Nom mois menu],$F$3)","v":0},{"$f":"SUMIFS(TabBDMenus[Quantité légume],TabBDMenus[Nom légume],$A22,TabBDMenus[Nom mois menu],$G$3)+SUMIFS(TabBDMenus[Quantité légume deux],TabBDMenus[Nom légume deux],$A22,TabBDMenus[Nom mois menu],$G$3)","v":0},{"$f":"SUMIFS(TabBDMenus[Quantité légume],TabBDMenus[Nom légume],$A22,TabBDMenus[Nom mois menu],$H$3)+SUMIFS(TabBDMenus[Quantité légume deux],TabBDMenus[Nom légume deux],$A22,TabBDMenus[Nom mois menu],$H$3)","v":0},{"$f":"SUMIFS(TabBDMenus[Quantité légume],TabBDMenus[Nom légume],$A22,TabBDMenus[Nom mois menu],$I$3)+SUMIFS(TabBDMenus[Quantité légume deux],TabBDMenus[Nom légume deux],$A22,TabBDMenus[Nom mois menu],$I$3)","v":0},{"$f":"SUMIFS(TabBDMenus[Quantité légume],TabBDMenus[Nom légume],$A22,TabBDMenus[Nom mois menu],$J$3)+SUMIFS(TabBDMenus[Quantité légume deux],TabBDMenus[Nom légume deux],$A22,TabBDMenus[Nom mois menu],$J$3)","v":0},{"$f":"SUMIFS(TabBDMenus[Quantité légume],TabBDMenus[Nom légume],$A22,TabBDMenus[Nom mois menu],$K$3)+SUMIFS(TabBDMenus[Quantité légume deux],TabBDMenus[Nom légume deux],$A22,TabBDMenus[Nom mois menu],$K$3)","v":0},{"$f":"SUMIFS(TabBDMenus[Quantité légume],TabBDMenus[Nom légume],$A22,TabBDMenus[Nom mois menu],$L$3)+SUMIFS(TabBDMenus[Quantité légume deux],TabBDMenus[Nom légume deux],$A22,TabBDMenus[Nom mois menu],$L$3)","v":0},{"$f":"SUMIFS(TabBDMenus[Quantité légume],TabBDMenus[Nom légume],$A22,TabBDMenus[Nom mois menu],$M$3)+SUMIFS(TabBDMenus[Quantité légume deux],TabBDMenus[Nom légume deux],$A22,TabBDMenus[Nom mois menu],$M$3)","v":0},0]
["Pâtes à la sauce tomates",{"$f":"SUMIFS(TabBDMenus[Quantité légume],TabBDMenus[Nom légume],$A23,TabBDMenus[Nom mois menu],$B$3)+SUMIFS(TabBDMenus[Quantité légume deux],TabBDMenus[Nom légume deux],$A23,TabBDMenus[Nom mois menu],$B$3)","v":0},{"$f":"SUMIFS(TabBDMenus[Quantité légume],TabBDMenus[Nom légume],$A23,TabBDMenus[Nom mois menu],$C$3)+SUMIFS(TabBDMenus[Quantité légume deux],TabBDMenus[Nom légume deux],$A23,TabBDMenus[Nom mois menu],$C$3)","v":0},{"$f":"SUMIFS(TabBDMenus[Quantité légume],TabBDMenus[Nom légume],$A23,TabBDMenus[Nom mois menu],$D$3)+SUMIFS(TabBDMenus[Quantité légume deux],TabBDMenus[Nom légume deux],$A23,TabBDMenus[Nom mois menu],$D$3)","v":0},{"$f":"SUMIFS(TabBDMenus[Quantité légume],TabBDMenus[Nom légume],$A23,TabBDMenus[Nom mois menu],$E$3)+SUMIFS(TabBDMenus[Quantité légume deux],TabBDMenus[Nom légume deux],$A23,TabBDMenus[Nom mois menu],$E$3)","v":0},{"$f":"SUMIFS(TabBDMenus[Quantité légume],TabBDMenus[Nom légume],$A23,TabBDMenus[Nom mois menu],$F$3)+SUMIFS(TabBDMenus[Quantité légume deux],TabBDMenus[Nom légume deux],$A23,TabBDMenus[Nom mois menu],$F$3)","v":0},{"$f":"SUMIFS(TabBDMenus[Quantité légume],TabBDMenus[Nom légume],$A23,TabBDMenus[Nom mois menu],$G$3)+SUMIFS(TabBDMenus[Quantité légume deux],TabBDMenus[Nom légume deux],$A23,TabBDMenus[Nom mois menu],$G$3)","v":0},{"$f":"SUMIFS(TabBDMenus[Quantité légume],TabBDMenus[Nom légume],$A23,TabBDMenus[Nom mois menu],$H$3)+SUMIFS(TabBDMenus[Quantité légume deux],TabBDMenus[Nom légume deux],$A23,TabBDMenus[Nom mois menu],$H$3)","v":0},{"$f":"SUMIFS(TabBDMenus[Quantité légume],TabBDMenus[Nom légume],$A23,TabBDMenus[Nom mois menu],$I$3)+SUMIFS(TabBDMenus[Quantité légume deux],TabBDMenus[Nom légume deux],$A23,TabBDMenus[Nom mois menu],$I$3)","v":0},{"$f":"SUMIFS(TabBDMenus[Quantité légume],TabBDMenus[Nom légume],$A23,TabBDMenus[Nom mois menu],$J$3)+SUMIFS(TabBDMenus[Quantité légume deux],TabBDMenus[Nom légume deux],$A23,TabBDMenus[Nom mois menu],$J$3)","v":0},{"$f":"SUMIFS(TabBDMenus[Quantité légume],TabBDMenus[Nom légume],$A23,TabBDMenus[Nom mois menu],$K$3)+SUMIFS(TabBDMenus[Quantité légume deux],TabBDMenus[Nom légume deux],$A23,TabBDMenus[Nom mois menu],$K$3)","v":0},{"$f":"SUMIFS(TabBDMenus[Quantité légume],TabBDMenus[Nom légume],$A23,TabBDMenus[Nom mois menu],$L$3)+SUMIFS(TabBDMenus[Quantité légume deux],TabBDMenus[Nom légume deux],$A23,TabBDMenus[Nom mois menu],$L$3)","v":0},{"$f":"SUMIFS(TabBDMenus[Quantité légume],TabBDMenus[Nom légume],$A23,TabBDMenus[Nom mois menu],$M$3)+SUMIFS(TabBDMenus[Quantité légume deux],TabBDMenus[Nom légume deux],$A23,TabBDMenus[Nom mois menu],$M$3)","v":0},0]
["Pâtes au beurre",{"$f":"SUMIFS(TabBDMenus[Quantité légume],TabBDMenus[Nom légume],$A24,TabBDMenus[Nom mois menu],$B$3)+SUMIFS(TabBDMenus[Quantité légume deux],TabBDMenus[Nom légume deux],$A24,TabBDMenus[Nom mois menu],$B$3)","v":0},{"$f":"SUMIFS(TabBDMenus[Quantité légume],TabBDMenus[Nom légume],$A24,TabBDMenus[Nom mois menu],$C$3)+SUMIFS(TabBDMenus[Quantité légume deux],TabBDMenus[Nom légume deux],$A24,TabBDMenus[Nom mois menu],$C$3)","v":0},{"$f":"SUMIFS(TabBDMenus[Quantité légume],TabBDMenus[Nom légume],$A24,TabBDMenus[Nom mois menu],$D$3)+SUMIFS(TabBDMenus[Quantité légume deux],TabBDMenus[Nom légume deux],$A24,TabBDMenus[Nom mois menu],$D$3)","v":0},{"$f":"SUMIFS(TabBDMenus[Quantité légume],TabBDMenus[Nom légume],$A24,TabBDMenus[Nom mois menu],$E$3)+SUMIFS(TabBDMenus[Quantité légume deux],TabBDMenus[Nom légume deux],$A24,TabBDMenus[Nom mois menu],$E$3)","v":0},{"$f":"SUMIFS(TabBDMenus[Quantité légume],TabBDMenus[Nom légume],$A24,TabBDMenus[Nom mois menu],$F$3)+SUMIFS(TabBDMenus[Quantité légume deux],TabBDMenus[Nom légume deux],$A24,TabBDMenus[Nom mois menu],$F$3)","v":0},{"$f":"SUMIFS(TabBDMenus[Quantité légume],TabBDMenus[Nom légume],$A24,TabBDMenus[Nom mois menu],$G$3)+SUMIFS(TabBDMenus[Quantité légume deux],TabBDMenus[Nom légume deux],$A24,TabBDMenus[Nom mois menu],$G$3)","v":0},{"$f":"SUMIFS(TabBDMenus[Quantité légume],TabBDMenus[Nom légume],$A24,TabBDMenus[Nom mois menu],$H$3)+SUMIFS(TabBDMenus[Quantité légume deux],TabBDMenus[Nom légume deux],$A24,TabBDMenus[Nom mois menu],$H$3)","v":0},{"$f":"SUMIFS(TabBDMenus[Quantité légume],TabBDMenus[Nom légume],$A24,TabBDMenus[Nom mois menu],$I$3)+SUMIFS(TabBDMenus[Quantité légume deux],TabBDMenus[Nom légume deux],$A24,TabBDMenus[Nom mois menu],$I$3)","v":0},{"$f":"SUMIFS(TabBDMenus[Quantité légume],TabBDMenus[Nom légume],$A24,TabBDMenus[Nom mois menu],$J$3)+SUMIFS(TabBDMenus[Quantité légume deux],TabBDMenus[Nom légume deux],$A24,TabBDMenus[Nom mois menu],$J$3)","v":0},{"$f":"SUMIFS(TabBDMenus[Quantité légume],TabBDMenus[Nom légume],$A24,TabBDMenus[Nom mois menu],$K$3)+SUMIFS(TabBDMenus[Quantité légume deux],TabBDMenus[Nom légume deux],$A24,TabBDMenus[Nom mois menu],$K$3)","v":0},{"$f":"SUMIFS(TabBDMenus[Quantité légume],TabBDMenus[Nom légume],$A24,TabBDMenus[Nom mois menu],$L$3)+SUMIFS(TabBDMenus[Quantité légume deux],TabBDMenus[Nom légume deux],$A24,TabBDMenus[Nom mois menu],$L$3)","v":0},{"$f":"SUMIFS(TabBDMenus[Quantité légume],TabBDMenus[Nom légume],$A24,TabBDMenus[Nom mois menu],$M$3)+SUMIFS(TabBDMenus[Quantité légume deux],TabBDMenus[Nom légume deux],$A24,TabBDMenus[Nom mois menu],$M$3)","v":0},0]
["Pâtes au fromage râpé",{"$f":"SUMIFS(TabBDMenus[Quantité légume],TabBDMenus[Nom légume],$A25,TabBDMenus[Nom mois menu],$B$3)+SUMIFS(TabBDMenus[Quantité légume deux],TabBDMenus[Nom légume deux],$A25,TabBDMenus[Nom mois menu],$B$3)","v":0},{"$f":"SUMIFS(TabBDMenus[Quantité légume],TabBDMenus[Nom légume],$A25,TabBDMenus[Nom mois menu],$C$3)+SUMIFS(TabBDMenus[Quantité légume deux],TabBDMenus[Nom légume deux],$A25,TabBDMenus[Nom mois menu],$C$3)","v":0},{"$f":"SUMIFS(TabBDMenus[Quantité légume],TabBDMenus[Nom légume],$A25,TabBDMenus[Nom mois menu],$D$3)+SUMIFS(TabBDMenus[Quantité légume deux],TabBDMenus[Nom légume deux],$A25,TabBDMenus[Nom mois menu],$D$3)","v":0},{"$f":"SUMIFS(TabBDMenus[Quantité légume],TabBDMenus[Nom légume],$A25,TabBDMenus[Nom mois menu],$E$3)+SUMIFS(TabBDMenus[Quantité légume deux],TabBDMenus[Nom légume deux],$A25,TabBDMenus[Nom mois menu],$E$3)","v":0},{"$f":"SUMIFS(TabBDMenus[Quantité légume],TabBDMenus[Nom légume],$A25,TabBDMenus[Nom mois menu],$F$3)+SUMIFS(TabBDMenus[Quantité légume deux],TabBDMenus[Nom légume deux],$A25,TabBDMenus[Nom mois menu],$F$3)","v":0},{"$f":"SUMIFS(TabBDMenus[Quantité légume],TabBDMenus[Nom légume],$A25,TabBDMenus[Nom mois menu],$G$3)+SUMIFS(TabBDMenus[Quantité légume deux],TabBDMenus[Nom légume deux],$A25,TabBDMenus[Nom mois menu],$G$3)","v":0},{"$f":"SUMIFS(TabBDMenus[Quantité légume],TabBDMenus[Nom légume],$A25,TabBDMenus[Nom mois menu],$H$3)+SUMIFS(TabBDMenus[Quantité légume deux],TabBDMenus[Nom légume deux],$A25,TabBDMenus[Nom mois menu],$H$3)","v":0},{"$f":"SUMIFS(TabBDMenus[Quantité légume],TabBDMenus[Nom légume],$A25,TabBDMenus[Nom mois menu],$I$3)+SUMIFS(TabBDMenus[Quantité légume deux],TabBDMenus[Nom légume deux],$A25,TabBDMenus[Nom mois menu],$I$3)","v":0},{"$f":"SUMIFS(TabBDMenus[Quantité légume],TabBDMenus[Nom légume],$A25,TabBDMenus[Nom mois menu],$J$3)+SUMIFS(TabBDMenus[Quantité légume deux],TabBDMenus[Nom légume deux],$A25,TabBDMenus[Nom mois menu],$J$3)","v":0},{"$f":"SUMIFS(TabBDMenus[Quantité légume],TabBDMenus[Nom légume],$A25,TabBDMenus[Nom mois menu],$K$3)+SUMIFS(TabBDMenus[Quantité légume deux],TabBDMenus[Nom légume deux],$A25,TabBDMenus[Nom mois menu],$K$3)","v":0},{"$f":"SUMIFS(TabBDMenus[Quantité légume],TabBDMenus[Nom légume],$A25,TabBDMenus[Nom mois menu],$L$3)+SUMIFS(TabBDMenus[Quantité légume deux],TabBDMenus[Nom légume deux],$A25,TabBDMenus[Nom mois menu],$L$3)","v":0},{"$f":"SUMIFS(TabBDMenus[Quantité légume],TabBDMenus[Nom légume],$A25,TabBDMenus[Nom mois menu],$M$3)+SUMIFS(TabBDMenus[Quantité légume deux],TabBDMenus[Nom légume deux],$A25,TabBDMenus[Nom mois menu],$M$3)","v":0},0]
["Petits pois",{"$f":"SUMIFS(TabBDMenus[Quantité légume],TabBDMenus[Nom légume],$A26,TabBDMenus[Nom mois menu],$B$3)+SUMIFS(TabBDMenus[Quantité légume deux],TabBDMenus[Nom légume deux],$A26,TabBDMenus[Nom mois menu],$B$3)","v":0},{"$f":"SUMIFS(TabBDMenus[Quantité légume],TabBDMenus[Nom légume],$A26,TabBDMenus[Nom mois menu],$C$3)+SUMIFS(TabBDMenus[Quantité légume deux],TabBDMenus[Nom légume deux],$A26,TabBDMenus[Nom mois menu],$C$3)","v":0},{"$f":"SUMIFS(TabBDMenus[Quantité légume],TabBDMenus[Nom légume],$A26,TabBDMenus[Nom mois menu],$D$3)+SUMIFS(TabBDMenus[Quantité légume deux],TabBDMenus[Nom légume deux],$A26,TabBDMenus[Nom mois menu],$D$3)","v":0},{"$f":"SUMIFS(TabBDMenus[Quantité légume],TabBDMenus[Nom légume],$A26,TabBDMenus[Nom mois menu],$E$3)+SUMIFS(TabBDMenus[Quantité légume deux],TabBDMenus[Nom légume deux],$A26,TabBDMenus[Nom mois menu],$E$3)","v":0},{"$f":"SUMIFS(TabBDMenus[Quantité légume],TabBDMenus[Nom légume],$A26,TabBDMenus[Nom mois menu],$F$3)+SUMIFS(TabBDMenus[Quantité légume deux],TabBDMenus[Nom légume deux],$A26,TabBDMenus[Nom mois menu],$F$3)","v":0},{"$f":"SUMIFS(TabBDMenus[Quantité légume],TabBDMenus[Nom légume],$A26,TabBDMenus[Nom mois menu],$G$3)+SUMIFS(TabBDMenus[Quantité légume deux],TabBDMenus[Nom légume deux],$A26,TabBDMenus[Nom mois menu],$G$3)","v":0},{"$f":"SUMIFS(TabBDMenus[Quantité légume],TabBDMenus[Nom légume],$A26,TabBDMenus[Nom mois menu],$H$3)+SUMIFS(TabBDMenus[Quantité légume deux],TabBDMenus[Nom légume deux],$A26,TabBDMenus[Nom mois menu],$H$3)","v":0},{"$f":"SUMIFS(TabBDMenus[Quantité légume],TabBDMenus[Nom légume],$A26,TabBDMenus[Nom mois menu],$I$3)+SUMIFS(TabBDMenus[Quantité légume deux],TabBDMenus[Nom légume deux],$A26,TabBDMenus[Nom mois menu],$I$3)","v":0},{"$f":"SUMIFS(TabBDMenus[Quantité légume],TabBDMenus[Nom légume],$A26,TabBDMenus[Nom mois menu],$J$3)+SUMIFS(TabBDMenus[Quantité légume deux],TabBDMenus[Nom légume deux],$A26,TabBDMenus[Nom mois menu],$J$3)","v":0},{"$f":"SUMIFS(TabBDMenus[Quantité légume],TabBDMenus[Nom légume],$A26,TabBDMenus[Nom mois menu],$K$3)+SUMIFS(TabBDMenus[Quantité légume deux],TabBDMenus[Nom légume deux],$A26,TabBDMenus[Nom mois menu],$K$3)","v":0},{"$f":"SUMIFS(TabBDMenus[Quantité légume],TabBDMenus[Nom légume],$A26,TabBDMenus[Nom mois menu],$L$3)+SUMIFS(TabBDMenus[Quantité légume deux],TabBDMenus[Nom légume deux],$A26,TabBDMenus[Nom mois menu],$L$3)","v":0},{"$f":"SUMIFS(TabBDMenus[Quantité légume],TabBDMenus[Nom légume],$A26,TabBDMenus[Nom mois menu],$M$3)+SUMIFS(TabBDMenus[Quantité légume deux],TabBDMenus[Nom légume deux],$A26,TabBDMenus[Nom mois menu],$M$3)","v":0},0]
["Petits pois et jeunes carottes",{"$f":"SUMIFS(TabBDMenus[Quantité légume],TabBDMenus[Nom légume],$A27,TabBDMenus[Nom mois menu],$B$3)+SUMIFS(TabBDMenus[Quantité légume deux],TabBDMenus[Nom légume deux],$A27,TabBDMenus[Nom mois menu],$B$3)","v":0},{"$f":"SUMIFS(TabBDMenus[Quantité légume],TabBDMenus[Nom légume],$A27,TabBDMenus[Nom mois menu],$C$3)+SUMIFS(TabBDMenus[Quantité légume deux],TabBDMenus[Nom légume deux],$A27,TabBDMenus[Nom mois menu],$C$3)","v":0},{"$f":"SUMIFS(TabBDMenus[Quantité légume],TabBDMenus[Nom légume],$A27,TabBDMenus[Nom mois menu],$D$3)+SUMIFS(TabBDMenus[Quantité légume deux],TabBDMenus[Nom légume deux],$A27,TabBDMenus[Nom mois menu],$D$3)","v":0},{"$f":"SUMIFS(TabBDMenus[Quantité légume],TabBDMenus[Nom légume],$A27,TabBDMenus[Nom mois menu],$E$3)+SUMIFS(TabBDMenus[Quantité légume deux],TabBDMenus[Nom légume deux],$A27,TabBDMenus[Nom mois menu],$E$3)","v":0},{"$f":"SUMIFS(TabBDMenus[Quantité légume],TabBDMenus[Nom légume],$A27,TabBDMenus[Nom mois menu],$F$3)+SUMIFS(TabBDMenus[Quantité légume deux],TabBDMenus[Nom légume deux],$A27,TabBDMenus[Nom mois menu],$F$3)","v":0},{"$f":"SUMIFS(TabBDMenus[Quantité légume],TabBDMenus[Nom légume],$A27,TabBDMenus[Nom mois menu],$G$3)+SUMIFS(TabBDMenus[Quantité légume deux],TabBDMenus[Nom légume deux],$A27,TabBDMenus[Nom mois menu],$G$3)","v":0},{"$f":"SUMIFS(TabBDMenus[Quantité légume],TabBDMenus[Nom légume],$A27,TabBDMenus[Nom mois menu],$H$3)+SUMIFS(TabBDMenus[Quantité légume deux],TabBDMenus[Nom légume deux],$A27,TabBDMenus[Nom mois menu],$H$3)","v":0},{"$f":"SUMIFS(TabBDMenus[Quantité légume],TabBDMenus[Nom légume],$A27,TabBDMenus[Nom mois menu],$I$3)+SUMIFS(TabBDMenus[Quantité légume deux],TabBDMenus[Nom légume deux],$A27,TabBDMenus[Nom mois menu],$I$3)","v":0},{"$f":"SUMIFS(TabBDMenus[Quantité légume],TabBDMenus[Nom légume],$A27,TabBDMenus[Nom mois menu],$J$3)+SUMIFS(TabBDMenus[Quantité légume deux],TabBDMenus[Nom légume deux],$A27,TabBDMenus[Nom mois menu],$J$3)","v":0},{"$f":"SUMIFS(TabBDMenus[Quantité légume],TabBDMenus[Nom légume],$A27,TabBDMenus[Nom mois menu],$K$3)+SUMIFS(TabBDMenus[Quantité légume deux],TabBDMenus[Nom légume deux],$A27,TabBDMenus[Nom mois menu],$K$3)","v":0},{"$f":"SUMIFS(TabBDMenus[Quantité légume],TabBDMenus[Nom légume],$A27,TabBDMenus[Nom mois menu],$L$3)+SUMIFS(TabBDMenus[Quantité légume deux],TabBDMenus[Nom légume deux],$A27,TabBDMenus[Nom mois menu],$L$3)","v":0},{"$f":"SUMIFS(TabBDMenus[Quantité légume],TabBDMenus[Nom légume],$A27,TabBDMenus[Nom mois menu],$M$3)+SUMIFS(TabBDMenus[Quantité légume deux],TabBDMenus[Nom légume deux],$A27,TabBDMenus[Nom mois menu],$M$3)","v":0},0]
["Poireau",{"$f":"SUMIFS(TabBDMenus[Quantité légume],TabBDMenus[Nom légume],$A28,TabBDMenus[Nom mois menu],$B$3)+SUMIFS(TabBDMenus[Quantité légume deux],TabBDMenus[Nom légume deux],$A28,TabBDMenus[Nom mois menu],$B$3)","v":0},{"$f":"SUMIFS(TabBDMenus[Quantité légume],TabBDMenus[Nom légume],$A28,TabBDMenus[Nom mois menu],$C$3)+SUMIFS(TabBDMenus[Quantité légume deux],TabBDMenus[Nom légume deux],$A28,TabBDMenus[Nom mois menu],$C$3)","v":0},{"$f":"SUMIFS(TabBDMenus[Quantité légume],TabBDMenus[Nom légume],$A28,TabBDMenus[Nom mois menu],$D$3)+SUMIFS(TabBDMenus[Quantité légume deux],TabBDMenus[Nom légume deux],$A28,TabBDMenus[Nom mois menu],$D$3)","v":0},{"$f":"SUMIFS(TabBDMenus[Quantité légume],TabBDMenus[Nom légume],$A28,TabBDMenus[Nom mois menu],$E$3)+SUMIFS(TabBDMenus[Quantité légume deux],TabBDMenus[Nom légume deux],$A28,TabBDMenus[Nom mois menu],$E$3)","v":0},{"$f":"SUMIFS(TabBDMenus[Quantité légume],TabBDMenus[Nom légume],$A28,TabBDMenus[Nom mois menu],$F$3)+SUMIFS(TabBDMenus[Quantité légume deux],TabBDMenus[Nom légume deux],$A28,TabBDMenus[Nom mois menu],$F$3)","v":0},{"$f":"SUMIFS(TabBDMenus[Quantité légume],TabBDMenus[Nom légume],$A28,TabBDMenus[Nom mois menu],$G$3)+SUMIFS(TabBDMenus[Quantité légume deux],TabBDMenus[Nom légume deux],$A28,TabBDMenus[Nom mois menu],$G$3)","v":0},{"$f":"SUMIFS(TabBDMenus[Quantité légume],TabBDMenus[Nom légume],$A28,TabBDMenus[Nom mois menu],$H$3)+SUMIFS(TabBDMenus[Quantité légume deux],TabBDMenus[Nom légume deux],$A28,TabBDMenus[Nom mois menu],$H$3)","v":0},{"$f":"SUMIFS(TabBDMenus[Quantité légume],TabBDMenus[Nom légume],$A28,TabBDMenus[Nom mois menu],$I$3)+SUMIFS(TabBDMenus[Quantité légume deux],TabBDMenus[Nom légume deux],$A28,TabBDMenus[Nom mois menu],$I$3)","v":0},{"$f":"SUMIFS(TabBDMenus[Quantité légume],TabBDMenus[Nom légume],$A28,TabBDMenus[Nom mois menu],$J$3)+SUMIFS(TabBDMenus[Quantité légume deux],TabBDMenus[Nom légume deux],$A28,TabBDMenus[Nom mois menu],$J$3)","v":0},{"$f":"SUMIFS(TabBDMenus[Quantité légume],TabBDMenus[Nom légume],$A28,TabBDMenus[Nom mois menu],$K$3)+SUMIFS(TabBDMenus[Quantité légume deux],TabBDMenus[Nom légume deux],$A28,TabBDMenus[Nom mois menu],$K$3)","v":0},{"$f":"SUMIFS(TabBDMenus[Quantité légume],TabBDMenus[Nom légume],$A28,TabBDMenus[Nom mois menu],$L$3)+SUMIFS(TabBDMenus[Quantité légume deux],TabBDMenus[Nom légume deux],$A28,TabBDMenus[Nom mois menu],$L$3)","v":0},{"$f":"SUMIFS(TabBDMenus[Quantité légume],TabBDMenus[Nom légume],$A28,TabBDMenus[Nom mois menu],$M$3)+SUMIFS(TabBDMenus[Quantité légume deux],TabBDMenus[Nom légume deux],$A28,TabBDMenus[Nom mois menu],$M$3)","v":0},0]
["Pomme de terre",{"$f":"SUMIFS(TabBDMenus[Quantité légume],TabBDMenus[Nom légume],$A29,TabBDMenus[Nom mois menu],$B$3)+SUMIFS(TabBDMenus[Quantité légume deux],TabBDMenus[Nom légume deux],$A29,TabBDMenus[Nom mois menu],$B$3)","v":0},{"$f":"SUMIFS(TabBDMenus[Quantité légume],TabBDMenus[Nom légume],$A29,TabBDMenus[Nom mois menu],$C$3)+SUMIFS(TabBDMenus[Quantité légume deux],TabBDMenus[Nom légume deux],$A29,TabBDMenus[Nom mois menu],$C$3)","v":0},{"$f":"SUMIFS(TabBDMenus[Quantité légume],TabBDMenus[Nom légume],$A29,TabBDMenus[Nom mois menu],$D$3)+SUMIFS(TabBDMenus[Quantité légume deux],TabBDMenus[Nom légume deux],$A29,TabBDMenus[Nom mois menu],$D$3)","v":0},{"$f":"SUMIFS(TabBDMenus[Quantité légume],TabBDMenus[Nom légume],$A29,TabBDMenus[Nom mois menu],$E$3)+SUMIFS(TabBDMenus[Quantité légume deux],TabBDMenus[Nom légume deux],$A29,TabBDMenus[Nom mois menu],$E$3)","v":0},{"$f":"SUMIFS(TabBDMenus[Quantité légume],TabBDMenus[Nom légume],$A29,TabBDMenus[Nom mois menu],$F$3)+SUMIFS(TabBDMenus[Quantité légume deux],TabBDMenus[Nom légume deux],$A29,TabBDMenus[Nom mois menu],$F$3)","v":0},{"$f":"SUMIFS(TabBDMenus[Quantité légume],TabBDMenus[Nom légume],$A29,TabBDMenus[Nom mois menu],$G$3)+SUMIFS(TabBDMenus[Quantité légume deux],TabBDMenus[Nom légume deux],$A29,TabBDMenus[Nom mois menu],$G$3)","v":0},{"$f":"SUMIFS(TabBDMenus[Quantité légume],TabBDMenus[Nom légume],$A29,TabBDMenus[Nom mois menu],$H$3)+SUMIFS(TabBDMenus[Quantité légume deux],TabBDMenus[Nom légume deux],$A29,TabBDMenus[Nom mois menu],$H$3)","v":0},{"$f":"SUMIFS(TabBDMenus[Quantité légume],TabBDMenus[Nom légume],$A29,TabBDMenus[Nom mois menu],$I$3)+SUMIFS(TabBDMenus[Quantité légume deux],TabBDMenus[Nom légume deux],$A29,TabBDMenus[Nom mois menu],$I$3)","v":0},{"$f":"SUMIFS(TabBDMenus[Quantité légume],TabBDMenus[Nom légume],$A29,TabBDMenus[Nom mois menu],$J$3)+SUMIFS(TabBDMenus[Quantité légume deux],TabBDMenus[Nom légume deux],$A29,TabBDMenus[Nom mois menu],$J$3)","v":0},{"$f":"SUMIFS(TabBDMenus[Quantité légume],TabBDMenus[Nom légume],$A29,TabBDMenus[Nom mois menu],$K$3)+SUMIFS(TabBDMenus[Quantité légume deux],TabBDMenus[Nom légume deux],$A29,TabBDMenus[Nom mois menu],$K$3)","v":0},{"$f":"SUMIFS(TabBDMenus[Quantité légume],TabBDMenus[Nom légume],$A29,TabBDMenus[Nom mois menu],$L$3)+SUMIFS(TabBDMenus[Quantité légume deux],TabBDMenus[Nom légume deux],$A29,TabBDMenus[Nom mois menu],$L$3)","v":0},{"$f":"SUMIFS(TabBDMenus[Quantité légume],TabBDMenus[Nom légume],$A29,TabBDMenus[Nom mois menu],$M$3)+SUMIFS(TabBDMenus[Quantité légume deux],TabBDMenus[Nom légume deux],$A29,TabBDMenus[Nom mois menu],$M$3)","v":0},0]
["Purée",{"$f":"SUMIFS(TabBDMenus[Quantité légume],TabBDMenus[Nom légume],$A30,TabBDMenus[Nom mois menu],$B$3)+SUMIFS(TabBDMenus[Quantité légume deux],TabBDMenus[Nom légume deux],$A30,TabBDMenus[Nom mois menu],$B$3)","v":0},{"$f":"SUMIFS(TabBDMenus[Quantité légume],TabBDMenus[Nom légume],$A30,TabBDMenus[Nom mois menu],$C$3)+SUMIFS(TabBDMenus[Quantité légume deux],TabBDMenus[Nom légume deux],$A30,TabBDMenus[Nom mois menu],$C$3)","v":0},{"$f":"SUMIFS(TabBDMenus[Quantité légume],TabBDMenus[Nom légume],$A30,TabBDMenus[Nom mois menu],$D$3)+SUMIFS(TabBDMenus[Quantité légume deux],TabBDMenus[Nom légume deux],$A30,TabBDMenus[Nom mois menu],$D$3)","v":0},{"$f":"SUMIFS(TabBDMenus[Quantité légume],TabBDMenus[Nom légume],$A30,TabBDMenus[Nom mois menu],$E$3)+SUMIFS(TabBDMenus[Quantité légume deux],TabBDMenus[Nom légume deux],$A30,TabBDMenus[Nom mois menu],$E$3)","v":0},{"$f":"SUMIFS(TabBDMenus[Quantité légume],TabBDMenus[Nom légume],$A30,TabBDMenus[Nom mois menu],$F$3)+SUMIFS(TabBDMenus[Quantité légume deux],TabBDMenus[Nom légume deux],$A30,TabBDMenus[Nom mois menu],$F$3)","v":0},{"$f":"SUMIFS(TabBDMenus[Quantité légume],TabBDMenus[Nom légume],$A30,TabBDMenus[Nom mois menu],$G$3)+SUMIFS(TabBDMenus[Quantité légume deux],TabBDMenus[Nom légume deux],$A30,TabBDMenus[Nom mois menu],$G$3)","v":0},{"$f":"SUMIFS(TabBDMenus[Quantité légume],TabBDMenus[Nom légume],$A30,TabBDMenus[Nom mois menu],$H$3)+SUMIFS(TabBDMenus[Quantité légume deux],TabBDMenus[Nom légume deux],$A30,TabBDMenus[Nom mois menu],$H$3)","v":0},{"$f":"SUMIFS(TabBDMenus[Quantité légume],TabBDMenus[Nom légume],$A30,TabBDMenus[Nom mois menu],$I$3)+SUMIFS(TabBDMenus[Quantité légume deux],TabBDMenus[Nom légume deux],$A30,TabBDMenus[Nom mois menu],$I$3)","v":0},{"$f":"SUMIFS(TabBDMenus[Quantité légume],TabBDMenus[Nom légume],$A30,TabBDMenus[Nom mois menu],$J$3)+SUMIFS(TabBDMenus[Quantité légume deux],TabBDMenus[Nom légume deux],$A30,TabBDMenus[Nom mois menu],$J$3)","v":0},{"$f":"SUMIFS(TabBDMenus[Quantité légume],TabBDMenus[Nom légume],$A30,TabBDMenus[Nom mois menu],$K$3)+SUMIFS(TabBDMenus[Quantité légume deux],TabBDMenus[Nom légume deux],$A30,TabBDMenus[Nom mois menu],$K$3)","v":0},{"$f":"SUMIFS(TabBDMenus[Quantité légume],TabBDMenus[Nom légume],$A30,TabBDMenus[Nom mois menu],$L$3)+SUMIFS(TabBDMenus[Quantité légume deux],TabBDMenus[Nom légume deux],$A30,TabBDMenus[Nom mois menu],$L$3)","v":0},{"$f":"SUMIFS(TabBDMenus[Quantité légume],TabBDMenus[Nom légume],$A30,TabBDMenus[Nom mois menu],$M$3)+SUMIFS(TabBDMenus[Quantité légume deux],TabBDMenus[Nom légume deux],$A30,TabBDMenus[Nom mois menu],$M$3)","v":0},0]
["Quenelles",{"$f":"SUMIFS(TabBDMenus[Quantité légume],TabBDMenus[Nom légume],$A31,TabBDMenus[Nom mois menu],$B$3)+SUMIFS(TabBDMenus[Quantité légume deux],TabBDMenus[Nom légume deux],$A31,TabBDMenus[Nom mois menu],$B$3)","v":0},{"$f":"SUMIFS(TabBDMenus[Quantité légume],TabBDMenus[Nom légume],$A31,TabBDMenus[Nom mois menu],$C$3)+SUMIFS(TabBDMenus[Quantité légume deux],TabBDMenus[Nom légume deux],$A31,TabBDMenus[Nom mois menu],$C$3)","v":0},{"$f":"SUMIFS(TabBDMenus[Quantité légume],TabBDMenus[Nom légume],$A31,TabBDMenus[Nom mois menu],$D$3)+SUMIFS(TabBDMenus[Quantité légume deux],TabBDMenus[Nom légume deux],$A31,TabBDMenus[Nom mois menu],$D$3)","v":0},{"$f":"SUMIFS(TabBDMenus[Quantité légume],TabBDMenus[Nom légume],$A31,TabBDMenus[Nom mois menu],$E$3)+SUMIFS(TabBDMenus[Quantité légume deux],TabBDMenus[Nom légume deux],$A31,TabBDMenus[Nom mois menu],$E$3)","v":0},{"$f":"SUMIFS(TabBDMenus[Quantité légume],TabBDMenus[Nom légume],$A31,TabBDMenus[Nom mois menu],$F$3)+SUMIFS(TabBDMenus[Quantité légume deux],TabBDMenus[Nom légume deux],$A31,TabBDMenus[Nom mois menu],$F$3)","v":0},{"$f":"SUMIFS(TabBDMenus[Quantité légume],TabBDMenus[Nom légume],$A31,TabBDMenus[Nom mois menu],$G$3)+SUMIFS(TabBDMenus[Quantité légume deux],TabBDMenus[Nom légume deux],$A31,TabBDMenus[Nom mois menu],$G$3)","v":0},{"$f":"SUMIFS(TabBDMenus[Quantité légume],TabBDMenus[Nom légume],$A31,TabBDMenus[Nom mois menu],$H$3)+SUMIFS(TabBDMenus[Quantité légume deux],TabBDMenus[Nom légume deux],$A31,TabBDMenus[Nom mois menu],$H$3)","v":0},{"$f":"SUMIFS(TabBDMenus[Quantité légume],TabBDMenus[Nom légume],$A31,TabBDMenus[Nom mois menu],$I$3)+SUMIFS(TabBDMenus[Quantité légume deux],TabBDMenus[Nom légume deux],$A31,TabBDMenus[Nom mois menu],$I$3)","v":0},{"$f":"SUMIFS(TabBDMenus[Quantité légume],TabBDMenus[Nom légume],$A31,TabBDMenus[Nom mois menu],$J$3)+SUMIFS(TabBDMenus[Quantité légume deux],TabBDMenus[Nom légume deux],$A31,TabBDMenus[Nom mois menu],$J$3)","v":0},{"$f":"SUMIFS(TabBDMenus[Quantité légume],TabBDMenus[Nom légume],$A31,TabBDMenus[Nom mois menu],$K$3)+SUMIFS(TabBDMenus[Quantité légume deux],TabBDMenus[Nom légume deux],$A31,TabBDMenus[Nom mois menu],$K$3)","v":0},{"$f":"SUMIFS(TabBDMenus[Quantité légume],TabBDMenus[Nom légume],$A31,TabBDMenus[Nom mois menu],$L$3)+SUMIFS(TabBDMenus[Quantité légume deux],TabBDMenus[Nom légume deux],$A31,TabBDMenus[Nom mois menu],$L$3)","v":0},{"$f":"SUMIFS(TabBDMenus[Quantité légume],TabBDMenus[Nom légume],$A31,TabBDMenus[Nom mois menu],$M$3)+SUMIFS(TabBDMenus[Quantité légume deux],TabBDMenus[Nom légume deux],$A31,TabBDMenus[Nom mois menu],$M$3)","v":0},0]
["Radis",{"$f":"SUMIFS(TabBDMenus[Quantité légume],TabBDMenus[Nom légume],$A32,TabBDMenus[Nom mois menu],$B$3)+SUMIFS(TabBDMenus[Quantité légume deux],TabBDMenus[Nom légume deux],$A32,TabBDMenus[Nom mois menu],$B$3)","v":0},{"$f":"SUMIFS(TabBDMenus[Quantité légume],TabBDMenus[Nom légume],$A32,TabBDMenus[Nom mois menu],$C$3)+SUMIFS(TabBDMenus[Quantité légume deux],TabBDMenus[Nom légume deux],$A32,TabBDMenus[Nom mois menu],$C$3)","v":0},{"$f":"SUMIFS(TabBDMenus[Quantité légume],TabBDMenus[Nom légume],$A32,TabBDMenus[Nom mois menu],$D$3)+SUMIFS(TabBDMenus[Quantité légume deux],TabBDMenus[Nom légume deux],$A32,TabBDMenus[Nom mois menu],$D$3)","v":0},{"$f":"SUMIFS(TabBDMenus[Quantité légume],TabBDMenus[Nom légume],$A32,TabBDMenus[Nom mois menu],$E$3)+SUMIFS(TabBDMenus[Quantité légume deux],TabBDMenus[Nom légume deux],$A32,TabBDMenus[Nom mois menu],$E$3)","v":0},{"$f":"SUMIFS(TabBDMenus[Quantité légume],TabBDMenus[Nom légume],$A32,TabBDMenus[Nom mois menu],$F$3)+SUMIFS(TabBDMenus[Quantité légume deux],TabBDMenus[Nom légume deux],$A32,TabBDMenus[Nom mois menu],$F$3)","v":0},{"$f":"SUMIFS(TabBDMenus[Quantité légume],TabBDMenus[Nom légume],$A32,TabBDMenus[Nom mois menu],$G$3)+SUMIFS(TabBDMenus[Quantité légume deux],TabBDMenus[Nom légume deux],$A32,TabBDMenus[Nom mois menu],$G$3)","v":0},{"$f":"SUMIFS(TabBDMenus[Quantité légume],TabBDMenus[Nom légume],$A32,TabBDMenus[Nom mois menu],$H$3)+SUMIFS(TabBDMenus[Quantité légume deux],TabBDMenus[Nom légume deux],$A32,TabBDMenus[Nom mois menu],$H$3)","v":0},{"$f":"SUMIFS(TabBDMenus[Quantité légume],TabBDMenus[Nom légume],$A32,TabBDMenus[Nom mois menu],$I$3)+SUMIFS(TabBDMenus[Quantité légume deux],TabBDMenus[Nom légume deux],$A32,TabBDMenus[Nom mois menu],$I$3)","v":0},{"$f":"SUMIFS(TabBDMenus[Quantité légume],TabBDMenus[Nom légume],$A32,TabBDMenus[Nom mois menu],$J$3)+SUMIFS(TabBDMenus[Quantité légume deux],TabBDMenus[Nom légume deux],$A32,TabBDMenus[Nom mois menu],$J$3)","v":0},{"$f":"SUMIFS(TabBDMenus[Quantité légume],TabBDMenus[Nom légume],$A32,TabBDMenus[Nom mois menu],$K$3)+SUMIFS(TabBDMenus[Quantité légume deux],TabBDMenus[Nom légume deux],$A32,TabBDMenus[Nom mois menu],$K$3)","v":0},{"$f":"SUMIFS(TabBDMenus[Quantité légume],TabBDMenus[Nom légume],$A32,TabBDMenus[Nom mois menu],$L$3)+SUMIFS(TabBDMenus[Quantité légume deux],TabBDMenus[Nom légume deux],$A32,TabBDMenus[Nom mois menu],$L$3)","v":0},{"$f":"SUMIFS(TabBDMenus[Quantité légume],TabBDMenus[Nom légume],$A32,TabBDMenus[Nom mois menu],$M$3)+SUMIFS(TabBDMenus[Quantité légume deux],TabBDMenus[Nom légume deux],$A32,TabBDMenus[Nom mois menu],$M$3)","v":0},0]
["Ratatouille",{"$f":"SUMIFS(TabBDMenus[Quantité légume],TabBDMenus[Nom légume],$A33,TabBDMenus[Nom mois menu],$B$3)+SUMIFS(TabBDMenus[Quantité légume deux],TabBDMenus[Nom légume deux],$A33,TabBDMenus[Nom mois menu],$B$3)","v":0},{"$f":"SUMIFS(TabBDMenus[Quantité légume],TabBDMenus[Nom légume],$A33,TabBDMenus[Nom mois menu],$C$3)+SUMIFS(TabBDMenus[Quantité légume deux],TabBDMenus[Nom légume deux],$A33,TabBDMenus[Nom mois menu],$C$3)","v":0},{"$f":"SUMIFS(TabBDMenus[Quantité légume],TabBDMenus[Nom légume],$A33,TabBDMenus[Nom mois menu],$D$3)+SUMIFS(TabBDMenus[Quantité légume deux],TabBDMenus[Nom légume deux],$A33,TabBDMenus[Nom mois menu],$D$3)","v":0},{"$f":"SUMIFS(TabBDMenus[Quantité légume],TabBDMenus[Nom légume],$A33,TabBDMenus[Nom mois menu],$E$3)+SUMIFS(TabBDMenus[Quantité légume deux],TabBDMenus[Nom légume deux],$A33,TabBDMenus[Nom mois menu],$E$3)","v":0},{"$f":"SUMIFS(TabBDMenus[Quantité légume],TabBDMenus[Nom légume],$A33,TabBDMenus[Nom mois menu],$F$3)+SUMIFS(TabBDMenus[Quantité légume deux],TabBDMenus[Nom légume deux],$A33,TabBDMenus[Nom mois menu],$F$3)","v":0},{"$f":"SUMIFS(TabBDMenus[Quantité légume],TabBDMenus[Nom légume],$A33,TabBDMenus[Nom mois menu],$G$3)+SUMIFS(TabBDMenus[Quantité légume deux],TabBDMenus[Nom légume deux],$A33,TabBDMenus[Nom mois menu],$G$3)","v":0},{"$f":"SUMIFS(TabBDMenus[Quantité légume],TabBDMenus[Nom légume],$A33,TabBDMenus[Nom mois menu],$H$3)+SUMIFS(TabBDMenus[Quantité légume deux],TabBDMenus[Nom légume deux],$A33,TabBDMenus[Nom mois menu],$H$3)","v":0},{"$f":"SUMIFS(TabBDMenus[Quantité légume],TabBDMenus[Nom légume],$A33,TabBDMenus[Nom mois menu],$I$3)+SUMIFS(TabBDMenus[Quantité légume deux],TabBDMenus[Nom légume deux],$A33,TabBDMenus[Nom mois menu],$I$3)","v":0},{"$f":"SUMIFS(TabBDMenus[Quantité légume],TabBDMenus[Nom légume],$A33,TabBDMenus[Nom mois menu],$J$3)+SUMIFS(TabBDMenus[Quantité légume deux],TabBDMenus[Nom légume deux],$A33,TabBDMenus[Nom mois menu],$J$3)","v":0},{"$f":"SUMIFS(TabBDMenus[Quantité légume],TabBDMenus[Nom légume],$A33,TabBDMenus[Nom mois menu],$K$3)+SUMIFS(TabBDMenus[Quantité légume deux],TabBDMenus[Nom légume deux],$A33,TabBDMenus[Nom mois menu],$K$3)","v":0},{"$f":"SUMIFS(TabBDMenus[Quantité légume],TabBDMenus[Nom légume],$A33,TabBDMenus[Nom mois menu],$L$3)+SUMIFS(TabBDMenus[Quantité légume deux],TabBDMenus[Nom légume deux],$A33,TabBDMenus[Nom mois menu],$L$3)","v":0},{"$f":"SUMIFS(TabBDMenus[Quantité légume],TabBDMenus[Nom légume],$A33,TabBDMenus[Nom mois menu],$M$3)+SUMIFS(TabBDMenus[Quantité légume deux],TabBDMenus[Nom légume deux],$A33,TabBDMenus[Nom mois menu],$M$3)","v":0},0]
["Raviolis",{"$f":"SUMIFS(TabBDMenus[Quantité légume],TabBDMenus[Nom légume],$A34,TabBDMenus[Nom mois menu],$B$3)+SUMIFS(TabBDMenus[Quantité légume deux],TabBDMenus[Nom légume deux],$A34,TabBDMenus[Nom mois menu],$B$3)","v":0},{"$f":"SUMIFS(TabBDMenus[Quantité légume],TabBDMenus[Nom légume],$A34,TabBDMenus[Nom mois menu],$C$3)+SUMIFS(TabBDMenus[Quantité légume deux],TabBDMenus[Nom légume deux],$A34,TabBDMenus[Nom mois menu],$C$3)","v":0},{"$f":"SUMIFS(TabBDMenus[Quantité légume],TabBDMenus[Nom légume],$A34,TabBDMenus[Nom mois menu],$D$3)+SUMIFS(TabBDMenus[Quantité légume deux],TabBDMenus[Nom légume deux],$A34,TabBDMenus[Nom mois menu],$D$3)","v":0},{"$f":"SUMIFS(TabBDMenus[Quantité légume],TabBDMenus[Nom légume],$A34,TabBDMenus[Nom mois menu],$E$3)+SUMIFS(TabBDMenus[Quantité légume deux],TabBDMenus[Nom légume deux],$A34,TabBDMenus[Nom mois menu],$E$3)","v":0},{"$f":"SUMIFS(TabBDMenus[Quantité légume],TabBDMenus[Nom légume],$A34,TabBDMenus[Nom mois menu],$F$3)+SUMIFS(TabBDMenus[Quantité légume deux],TabBDMenus[Nom légume deux],$A34,TabBDMenus[Nom mois menu],$F$3)","v":0},{"$f":"SUMIFS(TabBDMenus[Quantité légume],TabBDMenus[Nom légume],$A34,TabBDMenus[Nom mois menu],$G$3)+SUMIFS(TabBDMenus[Quantité légume deux],TabBDMenus[Nom légume deux],$A34,TabBDMenus[Nom mois menu],$G$3)","v":0},{"$f":"SUMIFS(TabBDMenus[Quantité légume],TabBDMenus[Nom légume],$A34,TabBDMenus[Nom mois menu],$H$3)+SUMIFS(TabBDMenus[Quantité légume deux],TabBDMenus[Nom légume deux],$A34,TabBDMenus[Nom mois menu],$H$3)","v":0},{"$f":"SUMIFS(TabBDMenus[Quantité légume],TabBDMenus[Nom légume],$A34,TabBDMenus[Nom mois menu],$I$3)+SUMIFS(TabBDMenus[Quantité légume deux],TabBDMenus[Nom légume deux],$A34,TabBDMenus[Nom mois menu],$I$3)","v":0},{"$f":"SUMIFS(TabBDMenus[Quantité légume],TabBDMenus[Nom légume],$A34,TabBDMenus[Nom mois menu],$J$3)+SUMIFS(TabBDMenus[Quantité légume deux],TabBDMenus[Nom légume deux],$A34,TabBDMenus[Nom mois menu],$J$3)","v":0},{"$f":"SUMIFS(TabBDMenus[Quantité légume],TabBDMenus[Nom légume],$A34,TabBDMenus[Nom mois menu],$K$3)+SUMIFS(TabBDMenus[Quantité légume deux],TabBDMenus[Nom légume deux],$A34,TabBDMenus[Nom mois menu],$K$3)","v":0},{"$f":"SUMIFS(TabBDMenus[Quantité légume],TabBDMenus[Nom légume],$A34,TabBDMenus[Nom mois menu],$L$3)+SUMIFS(TabBDMenus[Quantité légume deux],TabBDMenus[Nom légume deux],$A34,TabBDMenus[Nom mois menu],$L$3)","v":0},{"$f":"SUMIFS(TabBDMenus[Quantité légume],TabBDMenus[Nom légume],$A34,TabBDMenus[Nom mois menu],$M$3)+SUMIFS(TabBDMenus[Quantité légume deux],TabBDMenus[Nom légume deux],$A34,TabBDMenus[Nom mois menu],$M$3)","v":0},0]
["Riz",{"$f":"SUMIFS(TabBDMenus[Quantité légume],TabBDMenus[Nom légume],$A35,TabBDMenus[Nom mois menu],$B$3)+SUMIFS(TabBDMenus[Quantité légume deux],TabBDMenus[Nom légume deux],$A35,TabBDMenus[Nom mois menu],$B$3)","v":0},{"$f":"SUMIFS(TabBDMenus[Quantité légume],TabBDMenus[Nom légume],$A35,TabBDMenus[Nom mois menu],$C$3)+SUMIFS(TabBDMenus[Quantité légume deux],TabBDMenus[Nom légume deux],$A35,TabBDMenus[Nom mois menu],$C$3)","v":0},{"$f":"SUMIFS(TabBDMenus[Quantité légume],TabBDMenus[Nom légume],$A35,TabBDMenus[Nom mois menu],$D$3)+SUMIFS(TabBDMenus[Quantité légume deux],TabBDMenus[Nom légume deux],$A35,TabBDMenus[Nom mois menu],$D$3)","v":0},{"$f":"SUMIFS(TabBDMenus[Quantité légume],TabBDMenus[Nom légume],$A35,TabBDMenus[Nom mois menu],$E$3)+SUMIFS(TabBDMenus[Quantité légume deux],TabBDMenus[Nom légume deux],$A35,TabBDMenus[Nom mois menu],$E$3)","v":0},{"$f":"SUMIFS(TabBDMenus[Quantité légume],TabBDMenus[Nom légume],$A35,TabBDMenus[Nom mois menu],$F$3)+SUMIFS(TabBDMenus[Quantité légume deux],TabBDMenus[Nom légume deux],$A35,TabBDMenus[Nom mois menu],$F$3)","v":0},{"$f":"SUMIFS(TabBDMenus[Quantité légume],TabBDMenus[Nom légume],$A35,TabBDMenus[Nom mois menu],$G$3)+SUMIFS(TabBDMenus[Quantité légume deux],TabBDMenus[Nom légume deux],$A35,TabBDMenus[Nom mois menu],$G$3)","v":0},{"$f":"SUMIFS(TabBDMenus[Quantité légume],TabBDMenus[Nom légume],$A35,TabBDMenus[Nom mois menu],$H$3)+SUMIFS(TabBDMenus[Quantité légume deux],TabBDMenus[Nom légume deux],$A35,TabBDMenus[Nom mois menu],$H$3)","v":0},{"$f":"SUMIFS(TabBDMenus[Quantité légume],TabBDMenus[Nom légume],$A35,TabBDMenus[Nom mois menu],$I$3)+SUMIFS(TabBDMenus[Quantité légume deux],TabBDMenus[Nom légume deux],$A35,TabBDMenus[Nom mois menu],$I$3)","v":0},{"$f":"SUMIFS(TabBDMenus[Quantité légume],TabBDMenus[Nom légume],$A35,TabBDMenus[Nom mois menu],$J$3)+SUMIFS(TabBDMenus[Quantité légume deux],TabBDMenus[Nom légume deux],$A35,TabBDMenus[Nom mois menu],$J$3)","v":0},{"$f":"SUMIFS(TabBDMenus[Quantité légume],TabBDMenus[Nom légume],$A35,TabBDMenus[Nom mois menu],$K$3)+SUMIFS(TabBDMenus[Quantité légume deux],TabBDMenus[Nom légume deux],$A35,TabBDMenus[Nom mois menu],$K$3)","v":0},{"$f":"SUMIFS(TabBDMenus[Quantité légume],TabBDMenus[Nom légume],$A35,TabBDMenus[Nom mois menu],$L$3)+SUMIFS(TabBDMenus[Quantité légume deux],TabBDMenus[Nom légume deux],$A35,TabBDMenus[Nom mois menu],$L$3)","v":0},{"$f":"SUMIFS(TabBDMenus[Quantité légume],TabBDMenus[Nom légume],$A35,TabBDMenus[Nom mois menu],$M$3)+SUMIFS(TabBDMenus[Quantité légume deux],TabBDMenus[Nom légume deux],$A35,TabBDMenus[Nom mois menu],$M$3)","v":0},0]
["Salade",{"$f":"SUMIFS(TabBDMenus[Quantité légume],TabBDMenus[Nom légume],$A36,TabBDMenus[Nom mois menu],$B$3)+SUMIFS(TabBDMenus[Quantité légume deux],TabBDMenus[Nom légume deux],$A36,TabBDMenus[Nom mois menu],$B$3)","v":0},{"$f":"SUMIFS(TabBDMenus[Quantité légume],TabBDMenus[Nom légume],$A36,TabBDMenus[Nom mois menu],$C$3)+SUMIFS(TabBDMenus[Quantité légume deux],TabBDMenus[Nom légume deux],$A36,TabBDMenus[Nom mois menu],$C$3)","v":0},{"$f":"SUMIFS(TabBDMenus[Quantité légume],TabBDMenus[Nom légume],$A36,TabBDMenus[Nom mois menu],$D$3)+SUMIFS(TabBDMenus[Quantité légume deux],TabBDMenus[Nom légume deux],$A36,TabBDMenus[Nom mois menu],$D$3)","v":0},{"$f":"SUMIFS(TabBDMenus[Quantité légume],TabBDMenus[Nom légume],$A36,TabBDMenus[Nom mois menu],$E$3)+SUMIFS(TabBDMenus[Quantité légume deux],TabBDMenus[Nom légume deux],$A36,TabBDMenus[Nom mois menu],$E$3)","v":0},{"$f":"SUMIFS(TabBDMenus[Quantité légume],TabBDMenus[Nom légume],$A36,TabBDMenus[Nom mois menu],$F$3)+SUMIFS(TabBDMenus[Quantité légume deux],TabBDMenus[Nom légume deux],$A36,TabBDMenus[Nom mois menu],$F$3)","v":0},{"$f":"SUMIFS(TabBDMenus[Quantité légume],TabBDMenus[Nom légume],$A36,TabBDMenus[Nom mois menu],$G$3)+SUMIFS(TabBDMenus[Quantité légume deux],TabBDMenus[Nom légume deux],$A36,TabBDMenus[Nom mois menu],$G$3)","v":0},{"$f":"SUMIFS(TabBDMenus[Quantité légume],TabBDMenus[Nom légume],$A36,TabBDMenus[Nom mois menu],$H$3)+SUMIFS(TabBDMenus[Quantité légume deux],TabBDMenus[Nom légume deux],$A36,TabBDMenus[Nom mois menu],$H$3)","v":0},{"$f":"SUMIFS(TabBDMenus[Quantité légume],TabBDMenus[Nom légume],$A36,TabBDMenus[Nom mois menu],$I$3)+SUMIFS(TabBDMenus[Quantité légume deux],TabBDMenus[Nom légume deux],$A36,TabBDMenus[Nom mois menu],$I$3)","v":0},{"$f":"SUMIFS(TabBDMenus[Quantité légume],TabBDMenus[Nom légume],$A36,TabBDMenus[Nom mois menu],$J$3)+SUMIFS(TabBDMenus[Quantité légume deux],TabBDMenus[Nom légume deux],$A36,TabBDMenus[Nom mois menu],$J$3)","v":0},{"$f":"SUMIFS(TabBDMenus[Quantité légume],TabBDMenus[Nom légume],$A36,TabBDMenus[Nom mois menu],$K$3)+SUMIFS(TabBDMenus[Quantité légume deux],TabBDMenus[Nom légume deux],$A36,TabBDMenus[Nom mois menu],$K$3)","v":0},{"$f":"SUMIFS(TabBDMenus[Quantité légume],TabBDMenus[Nom légume],$A36,TabBDMenus[Nom mois menu],$L$3)+SUMIFS(TabBDMenus[Quantité légume deux],TabBDMenus[Nom légume deux],$A36,TabBDMenus[Nom mois menu],$L$3)","v":0},{"$f":"SUMIFS(TabBDMenus[Quantité légume],TabBDMenus[Nom légume],$A36,TabBDMenus[Nom mois menu],$M$3)+SUMIFS(TabBDMenus[Quantité légume deux],TabBDMenus[Nom légume deux],$A36,TabBDMenus[Nom mois menu],$M$3)","v":0},0]
["Salsifis",{"$f":"SUMIFS(TabBDMenus[Quantité légume],TabBDMenus[Nom légume],$A37,TabBDMenus[Nom mois menu],$B$3)+SUMIFS(TabBDMenus[Quantité légume deux],TabBDMenus[Nom légume deux],$A37,TabBDMenus[Nom mois menu],$B$3)","v":0},{"$f":"SUMIFS(TabBDMenus[Quantité légume],TabBDMenus[Nom légume],$A37,TabBDMenus[Nom mois menu],$C$3)+SUMIFS(TabBDMenus[Quantité légume deux],TabBDMenus[Nom légume deux],$A37,TabBDMenus[Nom mois menu],$C$3)","v":0},{"$f":"SUMIFS(TabBDMenus[Quantité légume],TabBDMenus[Nom légume],$A37,TabBDMenus[Nom mois menu],$D$3)+SUMIFS(TabBDMenus[Quantité légume deux],TabBDMenus[Nom légume deux],$A37,TabBDMenus[Nom mois menu],$D$3)","v":0},{"$f":"SUMIFS(TabBDMenus[Quantité légume],TabBDMenus[Nom légume],$A37,TabBDMenus[Nom mois menu],$E$3)+SUMIFS(TabBDMenus[Quantité légume deux],TabBDMenus[Nom légume deux],$A37,TabBDMenus[Nom mois menu],$E$3)","v":0},{"$f":"SUMIFS(TabBDMenus[Quantité légume],TabBDMenus[Nom légume],$A37,TabBDMenus[Nom mois menu],$F$3)+SUMIFS(TabBDMenus[Quantité légume deux],TabBDMenus[Nom légume deux],$A37,TabBDMenus[Nom mois menu],$F$3)","v":0},{"$f":"SUMIFS(TabBDMenus[Quantité légume],TabBDMenus[Nom légume],$A37,TabBDMenus[Nom mois menu],$G$3)+SUMIFS(TabBDMenus[Quantité légume deux],TabBDMenus[Nom légume deux],$A37,TabBDMenus[Nom mois menu],$G$3)","v":0},{"$f":"SUMIFS(TabBDMenus[Quantité légume],TabBDMenus[Nom légume],$A37,TabBDMenus[Nom mois menu],$H$3)+SUMIFS(TabBDMenus[Quantité légume deux],TabBDMenus[Nom légume deux],$A37,TabBDMenus[Nom mois menu],$H$3)","v":0},{"$f":"SUMIFS(TabBDMenus[Quantité légume],TabBDMenus[Nom légume],$A37,TabBDMenus[Nom mois menu],$I$3)+SUMIFS(TabBDMenus[Quantité légume deux],TabBDMenus[Nom légume deux],$A37,TabBDMenus[Nom mois menu],$I$3)","v":0},{"$f":"SUMIFS(TabBDMenus[Quantité légume],TabBDMenus[Nom légume],$A37,TabBDMenus[Nom mois menu],$J$3)+SUMIFS(TabBDMenus[Quantité légume deux],TabBDMenus[Nom légume deux],$A37,TabBDMenus[Nom mois menu],$J$3)","v":0},{"$f":"SUMIFS(TabBDMenus[Quantité légume],TabBDMenus[Nom légume],$A37,TabBDMenus[Nom mois menu],$K$3)+SUMIFS(TabBDMenus[Quantité légume deux],TabBDMenus[Nom légume deux],$A37,TabBDMenus[Nom mois menu],$K$3)","v":0},{"$f":"SUMIFS(TabBDMenus[Quantité légume],TabBDMenus[Nom légume],$A37,TabBDMenus[Nom mois menu],$L$3)+SUMIFS(TabBDMenus[Quantité légume deux],TabBDMenus[Nom légume deux],$A37,TabBDMenus[Nom mois menu],$L$3)","v":0},{"$f":"SUMIFS(TabBDMenus[Quantité légume],TabBDMenus[Nom légume],$A37,TabBDMenus[Nom mois menu],$M$3)+SUMIFS(TabBDMenus[Quantité légume deux],TabBDMenus[Nom légume deux],$A37,TabBDMenus[Nom mois menu],$M$3)","v":0},0]
["Tomates",{"$f":"SUMIFS(TabBDMenus[Quantité légume],TabBDMenus[Nom légume],$A38,TabBDMenus[Nom mois menu],$B$3)+SUMIFS(TabBDMenus[Quantité légume deux],TabBDMenus[Nom légume deux],$A38,TabBDMenus[Nom mois menu],$B$3)","v":0},{"$f":"SUMIFS(TabBDMenus[Quantité légume],TabBDMenus[Nom légume],$A38,TabBDMenus[Nom mois menu],$C$3)+SUMIFS(TabBDMenus[Quantité légume deux],TabBDMenus[Nom légume deux],$A38,TabBDMenus[Nom mois menu],$C$3)","v":0},{"$f":"SUMIFS(TabBDMenus[Quantité légume],TabBDMenus[Nom légume],$A38,TabBDMenus[Nom mois menu],$D$3)+SUMIFS(TabBDMenus[Quantité légume deux],TabBDMenus[Nom légume deux],$A38,TabBDMenus[Nom mois menu],$D$3)","v":0},{"$f":"SUMIFS(TabBDMenus[Quantité légume],TabBDMenus[Nom légume],$A38,TabBDMenus[Nom mois menu],$E$3)+SUMIFS(TabBDMenus[Quantité légume deux],TabBDMenus[Nom légume deux],$A38,TabBDMenus[Nom mois menu],$E$3)","v":0},{"$f":"SUMIFS(TabBDMenus[Quantité légume],TabBDMenus[Nom légume],$A38,TabBDMenus[Nom mois menu],$F$3)+SUMIFS(TabBDMenus[Quantité légume deux],TabBDMenus[Nom légume deux],$A38,TabBDMenus[Nom mois menu],$F$3)","v":0},{"$f":"SUMIFS(TabBDMenus[Quantité légume],TabBDMenus[Nom légume],$A38,TabBDMenus[Nom mois menu],$G$3)+SUMIFS(TabBDMenus[Quantité légume deux],TabBDMenus[Nom légume deux],$A38,TabBDMenus[Nom mois menu],$G$3)","v":0},{"$f":"SUMIFS(TabBDMenus[Quantité légume],TabBDMenus[Nom légume],$A38,TabBDMenus[Nom mois menu],$H$3)+SUMIFS(TabBDMenus[Quantité légume deux],TabBDMenus[Nom légume deux],$A38,TabBDMenus[Nom mois menu],$H$3)","v":0},{"$f":"SUMIFS(TabBDMenus[Quantité légume],TabBDMenus[Nom légume],$A38,TabBDMenus[Nom mois menu],$I$3)+SUMIFS(TabBDMenus[Quantité légume deux],TabBDMenus[Nom légume deux],$A38,TabBDMenus[Nom mois menu],$I$3)","v":0},{"$f":"SUMIFS(TabBDMenus[Quantité légume],TabBDMenus[Nom légume],$A38,TabBDMenus[Nom mois menu],$J$3)+SUMIFS(TabBDMenus[Quantité légume deux],TabBDMenus[Nom légume deux],$A38,TabBDMenus[Nom mois menu],$J$3)","v":0},{"$f":"SUMIFS(TabBDMenus[Quantité légume],TabBDMenus[Nom légume],$A38,TabBDMenus[Nom mois menu],$K$3)+SUMIFS(TabBDMenus[Quantité légume deux],TabBDMenus[Nom légume deux],$A38,TabBDMenus[Nom mois menu],$K$3)","v":0},{"$f":"SUMIFS(TabBDMenus[Quantité légume],TabBDMenus[Nom légume],$A38,TabBDMenus[Nom mois menu],$L$3)+SUMIFS(TabBDMenus[Quantité légume deux],TabBDMenus[Nom légume deux],$A38,TabBDMenus[Nom mois menu],$L$3)","v":0},{"$f":"SUMIFS(TabBDMenus[Quantité légume],TabBDMenus[Nom légume],$A38,TabBDMenus[Nom mois menu],$M$3)+SUMIFS(TabBDMenus[Quantité légume deux],TabBDMenus[Nom légume deux],$A38,TabBDMenus[Nom mois menu],$M$3)","v":0},0]
["Tomates pelées",{"$f":"SUMIFS(TabBDMenus[Quantité légume],TabBDMenus[Nom légume],$A39,TabBDMenus[Nom mois menu],$B$3)+SUMIFS(TabBDMenus[Quantité légume deux],TabBDMenus[Nom légume deux],$A39,TabBDMenus[Nom mois menu],$B$3)","v":0},{"$f":"SUMIFS(TabBDMenus[Quantité légume],TabBDMenus[Nom légume],$A39,TabBDMenus[Nom mois menu],$C$3)+SUMIFS(TabBDMenus[Quantité légume deux],TabBDMenus[Nom légume deux],$A39,TabBDMenus[Nom mois menu],$C$3)","v":0},{"$f":"SUMIFS(TabBDMenus[Quantité légume],TabBDMenus[Nom légume],$A39,TabBDMenus[Nom mois menu],$D$3)+SUMIFS(TabBDMenus[Quantité légume deux],TabBDMenus[Nom légume deux],$A39,TabBDMenus[Nom mois menu],$D$3)","v":0},{"$f":"SUMIFS(TabBDMenus[Quantité légume],TabBDMenus[Nom légume],$A39,TabBDMenus[Nom mois menu],$E$3)+SUMIFS(TabBDMenus[Quantité légume deux],TabBDMenus[Nom légume deux],$A39,TabBDMenus[Nom mois menu],$E$3)","v":0},{"$f":"SUMIFS(TabBDMenus[Quantité légume],TabBDMenus[Nom légume],$A39,TabBDMenus[Nom mois menu],$F$3)+SUMIFS(TabBDMenus[Quantité légume deux],TabBDMenus[Nom légume deux],$A39,TabBDMenus[Nom mois menu],$F$3)","v":0},{"$f":"SUMIFS(TabBDMenus[Quantité légume],TabBDMenus[Nom légume],$A39,TabBDMenus[Nom mois menu],$G$3)+SUMIFS(TabBDMenus[Quantité légume deux],TabBDMenus[Nom légume deux],$A39,TabBDMenus[Nom mois menu],$G$3)","v":0},{"$f":"SUMIFS(TabBDMenus[Quantité légume],TabBDMenus[Nom légume],$A39,TabBDMenus[Nom mois menu],$H$3)+SUMIFS(TabBDMenus[Quantité légume deux],TabBDMenus[Nom légume deux],$A39,TabBDMenus[Nom mois menu],$H$3)","v":0},{"$f":"SUMIFS(TabBDMenus[Quantité légume],TabBDMenus[Nom légume],$A39,TabBDMenus[Nom mois menu],$I$3)+SUMIFS(TabBDMenus[Quantité légume deux],TabBDMenus[Nom légume deux],$A39,TabBDMenus[Nom mois menu],$I$3)","v":0},{"$f":"SUMIFS(TabBDMenus[Quantité légume],TabBDMenus[Nom légume],$A39,TabBDMenus[Nom mois menu],$J$3)+SUMIFS(TabBDMenus[Quantité légume deux],TabBDMenus[Nom légume deux],$A39,TabBDMenus[Nom mois menu],$J$3)","v":0},{"$f":"SUMIFS(TabBDMenus[Quantité légume],TabBDMenus[Nom légume],$A39,TabBDMenus[Nom mois menu],$K$3)+SUMIFS(TabBDMenus[Quantité légume deux],TabBDMenus[Nom légume deux],$A39,TabBDMenus[Nom mois menu],$K$3)","v":0},{"$f":"SUMIFS(TabBDMenus[Quantité légume],TabBDMenus[Nom légume],$A39,TabBDMenus[Nom mois menu],$L$3)+SUMIFS(TabBDMenus[Quantité légume deux],TabBDMenus[Nom légume deux],$A39,TabBDMenus[Nom mois menu],$L$3)","v":0},{"$f":"SUMIFS(TabBDMenus[Quantité légume],TabBDMenus[Nom légume],$A39,TabBDMenus[Nom mois menu],$M$3)+SUMIFS(TabBDMenus[Quantité légume deux],TabBDMenus[Nom légume deux],$A39,TabBDMenus[Nom mois menu],$M$3)","v":0},0]
[{"$f":"\"Imprimé à Limeil-Brévannes, le \"&TEXT(TODAY(),\"jjjj j mmmm aaaa\")&\".\"","v":"Imprimé à Limeil-Brévannes, le vendredi 8 septembre 2023."}]
["Pour la création des formules, ne pas passer par ni Formules, ni Insérer une fonction. tapez le signe égal, tapez SOMME.SI.ENS, tapez une parenthèse ouvrante, tapez Tab (la liste des Tab disponibles apparaît, cliquez sur"]
["TabBDMenus), tapez un crochet ouvrant, la liste des noms définis disponibles s'affiche à l'écran (ici choisir QML) tapez un point virgule tapez Tab (la liste des Tab disponibles apparaît, cliquez sur TabBDMenus), tapez un "]
["crochet ouvrant, le liste des noms définis disponibles s'affiche à l'écran (ici cliquez sur NML) tapez un point virgule À partir de la feuille Quantités légumes, cliquez sur la cellule A4 tapez un point virgule tapez Tab (la liste"]
["des Tab disponibles apparaît, cliquez sur TabBDMenus tapez un crochet ouvrant, la liste des noms définis disponibles s'affiche à l'écran (ici cliquez sur Mois) tapez un point virgule À partir de la feuille Quantités légumes,"]
["cliquez sur la cellule B3 tapez une parenthèse fermante. Rendre A4 en référence relative sur la colonne. Rendre B3 en référence absolue."]

{"sheet":"Quantités viandes","index":9,"n_rows":48,"n_cols":14,"rows_kept":48,"cut":false,"hidden":false,"merged":[[0,0,0,13],[42,0,42,13]]}
[{"$f":"\"Quantités viandes de l'année \"&Accueil!$F$1&\" par mois et nom des viandes.\"","v":"Quantités viandes de l'année 2023 par mois et nom des viandes."}]
[]
["Nom des viandes","Janvier","Février","Mars","Avril","Mai","Juin","Juillet","Août","Septembre","Octobre","Novembre","Décembre",{"$f":"\"Total des viandes de l'année \"&Accueil!$F$1","v":"Total des viandes de l'année 2023"}]
["Bifteck haché de bœuf",{"$f":"SUMIFS(TabBDMenus[Quantité viande],TabBDMenus[Nom viande],$A4,TabBDMenus[Nom mois menu],$B$3)","v":0},{"$f":"SUMIFS(TabBDMenus[Quantité viande],TabBDMenus[Nom viande],$A4,TabBDMenus[Nom mois menu],$C$3)","v":0},{"$f":"SUMIFS(TabBDMenus[Quantité viande],TabBDMenus[Nom viande],$A4,TabBDMenus[Nom mois menu],$D$3)","v":0},{"$f":"SUMIFS(TabBDMenus[Quantité viande],TabBDMenus[Nom viande],$A4,TabBDMenus[Nom mois menu],$E$3)","v":0},{"$f":"SUMIFS(TabBDMenus[Quantité viande],TabBDMenus[Nom viande],$A4,TabBDMenus[Nom mois menu],$F$3)","v":0},{"$f":"SUMIFS(TabBDMenus[Quantité viande],TabBDMenus[Nom viande],$A4,TabBDMenus[Nom mois menu],$G$3)","v":0},{"$f":"SUMIFS(TabBDMenus[Quantité viande],TabBDMenus[Nom viande],$A4,TabBDMenus[Nom mois menu],$H$3)","v":0},{"$f":"SUMIFS(TabBDMenus[Quantité viande],TabBDMenus[Nom viande],$A4,TabBDMenus[Nom mois menu],$I$3)","v":0},{"$f":"SUMIFS(TabBDMenus[Quantité viande],TabBDMenus[Nom viande],$A4,TabBDMenus[Nom mois menu],$J$3)","v":0},{"$f":"SUMIFS(TabBDMenus[Quantité viande],TabBDMenus[Nom viande],$A4,TabBDMenus[Nom mois menu],$K$3)","v":0},{"$f":"SUMIFS(TabBDMenus[Quantité viande],TabBDMenus[Nom viande],$A4,TabBDMenus[Nom mois menu],$L$3)","v":0},{"$f":"SUMIFS(TabBDMenus[Quantité viande],TabBDMenus[Nom viande],$A4,TabBDMenus[Nom mois menu],$M$3)","v":0},{"$f":"SUM($B4:$M4)","v":0}]
["Bifteck haché de cheval",{"$f":"SUMIFS(TabBDMenus[Quantité viande],TabBDMenus[Nom viande],$A5,TabBDMenus[Nom mois menu],$B$3)","v":0},{"$f":"SUMIFS(TabBDMenus[Quantité viande],TabBDMenus[Nom viande],$A5,TabBDMenus[Nom mois menu],$C$3)","v":0},{"$f":"SUMIFS(TabBDMenus[Quantité viande],TabBDMenus[Nom viande],$A5,TabBDMenus[Nom mois menu],$D$3)","v":0},{"$f":"SUMIFS(TabBDMenus[Quantité viande],TabBDMenus[Nom viande],$A5,TabBDMenus[Nom mois menu],$E$3)","v":0},{"$f":"SUMIFS(TabBDMenus[Quantité viande],TabBDMenus[Nom viande],$A5,TabBDMenus[Nom mois menu],$F$3)","v":0},{"$f":"SUMIFS(TabBDMenus[Quantité viande],TabBDMenus[Nom viande],$A5,TabBDMenus[Nom mois menu],$G$3)","v":0},{"$f":"SUMIFS(TabBDMenus[Quantité viande],TabBDMenus[Nom viande],$A5,TabBDMenus[Nom mois menu],$H$3)","v":0},{"$f":"SUMIFS(TabBDMenus[Quantité viande],TabBDMenus[Nom viande],$A5,TabBDMenus[Nom mois menu],$I$3)","v":0},{"$f":"SUMIFS(TabBDMenus[Quantité viande],TabBDMenus[Nom viande],$A5,TabBDMenus[Nom mois menu],$J$3)","v":0},{"$f":"SUMIFS(TabBDMenus[Quantité viande],TabBDMenus[Nom viande],$A5,TabBDMenus[Nom mois menu],$K$3)","v":0},{"$f":"SUMIFS(TabBDMenus[Quantité viande],TabBDMenus[Nom viande],$A5,TabBDMenus[Nom mois menu],$L$3)","v":0},{"$f":"SUMIFS(TabBDMenus[Quantité viande],TabBDMenus[Nom viande],$A5,TabBDMenus[Nom mois menu],$M$3)","v":0},{"$f":"SUM($B5:$M5)","v":0}]
["Bifteck haché de veau",{"$f":"SUMIFS(TabBDMenus[Quantité viande],TabBDMenus[Nom viande],$A6,TabBDMenus[Nom mois menu],$B$3)","v":0},{"$f":"SUMIFS(TabBDMenus[Quantité viande],TabBDMenus[Nom viande],$A6,TabBDMenus[Nom mois menu],$C$3)","v":0},{"$f":"SUMIFS(TabBDMenus[Quantité viande],TabBDMenus[Nom viande],$A6,TabBDMenus[Nom mois menu],$D$3)","v":0},{"$f":"SUMIFS(TabBDMenus[Quantité viande],TabBDMenus[Nom viande],$A6,TabBDMenus[Nom mois menu],$E$3)","v":0},{"$f":"SUMIFS(TabBDMenus[Quantité viande],TabBDMenus[Nom viande],$A6,TabBDMenus[Nom mois menu],$F$3)","v":0},{"$f":"SUMIFS(TabBDMenus[Quantité viande],TabBDMenus[Nom viande],$A6,TabBDMenus[Nom mois menu],$G$3)","v":0},{"$f":"SUMIFS(TabBDMenus[Quantité viande],TabBDMenus[Nom viande],$A6,TabBDMenus[Nom mois menu],$H$3)","v":0},{"$f":"SUMIFS(TabBDMenus[Quantité viande],TabBDMenus[Nom viande],$A6,TabBDMenus[Nom mois menu],$I$3)","v":0},{"$f":"SUMIFS(TabBDMenus[Quantité viande],TabBDMenus[Nom viande],$A6,TabBDMenus[Nom mois menu],$J$3)","v":0},{"$f":"SUMIFS(TabBDMenus[Quantité viande],TabBDMenus[Nom viande],$A6,TabBDMenus[Nom mois menu],$K$3)","v":0},{"$f":"SUMIFS(TabBDMenus[Quantité viande],TabBDMenus[Nom viande],$A6,TabBDMenus[Nom mois menu],$L$3)","v":0},{"$f":"SUMIFS(TabBDMenus[Quantité viande],TabBDMenus[Nom viande],$A6,TabBDMenus[Nom mois menu],$M$3)","v":0},0]
["Bouchée à la reine",{"$f":"SUMIFS(TabBDMenus[Quantité viande],TabBDMenus[Nom viande],$A7,TabBDMenus[Nom mois menu],$B$3)","v":0},{"$f":"SUMIFS(TabBDMenus[Quantité viande],TabBDMenus[Nom viande],$A7,TabBDMenus[Nom mois menu],$C$3)","v":0},{"$f":"SUMIFS(TabBDMenus[Quantité viande],TabBDMenus[Nom viande],$A7,TabBDMenus[Nom mois menu],$D$3)","v":0},{"$f":"SUMIFS(TabBDMenus[Quantité viande],TabBDMenus[Nom viande],$A7,TabBDMenus[Nom mois menu],$E$3)","v":0},{"$f":"SUMIFS(TabBDMenus[Quantité viande],TabBDMenus[Nom viande],$A7,TabBDMenus[Nom mois menu],$F$3)","v":0},{"$f":"SUMIFS(TabBDMenus[Quantité viande],TabBDMenus[Nom viande],$A7,TabBDMenus[Nom mois menu],$G$3)","v":0},{"$f":"SUMIFS(TabBDMenus[Quantité viande],TabBDMenus[Nom viande],$A7,TabBDMenus[Nom mois menu],$H$3)","v":0},{"$f":"SUMIFS(TabBDMenus[Quantité viande],TabBDMenus[Nom viande],$A7,TabBDMenus[Nom mois menu],$I$3)","v":0},{"$f":"SUMIFS(TabBDMenus[Quantité viande],TabBDMenus[Nom viande],$A7,TabBDMenus[Nom mois menu],$J$3)","v":0},{"$f":"SUMIFS(TabBDMenus[Quantité viande],TabBDMenus[Nom viande],$A7,TabBDMenus[Nom mois menu],$K$3)","v":0},{"$f":"SUMIFS(TabBDMenus[Quantité viande],TabBDMenus[Nom viande],$A7,TabBDMenus[Nom mois menu],$L$3)","v":0},{"$f":"SUMIFS(TabBDMenus[Quantité viande],TabBDMenus[Nom viande],$A7,TabBDMenus[Nom mois menu],$M$3)","v":0},0]
["Boudin",{"$f":"SUMIFS(TabBDMenus[Quantité viande],TabBDMenus[Nom viande],$A8,TabBDMenus[Nom mois menu],$B$3)","v":0},{"$f":"SUMIFS(TabBDMenus[Quantité viande],TabBDMenus[Nom viande],$A8,TabBDMenus[Nom mois menu],$C$3)","v":0},{"$f":"SUMIFS(TabBDMenus[Quantité viande],TabBDMenus[Nom viande],$A8,TabBDMenus[Nom mois menu],$D$3)","v":0},{"$f":"SUMIFS(TabBDMenus[Quantité viande],TabBDMenus[Nom viande],$A8,TabBDMenus[Nom mois menu],$E$3)","v":0},{"$f":"SUMIFS(TabBDMenus[Quantité viande],TabBDMenus[Nom viande],$A8,TabBDMenus[Nom mois menu],$F$3)","v":0},{"$f":"SUMIFS(TabBDMenus[Quantité viande],TabBDMenus[Nom viande],$A8,TabBDMenus[Nom mois menu],$G$3)","v":0},{"$f":"SUMIFS(TabBDMenus[Quantité viande],TabBDMenus[Nom viande],$A8,TabBDMenus[Nom mois menu],$H$3)","v":0},{"$f":"SUMIFS(TabBDMenus[Quantité viande],TabBDMenus[Nom viande],$A8,TabBDMenus[Nom mois menu],$I$3)","v":0},{"$f":"SUMIFS(TabBDMenus[Quantité viande],TabBDMenus[Nom viande],$A8,TabBDMenus[Nom mois menu],$J$3)","v":0},{"$f":"SUMIFS(TabBDMenus[Quantité viande],TabBDMenus[Nom viande],$A8,TabBDMenus[Nom mois menu],$K$3)","v":0},{"$f":"SUMIFS(TabBDMenus[Quantité viande],TabBDMenus[Nom viande],$A8,TabBDMenus[Nom mois menu],$L$3)","v":0},{"$f":"SUMIFS(TabBDMenus[Quantité viande],TabBDMenus[Nom viande],$A8,TabBDMenus[Nom mois menu],$M$3)","v":0},0]
["Cervelas",{"$f":"SUMIFS(TabBDMenus[Quantité viande],TabBDMenus[Nom viande],$A9,TabBDMenus[Nom mois menu],$B$3)","v":0},{"$f":"SUMIFS(TabBDMenus[Quantité viande],TabBDMenus[Nom viande],$A9,TabBDMenus[Nom mois menu],$C$3)","v":0},{"$f":"SUMIFS(TabBDMenus[Quantité viande],TabBDMenus[Nom viande],$A9,TabBDMenus[Nom mois menu],$D$3)","v":0},{"$f":"SUMIFS(TabBDMenus[Quantité viande],TabBDMenus[Nom viande],$A9,TabBDMenus[Nom mois menu],$E$3)","v":0},{"$f":"SUMIFS(TabBDMenus[Quantité viande],TabBDMenus[Nom viande],$A9,TabBDMenus[Nom mois menu],$F$3)","v":0},{"$f":"SUMIFS(TabBDMenus[Quantité viande],TabBDMenus[Nom viande],$A9,TabBDMenus[Nom mois menu],$G$3)","v":0},{"$f":"SUMIFS(TabBDMenus[Quantité viande],TabBDMenus[Nom viande],$A9,TabBDMenus[Nom mois menu],$H$3)","v":0},{"$f":"SUMIFS(TabBDMenus[Quantité viande],TabBDMenus[Nom viande],$A9,TabBDMenus[Nom mois menu],$I$3)","v":0},{"$f":"SUMIFS(TabBDMenus[Quantité viande],TabBDMenus[Nom viande],$A9,TabBDMenus[Nom mois menu],$J$3)","v":0},{"$f":"SUMIFS(TabBDMenus[Quantité viande],TabBDMenus[Nom viande],$A9,TabBDMenus[Nom mois menu],$K$3)","v":0},{"$f":"SUMIFS(TabBDMenus[Quantité viande],TabBDMenus[Nom viande],$A9,TabBDMenus[Nom mois menu],$L$3)","v":0},{"$f":"SUMIFS(TabBDMenus[Quantité viande],TabBDMenus[Nom viande],$A9,TabBDMenus[Nom mois menu],$M$3)","v":0},0]
["Cœur",{"$f":"SUMIFS(TabBDMenus[Quantité viande],TabBDMenus[Nom viande],$A10,TabBDMenus[Nom mois menu],$B$3)","v":0},{"$f":"SUMIFS(TabBDMenus[Quantité viande],TabBDMenus[Nom viande],$A10,TabBDMenus[Nom mois menu],$C$3)","v":0},{"$f":"SUMIFS(TabBDMenus[Quantité viande],TabBDMenus[Nom viande],$A10,TabBDMenus[Nom mois menu],$D$3)","v":0},{"$f":"SUMIFS(TabBDMenus[Quantité viande],TabBDMenus[Nom viande],$A10,TabBDMenus[Nom mois menu],$E$3)","v":0},{"$f":"SUMIFS(TabBDMenus[Quantité viande],TabBDMenus[Nom viande],$A10,TabBDMenus[Nom mois menu],$F$3)","v":0},{"$f":"SUMIFS(TabBDMenus[Quantité viande],TabBDMenus[Nom viande],$A10,TabBDMenus[Nom mois menu],$G$3)","v":0},{"$f":"SUMIFS(TabBDMenus[Quantité viande],TabBDMenus[Nom viande],$A10,TabBDMenus[Nom mois menu],$H$3)","v":0},{"$f":"SUMIFS(TabBDMenus[Quantité viande],TabBDMenus[Nom viande],$A10,TabBDMenus[Nom mois menu],$I$3)","v":0},{"$f":"SUMIFS(TabBDMenus[Quantité viande],TabBDMenus[Nom viande],$A10,TabBDMenus[Nom mois menu],$J$3)","v":0},{"$f":"SUMIFS(TabBDMenus[Quantité viande],TabBDMenus[Nom viande],$A10,TabBDMenus[Nom mois menu],$K$3)","v":0},{"$f":"SUMIFS(TabBDMenus[Quantité viande],TabBDMenus[Nom viande],$A10,TabBDMenus[Nom mois menu],$L$3)","v":0},{"$f":"SUMIFS(TabBDMenus[Quantité viande],TabBDMenus[Nom viande],$A10,TabBDMenus[Nom mois menu],$M$3)","v":0},0]
["Croque-monsieur",{"$f":"SUMIFS(TabBDMenus[Quantité viande],TabBDMenus[Nom viande],$A11,TabBDMenus[Nom mois menu],$B$3)","v":0},{"$f":"SUMIFS(TabBDMenus[Quantité viande],TabBDMenus[Nom viande],$A11,TabBDMenus[Nom mois menu],$C$3)","v":0},{"$f":"SUMIFS(TabBDMenus[Quantité viande],TabBDMenus[Nom viande],$A11,TabBDMenus[Nom mois menu],$D$3)","v":0},{"$f":"SUMIFS(TabBDMenus[Quantité viande],TabBDMenus[Nom viande],$A11,TabBDMenus[Nom mois menu],$E$3)","v":0},{"$f":"SUMIFS(TabBDMenus[Quantité viande],TabBDMenus[Nom viande],$A11,TabBDMenus[Nom mois menu],$F$3)","v":0},{"$f":"SUMIFS(TabBDMenus[Quantité viande],TabBDMenus[Nom viande],$A11,TabBDMenus[Nom mois menu],$G$3)","v":0},{"$f":"SUMIFS(TabBDMenus[Quantité viande],TabBDMenus[Nom viande],$A11,TabBDMenus[Nom mois menu],$H$3)","v":0},{"$f":"SUMIFS(TabBDMenus[Quantité viande],TabBDMenus[Nom viande],$A11,TabBDMenus[Nom mois menu],$I$3)","v":0},{"$f":"SUMIFS(TabBDMenus[Quantité viande],TabBDMenus[Nom viande],$A11,TabBDMenus[Nom mois menu],$J$3)","v":0},{"$f":"SUMIFS(TabBDMenus[Quantité viande],TabBDMenus[Nom viande],$A11,TabBDMenus[Nom mois menu],$K$3)","v":0},{"$f":"SUMIFS(TabBDMenus[Quantité viande],TabBDMenus[Nom viande],$A11,TabBDMenus[Nom mois menu],$L$3)","v":0},{"$f":"SUMIFS(TabBDMenus[Quantité viande],TabBDMenus[Nom viande],$A11,TabBDMenus[Nom mois menu],$M$3)","v":0},0]
["Foie",{"$f":"SUMIFS(TabBDMenus[Quantité viande],TabBDMenus[Nom viande],$A12,TabBDMenus[Nom mois menu],$B$3)","v":0},{"$f":"SUMIFS(TabBDMenus[Quantité viande],TabBDMenus[Nom viande],$A12,TabBDMenus[Nom mois menu],$C$3)","v":0},{"$f":"SUMIFS(TabBDMenus[Quantité viande],TabBDMenus[Nom viande],$A12,TabBDMenus[Nom mois menu],$D$3)","v":0},{"$f":"SUMIFS(TabBDMenus[Quantité viande],TabBDMenus[Nom viande],$A12,TabBDMenus[Nom mois menu],$E$3)","v":0},{"$f":"SUMIFS(TabBDMenus[Quantité viande],TabBDMenus[Nom viande],$A12,TabBDMenus[Nom mois menu],$F$3)","v":0},{"$f":"SUMIFS(TabBDMenus[Quantité viande],TabBDMenus[Nom viande],$A12,TabBDMenus[Nom mois menu],$G$3)","v":0},{"$f":"SUMIFS(TabBDMenus[Quantité viande],TabBDMenus[Nom viande],$A12,TabBDMenus[Nom mois menu],$H$3)","v":0},{"$f":"SUMIFS(TabBDMenus[Quantité viande],TabBDMenus[Nom viande],$A12,TabBDMenus[Nom mois menu],$I$3)","v":0},{"$f":"SUMIFS(TabBDMenus[Quantité viande],TabBDMenus[Nom viande],$A12,TabBDMenus[Nom mois menu],$J$3)","v":0},{"$f":"SUMIFS(TabBDMenus[Quantité viande],TabBDMenus[Nom viande],$A12,TabBDMenus[Nom mois menu],$K$3)","v":0},{"$f":"SUMIFS(TabBDMenus[Quantité viande],TabBDMenus[Nom viande],$A12,TabBDMenus[Nom mois menu],$L$3)","v":0},{"$f":"SUMIFS(TabBDMenus[Quantité viande],TabBDMenus[Nom viande],$A12,TabBDMenus[Nom mois menu],$M$3)","v":0},0]
["Fromage de tête",{"$f":"SUMIFS(TabBDMenus[Quantité viande],TabBDMenus[Nom viande],$A13,TabBDMenus[Nom mois menu],$B$3)","v":0},{"$f":"SUMIFS(TabBDMenus[Quantité viande],TabBDMenus[Nom viande],$A13,TabBDMenus[Nom mois menu],$C$3)","v":0},{"$f":"SUMIFS(TabBDMenus[Quantité viande],TabBDMenus[Nom viande],$A13,TabBDMenus[Nom mois menu],$D$3)","v":0},{"$f":"SUMIFS(TabBDMenus[Quantité viande],TabBDMenus[Nom viande],$A13,TabBDMenus[Nom mois menu],$E$3)","v":0},{"$f":"SUMIFS(TabBDMenus[Quantité viande],TabBDMenus[Nom viande],$A13,TabBDMenus[Nom mois menu],$F$3)","v":0},{"$f":"SUMIFS(TabBDMenus[Quantité viande],TabBDMenus[Nom viande],$A13,TabBDMenus[Nom mois menu],$G$3)","v":0},{"$f":"SUMIFS(TabBDMenus[Quantité viande],TabBDMenus[Nom viande],$A13,TabBDMenus[Nom mois menu],$H$3)","v":0},{"$f":"SUMIFS(TabBDMenus[Quantité viande],TabBDMenus[Nom viande],$A13,TabBDMenus[Nom mois menu],$I$3)","v":0},{"$f":"SUMIFS(TabBDMenus[Quantité viande],TabBDMenus[Nom viande],$A13,TabBDMenus[Nom mois menu],$J$3)","v":0},{"$f":"SUMIFS(TabBDMenus[Quantité viande],TabBDMenus[Nom viande],$A13,TabBDMenus[Nom mois menu],$K$3)","v":0},{"$f":"SUMIFS(TabBDMenus[Quantité viande],TabBDMenus[Nom viande],$A13,TabBDMenus[Nom mois menu],$L$3)","v":0},{"$f":"SUMIFS(TabBDMenus[Quantité viande],TabBDMenus[Nom viande],$A13,TabBDMenus[Nom mois menu],$M$3)","v":0},0]
["Jambon",{"$f":"SUMIFS(TabBDMenus[Quantité viande],TabBDMenus[Nom viande],$A14,TabBDMenus[Nom mois menu],$B$3)","v":0},{"$f":"SUMIFS(TabBDMenus[Quantité viande],TabBDMenus[Nom viande],$A14,TabBDMenus[Nom mois menu],$C$3)","v":0},{"$f":"SUMIFS(TabBDMenus[Quantité viande],TabBDMenus[Nom viande],$A14,TabBDMenus[Nom mois menu],$D$3)","v":0},{"$f":"SUMIFS(TabBDMenus[Quantité viande],TabBDMenus[Nom viande],$A14,TabBDMenus[Nom mois menu],$E$3)","v":0},{"$f":"SUMIFS(TabBDMenus[Quantité viande],TabBDMenus[Nom viande],$A14,TabBDMenus[Nom mois menu],$F$3)","v":0},{"$f":"SUMIFS(TabBDMenus[Quantité viande],TabBDMenus[Nom viande],$A14,TabBDMenus[Nom mois menu],$G$3)","v":0},{"$f":"SUMIFS(TabBDMenus[Quantité viande],TabBDMenus[Nom viande],$A14,TabBDMenus[Nom mois menu],$H$3)","v":0},{"$f":"SUMIFS(TabBDMenus[Quantité viande],TabBDMenus[Nom viande],$A14,TabBDMenus[Nom mois menu],$I$3)","v":0},{"$f":"SUMIFS(TabBDMenus[Quantité viande],TabBDMenus[Nom viande],$A14,TabBDMenus[Nom mois menu],$J$3)","v":0},{"$f":"SUMIFS(TabBDMenus[Quantité viande],TabBDMenus[Nom viande],$A14,TabBDMenus[Nom mois menu],$K$3)","v":0},{"$f":"SUMIFS(TabBDMenus[Quantité viande],TabBDMenus[Nom viande],$A14,TabBDMenus[Nom mois menu],$L$3)","v":0},{"$f":"SUMIFS(TabBDMenus[Quantité viande],TabBDMenus[Nom viande],$A14,TabBDMenus[Nom mois menu],$M$3)","v":0},0]
["Jambonneau",{"$f":"SUMIFS(TabBDMenus[Quantité viande],TabBDMenus[Nom viande],$A15,TabBDMenus[Nom mois menu],$B$3)","v":0},{"$f":"SUMIFS(TabBDMenus[Quantité viande],TabBDMenus[Nom viande],$A15,TabBDMenus[Nom mois menu],$C$3)","v":0},{"$f":"SUMIFS(TabBDMenus[Quantité viande],TabBDMenus[Nom viande],$A15,TabBDMenus[Nom mois menu],$D$3)","v":0},{"$f":"SUMIFS(TabBDMenus[Quantité viande],TabBDMenus[Nom viande],$A15,TabBDMenus[Nom mois menu],$E$3)","v":0},{"$f":"SUMIFS(TabBDMenus[Quantité viande],TabBDMenus[Nom viande],$A15,TabBDMenus[Nom mois menu],$F$3)","v":0},{"$f":"SUMIFS(TabBDMenus[Quantité viande],TabBDMenus[Nom viande],$A15,TabBDMenus[Nom mois menu],$G$3)","v":0},{"$f":"SUMIFS(TabBDMenus[Quantité viande],TabBDMenus[Nom viande],$A15,TabBDMenus[Nom mois menu],$H$3)","v":0},{"$f":"SUMIFS(TabBDMenus[Quantité viande],TabBDMenus[Nom viande],$A15,TabBDMenus[Nom mois menu],$I$3)","v":0},{"$f":"SUMIFS(TabBDMenus[Quantité viande],TabBDMenus[Nom viande],$A15,TabBDMenus[Nom mois menu],$J$3)","v":0},{"$f":"SUMIFS(TabBDMenus[Quantité viande],TabBDMenus[Nom viande],$A15,TabBDMenus[Nom mois menu],$K$3)","v":0},{"$f":"SUMIFS(TabBDMenus[Quantité viande],TabBDMenus[Nom viande],$A15,TabBDMenus[Nom mois menu],$L$3)","v":0},{"$f":"SUMIFS(TabBDMenus[Quantité viande],TabBDMenus[Nom viande],$A15,TabBDMenus[Nom mois menu],$M$3)","v":0},0]
["Mortadelle",{"$f":"SUMIFS(TabBDMenus[Quantité viande],TabBDMenus[Nom viande],$A16,TabBDMenus[Nom mois menu],$B$3)","v":0},{"$f":"SUMIFS(TabBDMenus[Quantité viande],TabBDMenus[Nom viande],$A16,TabBDMenus[Nom mois menu],$C$3)","v":0},{"$f":"SUMIFS(TabBDMenus[Quantité viande],TabBDMenus[Nom viande],$A16,TabBDMenus[Nom mois menu],$D$3)","v":0},{"$f":"SUMIFS(TabBDMenus[Quantité viande],TabBDMenus[Nom viande],$A16,TabBDMenus[Nom mois menu],$E$3)","v":0},{"$f":"SUMIFS(TabBDMenus[Quantité viande],TabBDMenus[Nom viande],$A16,TabBDMenus[Nom mois menu],$F$3)","v":0},{"$f":"SUMIFS(TabBDMenus[Quantité viande],TabBDMenus[Nom viande],$A16,TabBDMenus[Nom mois menu],$G$3)","v":0},{"$f":"SUMIFS(TabBDMenus[Quantité viande],TabBDMenus[Nom viande],$A16,TabBDMenus[Nom mois menu],$H$3)","v":0},{"$f":"SUMIFS(TabBDMenus[Quantité viande],TabBDMenus[Nom viande],$A16,TabBDMenus[Nom mois menu],$I$3)","v":0},{"$f":"SUMIFS(TabBDMenus[Quantité viande],TabBDMenus[Nom viande],$A16,TabBDMenus[Nom mois menu],$J$3)","v":0},{"$f":"SUMIFS(TabBDMenus[Quantité viande],TabBDMenus[Nom viande],$A16,TabBDMenus[Nom mois menu],$K$3)","v":0},{"$f":"SUMIFS(TabBDMenus[Quantité viande],TabBDMenus[Nom viande],$A16,TabBDMenus[Nom mois menu],$L$3)","v":0},{"$f":"SUMIFS(TabBDMenus[Quantité viande],TabBDMenus[Nom viande],$A16,TabBDMenus[Nom mois menu],$M$3)","v":0},0]
["Œufs",{"$f":"SUMIFS(TabBDMenus[Quantité viande],TabBDMenus[Nom viande],$A17,TabBDMenus[Nom mois menu],$B$3)","v":0},{"$f":"SUMIFS(TabBDMenus[Quantité viande],TabBDMenus[Nom viande],$A17,TabBDMenus[Nom mois menu],$C$3)","v":0},{"$f":"SUMIFS(TabBDMenus[Quantité viande],TabBDMenus[Nom viande],$A17,TabBDMenus[Nom mois menu],$D$3)","v":0},{"$f":"SUMIFS(TabBDMenus[Quantité viande],TabBDMenus[Nom viande],$A17,TabBDMenus[Nom mois menu],$E$3)","v":0},{"$f":"SUMIFS(TabBDMenus[Quantité viande],TabBDMenus[Nom viande],$A17,TabBDMenus[Nom mois menu],$F$3)","v":0},{"$f":"SUMIFS(TabBDMenus[Quantité viande],TabBDMenus[Nom viande],$A17,TabBDMenus[Nom mois menu],$G$3)","v":0},{"$f":"SUMIFS(TabBDMenus[Quantité viande],TabBDMenus[Nom viande],$A17,TabBDMenus[Nom mois menu],$H$3)","v":0},{"$f":"SUMIFS(TabBDMenus[Quantité viande],TabBDMenus[Nom viande],$A17,TabBDMenus[Nom mois menu],$I$3)","v":0},{"$f":"SUMIFS(TabBDMenus[Quantité viande],TabBDMenus[Nom viande],$A17,TabBDMenus[Nom mois menu],$J$3)","v":0},{"$f":"SUMIFS(TabBDMenus[Quantité viande],TabBDMenus[Nom viande],$A17,TabBDMenus[Nom mois menu],$K$3)","v":0},{"$f":"SUMIFS(TabBDMenus[Quantité viande],TabBDMenus[Nom viande],$A17,TabBDMenus[Nom mois menu],$L$3)","v":0},{"$f":"SUMIFS(TabBDMenus[Quantité viande],TabBDMenus[Nom viande],$A17,TabBDMenus[Nom mois menu],$M$3)","v":0},0]
["Pizza",{"$f":"SUMIFS(TabBDMenus[Quantité viande],TabBDMenus[Nom viande],$A18,TabBDMenus[Nom mois menu],$B$3)","v":0},{"$f":"SUMIFS(TabBDMenus[Quantité viande],TabBDMenus[Nom viande],$A18,TabBDMenus[Nom mois menu],$C$3)","v":0},{"$f":"SUMIFS(TabBDMenus[Quantité viande],TabBDMenus[Nom viande],$A18,TabBDMenus[Nom mois menu],$D$3)","v":0},{"$f":"SUMIFS(TabBDMenus[Quantité viande],TabBDMenus[Nom viande],$A18,TabBDMenus[Nom mois menu],$E$3)","v":0},{"$f":"SUMIFS(TabBDMenus[Quantité viande],TabBDMenus[Nom viande],$A18,TabBDMenus[Nom mois menu],$F$3)","v":0},{"$f":"SUMIFS(TabBDMenus[Quantité viande],TabBDMenus[Nom viande],$A18,TabBDMenus[Nom mois menu],$G$3)","v":0},{"$f":"SUMIFS(TabBDMenus[Quantité viande],TabBDMenus[Nom viande],$A18,TabBDMenus[Nom mois menu],$H$3)","v":0},{"$f":"SUMIFS(TabBDMenus[Quantité viande],TabBDMenus[Nom viande],$A18,TabBDMenus[Nom mois menu],$I$3)","v":0},{"$f":"SUMIFS(TabBDMenus[Quantité viande],TabBDMenus[Nom viande],$A18,TabBDMenus[Nom mois menu],$J$3)","v":0},{"$f":"SUMIFS(TabBDMenus[Quantité viande],TabBDMenus[Nom viande],$A18,TabBDMenus[Nom mois menu],$K$3)","v":0},{"$f":"SUMIFS(TabBDMenus[Quantité viande],TabBDMenus[Nom viande],$A18,TabBDMenus[Nom mois menu],$L$3)","v":0},{"$f":"SUMIFS(TabBDMenus[Quantité viande],TabBDMenus[Nom viande],$A18,TabBDMenus[Nom mois menu],$M$3)","v":0},0]
["Poisson",{"$f":"SUMIFS(TabBDMenus[Quantité viande],TabBDMenus[Nom viande],$A19,TabBDMenus[Nom mois menu],$B$3)","v":0},{"$f":"SUMIFS(TabBDMenus[Quantité viande],TabBDMenus[Nom viande],$A19,TabBDMenus[Nom mois menu],$C$3)","v":0},{"$f":"SUMIFS(TabBDMenus[Quantité viande],TabBDMenus[Nom viande],$A19,TabBDMenus[Nom mois menu],$D$3)","v":0},{"$f":"SUMIFS(TabBDMenus[Quantité viande],TabBDMenus[Nom viande],$A19,TabBDMenus[Nom mois menu],$E$3)","v":0},{"$f":"SUMIFS(TabBDMenus[Quantité viande],TabBDMenus[Nom viande],$A19,TabBDMenus[Nom mois menu],$F$3)","v":0},{"$f":"SUMIFS(TabBDMenus[Quantité viande],TabBDMenus[Nom viande],$A19,TabBDMenus[Nom mois menu],$G$3)","v":0},{"$f":"SUMIFS(TabBDMenus[Quantité viande],TabBDMenus[Nom viande],$A19,TabBDMenus[Nom mois menu],$H$3)","v":0},{"$f":"SUMIFS(TabBDMenus[Quantité viande],TabBDMenus[Nom viande],$A19,TabBDMenus[Nom mois menu],$I$3)","v":0},{"$f":"SUMIFS(TabBDMenus[Quantité viande],TabBDMenus[Nom viande],$A19,TabBDMenus[Nom mois menu],$J$3)","v":0},{"$f":"SUMIFS(TabBDMenus[Quantité viande],TabBDMenus[Nom viande],$A19,TabBDMenus[Nom mois menu],$K$3)","v":0},{"$f":"SUMIFS(TabBDMenus[Quantité viande],TabBDMenus[Nom viande],$A19,TabBDMenus[Nom mois menu],$L$3)","v":0},{"$f":"SUMIFS(TabBDMenus[Quantité viande],TabBDMenus[Nom viande],$A19,TabBDMenus[Nom mois menu],$M$3)","v":0},0]
["Quiche lorraine",{"$f":"SUMIFS(TabBDMenus[Quantité viande],TabBDMenus[Nom viande],$A20,TabBDMenus[Nom mois menu],$B$3)","v":0},{"$f":"SUMIFS(TabBDMenus[Quantité viande],TabBDMenus[Nom viande],$A20,TabBDMenus[Nom mois menu],$C$3)","v":0},{"$f":"SUMIFS(TabBDMenus[Quantité viande],TabBDMenus[Nom viande],$A20,TabBDMenus[Nom mois menu],$D$3)","v":0},{"$f":"SUMIFS(TabBDMenus[Quantité viande],TabBDMenus[Nom viande],$A20,TabBDMenus[Nom mois menu],$E$3)","v":0},{"$f":"SUMIFS(TabBDMenus[Quantité viande],TabBDMenus[Nom viande],$A20,TabBDMenus[Nom mois menu],$F$3)","v":0},{"$f":"SUMIFS(TabBDMenus[Quantité viande],TabBDMenus[Nom viande],$A20,TabBDMenus[Nom mois menu],$G$3)","v":0},{"$f":"SUMIFS(TabBDMenus[Quantité viande],TabBDMenus[Nom viande],$A20,TabBDMenus[Nom mois menu],$H$3)","v":0},{"$f":"SUMIFS(TabBDMenus[Quantité viande],TabBDMenus[Nom viande],$A20,TabBDMenus[Nom mois menu],$I$3)","v":0},{"$f":"SUMIFS(TabBDMenus[Quantité viande],TabBDMenus[Nom viande],$A20,TabBDMenus[Nom mois menu],$J$3)","v":0},{"$f":"SUMIFS(TabBDMenus[Quantité viande],TabBDMenus[Nom viande],$A20,TabBDMenus[Nom mois menu],$K$3)","v":0},{"$f":"SUMIFS(TabBDMenus[Quantité viande],TabBDMenus[Nom viande],$A20,TabBDMenus[Nom mois menu],$L$3)","v":0},{"$f":"SUMIFS(TabBDMenus[Quantité viande],TabBDMenus[Nom viande],$A20,TabBDMenus[Nom mois menu],$M$3)","v":0},0]
["Rôti d'agneau",{"$f":"SUMIFS(TabBDMenus[Quantité viande],TabBDMenus[Nom viande],$A21,TabBDMenus[Nom mois menu],$B$3)","v":0},{"$f":"SUMIFS(TabBDMenus[Quantité viande],TabBDMenus[Nom viande],$A21,TabBDMenus[Nom mois menu],$C$3)","v":0},{"$f":"SUMIFS(TabBDMenus[Quantité viande],TabBDMenus[Nom viande],$A21,TabBDMenus[Nom mois menu],$D$3)","v":0},{"$f":"SUMIFS(TabBDMenus[Quantité viande],TabBDMenus[Nom viande],$A21,TabBDMenus[Nom mois menu],$E$3)","v":0},{"$f":"SUMIFS(TabBDMenus[Quantité viande],TabBDMenus[Nom viande],$A21,TabBDMenus[Nom mois menu],$F$3)","v":0},{"$f":"SUMIFS(TabBDMenus[Quantité viande],TabBDMenus[Nom viande],$A21,TabBDMenus[Nom mois menu],$G$3)","v":0},{"$f":"SUMIFS(TabBDMenus[Quantité viande],TabBDMenus[Nom viande],$A21,TabBDMenus[Nom mois menu],$H$3)","v":0},{"$f":"SUMIFS(TabBDMenus[Quantité viande],TabBDMenus[Nom viande],$A21,TabBDMenus[Nom mois menu],$I$3)","v":0},{"$f":"SUMIFS(TabBDMenus[Quantité viande],TabBDMenus[Nom viande],$A21,TabBDMenus[Nom mois menu],$J$3)","v":0},{"$f":"SUMIFS(TabBDMenus[Quantité viande],TabBDMenus[Nom viande],$A21,TabBDMenus[Nom mois menu],$K$3)","v":0},{"$f":"SUMIFS(TabBDMenus[Quantité viande],TabBDMenus[Nom viande],$A21,TabBDMenus[Nom mois menu],$L$3)","v":0},{"$f":"SUMIFS(TabBDMenus[Quantité viande],TabBDMenus[Nom viande],$A21,TabBDMenus[Nom mois menu],$M$3)","v":0},0]
["Rôti de bœuf",{"$f":"SUMIFS(TabBDMenus[Quantité viande],TabBDMenus[Nom viande],$A22,TabBDMenus[Nom mois menu],$B$3)","v":0},{"$f":"SUMIFS(TabBDMenus[Quantité viande],TabBDMenus[Nom viande],$A22,TabBDMenus[Nom mois menu],$C$3)","v":0},{"$f":"SUMIFS(TabBDMenus[Quantité viande],TabBDMenus[Nom viande],$A22,TabBDMenus[Nom mois menu],$D$3)","v":0},{"$f":"SUMIFS(TabBDMenus[Quantité viande],TabBDMenus[Nom viande],$A22,TabBDMenus[Nom mois menu],$E$3)","v":0},{"$f":"SUMIFS(TabBDMenus[Quantité viande],TabBDMenus[Nom viande],$A22,TabBDMenus[Nom mois menu],$F$3)","v":0},{"$f":"SUMIFS(TabBDMenus[Quantité viande],TabBDMenus[Nom viande],$A22,TabBDMenus[Nom mois menu],$G$3)","v":0},{"$f":"SUMIFS(TabBDMenus[Quantité viande],TabBDMenus[Nom viande],$A22,TabBDMenus[Nom mois menu],$H$3)","v":0},{"$f":"SUMIFS(TabBDMenus[Quantité viande],TabBDMenus[Nom viande],$A22,TabBDMenus[Nom mois menu],$I$3)","v":0},{"$f":"SUMIFS(TabBDMenus[Quantité viande],TabBDMenus[Nom viande],$A22,TabBDMenus[Nom mois menu],$J$3)","v":0},{"$f":"SUMIFS(TabBDMenus[Quantité viande],TabBDMenus[Nom viande],$A22,TabBDMenus[Nom mois menu],$K$3)","v":0},{"$f":"SUMIFS(TabBDMenus[Quantité viande],TabBDMenus[Nom viande],$A22,TabBDMenus[Nom mois menu],$L$3)","v":0},{"$f":"SUMIFS(TabBDMenus[Quantité viande],TabBDMenus[Nom viande],$A22,TabBDMenus[Nom mois menu],$M$3)","v":0},0]
["Rôti de cheval",{"$f":"SUMIFS(TabBDMenus[Quantité viande],TabBDMenus[Nom viande],$A23,TabBDMenus[Nom mois menu],$B$3)","v":0},{"$f":"SUMIFS(TabBDMenus[Quantité viande],TabBDMenus[Nom viande],$A23,TabBDMenus[Nom mois menu],$C$3)","v":0},{"$f":"SUMIFS(TabBDMenus[Quantité viande],TabBDMenus[Nom viande],$A23,TabBDMenus[Nom mois menu],$D$3)","v":0},{"$f":"SUMIFS(TabBDMenus[Quantité viande],TabBDMenus[Nom viande],$A23,TabBDMenus[Nom mois menu],$E$3)","v":0},{"$f":"SUMIFS(TabBDMenus[Quantité viande],TabBDMenus[Nom viande],$A23,TabBDMenus[Nom mois menu],$F$3)","v":0},{"$f":"SUMIFS(TabBDMenus[Quantité viande],TabBDMenus[Nom viande],$A23,TabBDMenus[Nom mois menu],$G$3)","v":0},{"$f":"SUMIFS(TabBDMenus[Quantité viande],TabBDMenus[Nom viande],$A23,TabBDMenus[Nom mois menu],$H$3)","v":0},{"$f":"SUMIFS(TabBDMenus[Quantité viande],TabBDMenus[Nom viande],$A23,TabBDMenus[Nom mois menu],$I$3)","v":0},{"$f":"SUMIFS(TabBDMenus[Quantité viande],TabBDMenus[Nom viande],$A23,TabBDMenus[Nom mois menu],$J$3)","v":0},{"$f":"SUMIFS(TabBDMenus[Quantité viande],TabBDMenus[Nom viande],$A23,TabBDMenus[Nom mois menu],$K$3)","v":0},{"$f":"SUMIFS(TabBDMenus[Quantité viande],TabBDMenus[Nom viande],$A23,TabBDMenus[Nom mois menu],$L$3)","v":0},{"$f":"SUMIFS(TabBDMenus[Quantité viande],TabBDMenus[Nom viande],$A23,TabBDMenus[Nom mois menu],$M$3)","v":0},0]
["Rôti de porc",{"$f":"SUMIFS(TabBDMenus[Quantité viande],TabBDMenus[Nom viande],$A24,TabBDMenus[Nom mois menu],$B$3)","v":0},{"$f":"SUMIFS(TabBDMenus[Quantité viande],TabBDMenus[Nom viande],$A24,TabBDMenus[Nom mois menu],$C$3)","v":0},{"$f":"SUMIFS(TabBDMenus[Quantité viande],TabBDMenus[Nom viande],$A24,TabBDMenus[Nom mois menu],$D$3)","v":0},{"$f":"SUMIFS(TabBDMenus[Quantité viande],TabBDMenus[Nom viande],$A24,TabBDMenus[Nom mois menu],$E$3)","v":0},{"$f":"SUMIFS(TabBDMenus[Quantité viande],TabBDMenus[Nom viande],$A24,TabBDMenus[Nom mois menu],$F$3)","v":0},{"$f":"SUMIFS(TabBDMenus[Quantité viande],TabBDMenus[Nom viande],$A24,TabBDMenus[Nom mois menu],$G$3)","v":0},{"$f":"SUMIFS(TabBDMenus[Quantité viande],TabBDMenus[Nom viande],$A24,TabBDMenus[Nom mois menu],$H$3)","v":0},{"$f":"SUMIFS(TabBDMenus[Quantité viande],TabBDMenus[Nom viande],$A24,TabBDMenus[Nom mois menu],$I$3)","v":0},{"$f":"SUMIFS(TabBDMenus[Quantité viande],TabBDMenus[Nom viande],$A24,TabBDMenus[Nom mois menu],$J$3)","v":0},{"$f":"SUMIFS(TabBDMenus[Quantité viande],TabBDMenus[Nom viande],$A24,TabBDMenus[Nom mois menu],$K$3)","v":0},{"$f":"SUMIFS(TabBDMenus[Quantité viande],TabBDMenus[Nom viande],$A24,TabBDMenus[Nom mois menu],$L$3)","v":0},{"$f":"SUMIFS(TabBDMenus[Quantité viande],TabBDMenus[Nom viande],$A24,TabBDMenus[Nom mois menu],$M$3)","v":0},0]
["Rôti de veau",{"$f":"SUMIFS(TabBDMenus[Quantité viande],TabBDMenus[Nom viande],$A25,TabBDMenus[Nom mois menu],$B$3)","v":0},{"$f":"SUMIFS(TabBDMenus[Quantité viande],TabBDMenus[Nom viande],$A25,TabBDMenus[Nom mois menu],$C$3)","v":0},{"$f":"SUMIFS(TabBDMenus[Quantité viande],TabBDMenus[Nom viande],$A25,TabBDMenus[Nom mois menu],$D$3)","v":0},{"$f":"SUMIFS(TabBDMenus[Quantité viande],TabBDMenus[Nom viande],$A25,TabBDMenus[Nom mois menu],$E$3)","v":0},{"$f":"SUMIFS(TabBDMenus[Quantité viande],TabBDMenus[Nom viande],$A25,TabBDMenus[Nom mois menu],$F$3)","v":0},{"$f":"SUMIFS(TabBDMenus[Quantité viande],TabBDMenus[Nom viande],$A25,TabBDMenus[Nom mois menu],$G$3)","v":0},{"$f":"SUMIFS(TabBDMenus[Quantité viande],TabBDMenus[Nom viande],$A25,TabBDMenus[Nom mois menu],$H$3)","v":0},{"$f":"SUMIFS(TabBDMenus[Quantité viande],TabBDMenus[Nom viande],$A25,TabBDMenus[Nom mois menu],$I$3)","v":0},{"$f":"SUMIFS(TabBDMenus[Quantité viande],TabBDMenus[Nom viande],$A25,TabBDMenus[Nom mois menu],$J$3)","v":0},{"$f":"SUMIFS(TabBDMenus[Quantité viande],TabBDMenus[Nom viande],$A25,TabBDMenus[Nom mois menu],$K$3)","v":0},{"$f":"SUMIFS(TabBDMenus[Quantité viande],TabBDMenus[Nom viande],$A25,TabBDMenus[Nom mois menu],$L$3)","v":0},{"$f":"SUMIFS(TabBDMenus[Quantité viande],TabBDMenus[Nom viande],$A25,TabBDMenus[Nom mois menu],$M$3)","v":0},0]
["Roulade à la pistache",{"$f":"SUMIFS(TabBDMenus[Quantité viande],TabBDMenus[Nom viande],$A26,TabBDMenus[Nom mois menu],$B$3)","v":0},{"$f":"SUMIFS(TabBDMenus[Quantité viande],TabBDMenus[Nom viande],$A26,TabBDMenus[Nom mois menu],$C$3)","v":0},{"$f":"SUMIFS(TabBDMenus[Quantité viande],TabBDMenus[Nom viande],$A26,TabBDMenus[Nom mois menu],$D$3)","v":0},{"$f":"SUMIFS(TabBDMenus[Quantité viande],TabBDMenus[Nom viande],$A26,TabBDMenus[Nom mois menu],$E$3)","v":0},{"$f":"SUMIFS(TabBDMenus[Quantité viande],TabBDMenus[Nom viande],$A26,TabBDMenus[Nom mois menu],$F$3)","v":0},{"$f":"SUMIFS(TabBDMenus[Quantité viande],TabBDMenus[Nom viande],$A26,TabBDMenus[Nom mois menu],$G$3)","v":0},{"$f":"SUMIFS(TabBDMenus[Quantité viande],TabBDMenus[Nom viande],$A26,TabBDMenus[Nom mois menu],$H$3)","v":0},{"$f":"SUMIFS(TabBDMenus[Quantité viande],TabBDMenus[Nom viande],$A26,TabBDMenus[Nom mois menu],$I$3)","v":0},{"$f":"SUMIFS(TabBDMenus[Quantité viande],TabBDMenus[Nom viande],$A26,TabBDMenus[Nom mois menu],$J$3)","v":0},{"$f":"SUMIFS(TabBDMenus[Quantité viande],TabBDMenus[Nom viande],$A26,TabBDMenus[Nom mois menu],$K$3)","v":0},{"$f":"SUMIFS(TabBDMenus[Quantité viande],TabBDMenus[Nom viande],$A26,TabBDMenus[Nom mois menu],$L$3)","v":0},{"$f":"SUMIFS(TabBDMenus[Quantité viande],TabBDMenus[Nom viande],$A26,TabBDMenus[Nom mois menu],$M$3)","v":0},0]
["Roulé au fromage",{"$f":"SUMIFS(TabBDMenus[Quantité viande],TabBDMenus[Nom viande],$A27,TabBDMenus[Nom mois menu],$B$3)","v":0},{"$f":"SUMIFS(TabBDMenus[Quantité viande],TabBDMenus[Nom viande],$A27,TabBDMenus[Nom mois menu],$C$3)","v":0},{"$f":"SUMIFS(TabBDMenus[Quantité viande],TabBDMenus[Nom viande],$A27,TabBDMenus[Nom mois menu],$D$3)","v":0},{"$f":"SUMIFS(TabBDMenus[Quantité viande],TabBDMenus[Nom viande],$A27,TabBDMenus[Nom mois menu],$E$3)","v":0},{"$f":"SUMIFS(TabBDMenus[Quantité viande],TabBDMenus[Nom viande],$A27,TabBDMenus[Nom mois menu],$F$3)","v":0},{"$f":"SUMIFS(TabBDMenus[Quantité viande],TabBDMenus[Nom viande],$A27,TabBDMenus[Nom mois menu],$G$3)","v":0},{"$f":"SUMIFS(TabBDMenus[Quantité viande],TabBDMenus[Nom viande],$A27,TabBDMenus[Nom mois menu],$H$3)","v":0},{"$f":"SUMIFS(TabBDMenus[Quantité viande],TabBDMenus[Nom viande],$A27,TabBDMenus[Nom mois menu],$I$3)","v":0},{"$f":"SUMIFS(TabBDMenus[Quantité viande],TabBDMenus[Nom viande],$A27,TabBDMenus[Nom mois menu],$J$3)","v":0},{"$f":"SUMIFS(TabBDMenus[Quantité viande],TabBDMenus[Nom viande],$A27,TabBDMenus[Nom mois menu],$K$3)","v":0},{"$f":"SUMIFS(TabBDMenus[Quantité viande],TabBDMenus[Nom viande],$A27,TabBDMenus[Nom mois menu],$L$3)","v":0},{"$f":"SUMIFS(TabBDMenus[Quantité viande],TabBDMenus[Nom viande],$A27,TabBDMenus[Nom mois menu],$M$3)","v":0},0]
["Salami",{"$f":"SUMIFS(TabBDMenus[Quantité viande],TabBDMenus[Nom viande],$A28,TabBDMenus[Nom mois menu],$B$3)","v":0},{"$f":"SUMIFS(TabBDMenus[Quantité viande],TabBDMenus[Nom viande],$A28,TabBDMenus[Nom mois menu],$C$3)","v":0},{"$f":"SUMIFS(TabBDMenus[Quantité viande],TabBDMenus[Nom viande],$A28,TabBDMenus[Nom mois menu],$D$3)","v":0},{"$f":"SUMIFS(TabBDMenus[Quantité viande],TabBDMenus[Nom viande],$A28,TabBDMenus[Nom mois menu],$E$3)","v":0},{"$f":"SUMIFS(TabBDMenus[Quantité viande],TabBDMenus[Nom viande],$A28,TabBDMenus[Nom mois menu],$F$3)","v":0},{"$f":"SUMIFS(TabBDMenus[Quantité viande],TabBDMenus[Nom viande],$A28,TabBDMenus[Nom mois menu],$G$3)","v":0},{"$f":"SUMIFS(TabBDMenus[Quantité viande],TabBDMenus[Nom viande],$A28,TabBDMenus[Nom mois menu],$H$3)","v":0},{"$f":"SUMIFS(TabBDMenus[Quantité viande],TabBDMenus[Nom viande],$A28,TabBDMenus[Nom mois menu],$I$3)","v":0},{"$f":"SUMIFS(TabBDMenus[Quantité viande],TabBDMenus[Nom viande],$A28,TabBDMenus[Nom mois menu],$J$3)","v":0},{"$f":"SUMIFS(TabBDMenus[Quantité viande],TabBDMenus[Nom viande],$A28,TabBDMenus[Nom mois menu],$K$3)","v":0},{"$f":"SUMIFS(TabBDMenus[Quantité viande],TabBDMenus[Nom viande],$A28,TabBDMenus[Nom mois menu],$L$3)","v":0},{"$f":"SUMIFS(TabBDMenus[Quantité viande],TabBDMenus[Nom viande],$A28,TabBDMenus[Nom mois menu],$M$3)","v":0},0]
["Saucisses",{"$f":"SUMIFS(TabBDMenus[Quantité viande],TabBDMenus[Nom viande],$A29,TabBDMenus[Nom mois menu],$B$3)","v":0},{"$f":"SUMIFS(TabBDMenus[Quantité viande],TabBDMenus[Nom viande],$A29,TabBDMenus[Nom mois menu],$C$3)","v":0},{"$f":"SUMIFS(TabBDMenus[Quantité viande],TabBDMenus[Nom viande],$A29,TabBDMenus[Nom mois menu],$D$3)","v":0},{"$f":"SUMIFS(TabBDMenus[Quantité viande],TabBDMenus[Nom viande],$A29,TabBDMenus[Nom mois menu],$E$3)","v":0},{"$f":"SUMIFS(TabBDMenus[Quantité viande],TabBDMenus[Nom viande],$A29,TabBDMenus[Nom mois menu],$F$3)","v":0},{"$f":"SUMIFS(TabBDMenus[Quantité viande],TabBDMenus[Nom viande],$A29,TabBDMenus[Nom mois menu],$G$3)","v":0},{"$f":"SUMIFS(TabBDMenus[Quantité viande],TabBDMenus[Nom viande],$A29,TabBDMenus[Nom mois menu],$H$3)","v":0},{"$f":"SUMIFS(TabBDMenus[Quantité viande],TabBDMenus[Nom viande],$A29,TabBDMenus[Nom mois menu],$I$3)","v":0},{"$f":"SUMIFS(TabBDMenus[Quantité viande],TabBDMenus[Nom viande],$A29,TabBDMenus[Nom mois menu],$J$3)","v":0},{"$f":"SUMIFS(TabBDMenus[Quantité viande],TabBDMenus[Nom viande],$A29,TabBDMenus[Nom mois menu],$K$3)","v":0},{"$f":"SUMIFS(TabBDMenus[Quantité viande],TabBDMenus[Nom viande],$A29,TabBDMenus[Nom mois menu],$L$3)","v":0},{"$f":"SUMIFS(TabBDMenus[Quantité viande],TabBDMenus[Nom viande],$A29,TabBDMenus[Nom mois menu],$M$3)","v":0},0]
["Saucisson",{"$f":"SUMIFS(TabBDMenus[Quantité viande],TabBDMenus[Nom viande],$A30,TabBDMenus[Nom mois menu],$B$3)","v":0},{"$f":"SUMIFS(TabBDMenus[Quantité viande],TabBDMenus[Nom viande],$A30,TabBDMenus[Nom mois menu],$C$3)","v":0},{"$f":"SUMIFS(TabBDMenus[Quantité viande],TabBDMenus[Nom viande],$A30,TabBDMenus[Nom mois menu],$D$3)","v":0},{"$f":"SUMIFS(TabBDMenus[Quantité viande],TabBDMenus[Nom viande],$A30,TabBDMenus[Nom mois menu],$E$3)","v":0},{"$f":"SUMIFS(TabBDMenus[Quantité viande],TabBDMenus[Nom viande],$A30,TabBDMenus[Nom mois menu],$F$3)","v":0},{"$f":"SUMIFS(TabBDMenus[Quantité viande],TabBDMenus[Nom viande],$A30,TabBDMenus[Nom mois menu],$G$3)","v":0},{"$f":"SUMIFS(TabBDMenus[Quantité viande],TabBDMenus[Nom viande],$A30,TabBDMenus[Nom mois menu],$H$3)","v":0},{"$f":"SUMIFS(TabBDMenus[Quantité viande],TabBDMenus[Nom viande],$A30,TabBDMenus[Nom mois menu],$I$3)","v":0},{"$f":"SUMIFS(TabBDMenus[Quantité viande],TabBDMenus[Nom viande],$A30,TabBDMenus[Nom mois menu],$J$3)","v":0},{"$f":"SUMIFS(TabBDMenus[Quantité viande],TabBDMenus[Nom viande],$A30,TabBDMenus[Nom mois menu],$K$3)","v":0},{"$f":"SUMIFS(TabBDMenus[Quantité viande],TabBDMenus[Nom viande],$A30,TabBDMenus[Nom mois menu],$L$3)","v":0},{"$f":"SUMIFS(TabBDMenus[Quantité viande],TabBDMenus[Nom viande],$A30,TabBDMenus[Nom mois menu],$M$3)","v":0},0]
["Tête persillée",{"$f":"SUMIFS(TabBDMenus[Quantité viande],TabBDMenus[Nom viande],$A31,TabBDMenus[Nom mois menu],$B$3)","v":0},{"$f":"SUMIFS(TabBDMenus[Quantité viande],TabBDMenus[Nom viande],$A31,TabBDMenus[Nom mois menu],$C$3)","v":0},{"$f":"SUMIFS(TabBDMenus[Quantité viande],TabBDMenus[Nom viande],$A31,TabBDMenus[Nom mois menu],$D$3)","v":0},{"$f":"SUMIFS(TabBDMenus[Quantité viande],TabBDMenus[Nom viande],$A31,TabBDMenus[Nom mois menu],$E$3)","v":0},{"$f":"SUMIFS(TabBDMenus[Quantité viande],TabBDMenus[Nom viande],$A31,TabBDMenus[Nom mois menu],$F$3)","v":0},{"$f":"SUMIFS(TabBDMenus[Quantité viande],TabBDMenus[Nom viande],$A31,TabBDMenus[Nom mois menu],$G$3)","v":0},{"$f":"SUMIFS(TabBDMenus[Quantité viande],TabBDMenus[Nom viande],$A31,TabBDMenus[Nom mois menu],$H$3)","v":0},{"$f":"SUMIFS(TabBDMenus[Quantité viande],TabBDMenus[Nom viande],$A31,TabBDMenus[Nom mois menu],$I$3)","v":0},{"$f":"SUMIFS(TabBDMenus[Quantité viande],TabBDMenus[Nom viande],$A31,TabBDMenus[Nom mois menu],$J$3)","v":0},{"$f":"SUMIFS(TabBDMenus[Quantité viande],TabBDMenus[Nom viande],$A31,TabBDMenus[Nom mois menu],$K$3)","v":0},{"$f":"SUMIFS(TabBDMenus[Quantité viande],TabBDMenus[Nom viande],$A31,TabBDMenus[Nom mois menu],$L$3)","v":0},{"$f":"SUMIFS(TabBDMenus[Quantité viande],TabBDMenus[Nom viande],$A31,TabBDMenus[Nom mois menu],$M$3)","v":0},0]
["Tête roulée",{"$f":"SUMIFS(TabBDMenus[Quantité viande],TabBDMenus[Nom viande],$A32,TabBDMenus[Nom mois menu],$B$3)","v":0},{"$f":"SUMIFS(TabBDMenus[Quantité viande],TabBDMenus[Nom viande],$A32,TabBDMenus[Nom mois menu],$C$3)","v":0},{"$f":"SUMIFS(TabBDMenus[Quantité viande],TabBDMenus[Nom viande],$A32,TabBDMenus[Nom mois menu],$D$3)","v":0},{"$f":"SUMIFS(TabBDMenus[Quantité viande],TabBDMenus[Nom viande],$A32,TabBDMenus[Nom mois menu],$E$3)","v":0},{"$f":"SUMIFS(TabBDMenus[Quantité viande],TabBDMenus[Nom viande],$A32,TabBDMenus[Nom mois menu],$F$3)","v":0},{"$f":"SUMIFS(TabBDMenus[Quantité viande],TabBDMenus[Nom viande],$A32,TabBDMenus[Nom mois menu],$G$3)","v":0},{"$f":"SUMIFS(TabBDMenus[Quantité viande],TabBDMenus[Nom viande],$A32,TabBDMenus[Nom mois menu],$H$3)","v":0},{"$f":"SUMIFS(TabBDMenus[Quantité viande],TabBDMenus[Nom viande],$A32,TabBDMenus[Nom mois menu],$I$3)","v":0},{"$f":"SUMIFS(TabBDMenus[Quantité viande],TabBDMenus[Nom viande],$A32,TabBDMenus[Nom mois menu],$J$3)","v":0},{"$f":"SUMIFS(TabBDMenus[Quantité viande],TabBDMenus[Nom viande],$A32,TabBDMenus[Nom mois menu],$K$3)","v":0},{"$f":"SUMIFS(TabBDMenus[Quantité viande],TabBDMenus[Nom viande],$A32,TabBDMenus[Nom mois menu],$L$3)","v":0},{"$f":"SUMIFS(TabBDMenus[Quantité viande],TabBDMenus[Nom viande],$A32,TabBDMenus[Nom mois menu],$M$3)","v":0},0]
["Thon",{"$f":"SUMIFS(TabBDMenus[Quantité viande],TabBDMenus[Nom viande],$A33,TabBDMenus[Nom mois menu],$B$3)","v":0},{"$f":"SUMIFS(TabBDMenus[Quantité viande],TabBDMenus[Nom viande],$A33,TabBDMenus[Nom mois menu],$C$3)","v":0},{"$f":"SUMIFS(TabBDMenus[Quantité viande],TabBDMenus[Nom viande],$A33,TabBDMenus[Nom mois menu],$D$3)","v":0},{"$f":"SUMIFS(TabBDMenus[Quantité viande],TabBDMenus[Nom viande],$A33,TabBDMenus[Nom mois menu],$E$3)","v":0},{"$f":"SUMIFS(TabBDMenus[Quantité viande],TabBDMenus[Nom viande],$A33,TabBDMenus[Nom mois menu],$F$3)","v":0},{"$f":"SUMIFS(TabBDMenus[Quantité viande],TabBDMenus[Nom viande],$A33,TabBDMenus[Nom mois menu],$G$3)","v":0},{"$f":"SUMIFS(TabBDMenus[Quantité viande],TabBDMenus[Nom viande],$A33,TabBDMenus[Nom mois menu],$H$3)","v":0},{"$f":"SUMIFS(TabBDMenus[Quantité viande],TabBDMenus[Nom viande],$A33,TabBDMenus[Nom mois menu],$I$3)","v":0},{"$f":"SUMIFS(TabBDMenus[Quantité viande],TabBDMenus[Nom viande],$A33,TabBDMenus[Nom mois menu],$J$3)","v":0},{"$f":"SUMIFS(TabBDMenus[Quantité viande],TabBDMenus[Nom viande],$A33,TabBDMenus[Nom mois menu],$K$3)","v":0},{"$f":"SUMIFS(TabBDMenus[Quantité viande],TabBDMenus[Nom viande],$A33,TabBDMenus[Nom mois menu],$L$3)","v":0},{"$f":"SUMIFS(TabBDMenus[Quantité viande],TabBDMenus[Nom viande],$A33,TabBDMenus[Nom mois menu],$M$3)","v":0},0]
["Viande cassoulet",{"$f":"SUMIFS(TabBDMenus[Quantité viande],TabBDMenus[Nom viande],$A34,TabBDMenus[Nom mois menu],$B$3)","v":0},{"$f":"SUMIFS(TabBDMenus[Quantité viande],TabBDMenus[Nom viande],$A34,TabBDMenus[Nom mois menu],$C$3)","v":0},{"$f":"SUMIFS(TabBDMenus[Quantité viande],TabBDMenus[Nom viande],$A34,TabBDMenus[Nom mois menu],$D$3)","v":0},{"$f":"SUMIFS(TabBDMenus[Quantité viande],TabBDMenus[Nom viande],$A34,TabBDMenus[Nom mois menu],$E$3)","v":0},{"$f":"SUMIFS(TabBDMenus[Quantité viande],TabBDMenus[Nom viande],$A34,TabBDMenus[Nom mois menu],$F$3)","v":0},{"$f":"SUMIFS(TabBDMenus[Quantité viande],TabBDMenus[Nom viande],$A34,TabBDMenus[Nom mois menu],$G$3)","v":0},{"$f":"SUMIFS(TabBDMenus[Quantité viande],TabBDMenus[Nom viande],$A34,TabBDMenus[Nom mois menu],$H$3)","v":0},{"$f":"SUMIFS(TabBDMenus[Quantité viande],TabBDMenus[Nom viande],$A34,TabBDMenus[Nom mois menu],$I$3)","v":0},{"$f":"SUMIFS(TabBDMenus[Quantité viande],TabBDMenus[Nom viande],$A34,TabBDMenus[Nom mois menu],$J$3)","v":0},{"$f":"SUMIFS(TabBDMenus[Quantité viande],TabBDMenus[Nom viande],$A34,TabBDMenus[Nom mois menu],$K$3)","v":0},{"$f":"SUMIFS(TabBDMenus[Quantité viande],TabBDMenus[Nom viande],$A34,TabBDMenus[Nom mois menu],$L$3)","v":0},{"$f":"SUMIFS(TabBDMenus[Quantité viande],TabBDMenus[Nom viande],$A34,TabBDMenus[Nom mois menu],$M$3)","v":0},0]
["Viande choucroute",{"$f":"SUMIFS(TabBDMenus[Quantité viande],TabBDMenus[Nom viande],$A35,TabBDMenus[Nom mois menu],$B$3)","v":0},{"$f":"SUMIFS(TabBDMenus[Quantité viande],TabBDMenus[Nom viande],$A35,TabBDMenus[Nom mois menu],$C$3)","v":0},{"$f":"SUMIFS(TabBDMenus[Quantité viande],TabBDMenus[Nom viande],$A35,TabBDMenus[Nom mois menu],$D$3)","v":0},{"$f":"SUMIFS(TabBDMenus[Quantité viande],TabBDMenus[Nom viande],$A35,TabBDMenus[Nom mois menu],$E$3)","v":0},{"$f":"SUMIFS(TabBDMenus[Quantité viande],TabBDMenus[Nom viande],$A35,TabBDMenus[Nom mois menu],$F$3)","v":0},{"$f":"SUMIFS(TabBDMenus[Quantité viande],TabBDMenus[Nom viande],$A35,TabBDMenus[Nom mois menu],$G$3)","v":0},{"$f":"SUMIFS(TabBDMenus[Quantité viande],TabBDMenus[Nom viande],$A35,TabBDMenus[Nom mois menu],$H$3)","v":0},{"$f":"SUMIFS(TabBDMenus[Quantité viande],TabBDMenus[Nom viande],$A35,TabBDMenus[Nom mois menu],$I$3)","v":0},{"$f":"SUMIFS(TabBDMenus[Quantité viande],TabBDMenus[Nom viande],$A35,TabBDMenus[Nom mois menu],$J$3)","v":0},{"$f":"SUMIFS(TabBDMenus[Quantité viande],TabBDMenus[Nom viande],$A35,TabBDMenus[Nom mois menu],$K$3)","v":0},{"$f":"SUMIFS(TabBDMenus[Quantité viande],TabBDMenus[Nom viande],$A35,TabBDMenus[Nom mois menu],$L$3)","v":0},{"$f":"SUMIFS(TabBDMenus[Quantité viande],TabBDMenus[Nom viande],$A35,TabBDMenus[Nom mois menu],$M$3)","v":0},0]
["Viande paella",{"$f":"SUMIFS(TabBDMenus[Quantité viande],TabBDMenus[Nom viande],$A36,TabBDMenus[Nom mois menu],$B$3)","v":0},{"$f":"SUMIFS(TabBDMenus[Quantité viande],TabBDMenus[Nom viande],$A36,TabBDMenus[Nom mois menu],$C$3)","v":0},{"$f":"SUMIFS(TabBDMenus[Quantité viande],TabBDMenus[Nom viande],$A36,TabBDMenus[Nom mois menu],$D$3)","v":0},{"$f":"SUMIFS(TabBDMenus[Quantité viande],TabBDMenus[Nom viande],$A36,TabBDMenus[Nom mois menu],$E$3)","v":0},{"$f":"SUMIFS(TabBDMenus[Quantité viande],TabBDMenus[Nom viande],$A36,TabBDMenus[Nom mois menu],$F$3)","v":0},{"$f":"SUMIFS(TabBDMenus[Quantité viande],TabBDMenus[Nom viande],$A36,TabBDMenus[Nom mois menu],$G$3)","v":0},{"$f":"SUMIFS(TabBDMenus[Quantité viande],TabBDMenus[Nom viande],$A36,TabBDMenus[Nom mois menu],$H$3)","v":0},{"$f":"SUMIFS(TabBDMenus[Quantité viande],TabBDMenus[Nom viande],$A36,TabBDMenus[Nom mois menu],$I$3)","v":0},{"$f":"SUMIFS(TabBDMenus[Quantité viande],TabBDMenus[Nom viande],$A36,TabBDMenus[Nom mois menu],$J$3)","v":0},{"$f":"SUMIFS(TabBDMenus[Quantité viande],TabBDMenus[Nom viande],$A36,TabBDMenus[Nom mois menu],$K$3)","v":0},{"$f":"SUMIFS(TabBDMenus[Quantité viande],TabBDMenus[Nom viande],$A36,TabBDMenus[Nom mois menu],$L$3)","v":0},{"$f":"SUMIFS(TabBDMenus[Quantité viande],TabBDMenus[Nom viande],$A36,TabBDMenus[Nom mois menu],$M$3)","v":0},0]
["Agneau",{"$f":"SUMIFS(TabBDMenus[Quantité viande],TabBDMenus[Nom viande],$A37,TabBDMenus[Nom mois menu],$B$3)","v":0},{"$f":"SUMIFS(TabBDMenus[Quantité viande],TabBDMenus[Nom viande],$A37,TabBDMenus[Nom mois menu],$C$3)","v":0},{"$f":"SUMIFS(TabBDMenus[Quantité viande],TabBDMenus[Nom viande],$A37,TabBDMenus[Nom mois menu],$D$3)","v":0},{"$f":"SUMIFS(TabBDMenus[Quantité viande],TabBDMenus[Nom viande],$A37,TabBDMenus[Nom mois menu],$E$3)","v":0},{"$f":"SUMIFS(TabBDMenus[Quantité viande],TabBDMenus[Nom viande],$A37,TabBDMenus[Nom mois menu],$F$3)","v":0},{"$f":"SUMIFS(TabBDMenus[Quantité viande],TabBDMenus[Nom viande],$A37,TabBDMenus[Nom mois menu],$G$3)","v":0},{"$f":"SUMIFS(TabBDMenus[Quantité viande],TabBDMenus[Nom viande],$A37,TabBDMenus[Nom mois menu],$H$3)","v":0},{"$f":"SUMIFS(TabBDMenus[Quantité viande],TabBDMenus[Nom viande],$A37,TabBDMenus[Nom mois menu],$I$3)","v":0},{"$f":"SUMIFS(TabBDMenus[Quantité viande],TabBDMenus[Nom viande],$A37,TabBDMenus[Nom mois menu],$J$3)","v":0},{"$f":"SUMIFS(TabBDMenus[Quantité viande],TabBDMenus[Nom viande],$A37,TabBDMenus[Nom mois menu],$K$3)","v":0},{"$f":"SUMIFS(TabBDMenus[Quantité viande],TabBDMenus[Nom viande],$A37,TabBDMenus[Nom mois menu],$L$3)","v":0},{"$f":"SUMIFS(TabBDMenus[Quantité viande],TabBDMenus[Nom viande],$A37,TabBDMenus[Nom mois menu],$M$3)","v":0},0]
["Bœuf",{"$f":"SUMIFS(TabBDMenus[Quantité viande],TabBDMenus[Nom viande],$A38,TabBDMenus[Nom mois menu],$B$3)","v":0},{"$f":"SUMIFS(TabBDMenus[Quantité viande],TabBDMenus[Nom viande],$A38,TabBDMenus[Nom mois menu],$C$3)","v":0},{"$f":"SUMIFS(TabBDMenus[Quantité viande],TabBDMenus[Nom viande],$A38,TabBDMenus[Nom mois menu],$D$3)","v":0},{"$f":"SUMIFS(TabBDMenus[Quantité viande],TabBDMenus[Nom viande],$A38,TabBDMenus[Nom mois menu],$E$3)","v":0},{"$f":"SUMIFS(TabBDMenus[Quantité viande],TabBDMenus[Nom viande],$A38,TabBDMenus[Nom mois menu],$F$3)","v":0},{"$f":"SUMIFS(TabBDMenus[Quantité viande],TabBDMenus[Nom viande],$A38,TabBDMenus[Nom mois menu],$G$3)","v":0},{"$f":"SUMIFS(TabBDMenus[Quantité viande],TabBDMenus[Nom viande],$A38,TabBDMenus[Nom mois menu],$H$3)","v":0},{"$f":"SUMIFS(TabBDMenus[Quantité viande],TabBDMenus[Nom viande],$A38,TabBDMenus[Nom mois menu],$I$3)","v":0},{"$f":"SUMIFS(TabBDMenus[Quantité viande],TabBDMenus[Nom viande],$A38,TabBDMenus[Nom mois menu],$J$3)","v":0},{"$f":"SUMIFS(TabBDMenus[Quantité viande],TabBDMenus[Nom viande],$A38,TabBDMenus[Nom mois menu],$K$3)","v":0},{"$f":"SUMIFS(TabBDMenus[Quantité viande],TabBDMenus[Nom viande],$A38,TabBDMenus[Nom mois menu],$L$3)","v":0},{"$f":"SUMIFS(TabBDMenus[Quantité viande],TabBDMenus[Nom viande],$A38,TabBDMenus[Nom mois menu],$M$3)","v":0},0]
["Cheval",{"$f":"SUMIFS(TabBDMenus[Quantité viande],TabBDMenus[Nom viande],$A39,TabBDMenus[Nom mois menu],$B$3)","v":0},{"$f":"SUMIFS(TabBDMenus[Quantité viande],TabBDMenus[Nom viande],$A39,TabBDMenus[Nom mois menu],$C$3)","v":0},{"$f":"SUMIFS(TabBDMenus[Quantité viande],TabBDMenus[Nom viande],$A39,TabBDMenus[Nom mois menu],$D$3)","v":0},{"$f":"SUMIFS(TabBDMenus[Quantité viande],TabBDMenus[Nom viande],$A39,TabBDMenus[Nom mois menu],$E$3)","v":0},{"$f":"SUMIFS(TabBDMenus[Quantité viande],TabBDMenus[Nom viande],$A39,TabBDMenus[Nom mois menu],$F$3)","v":0},{"$f":"SUMIFS(TabBDMenus[Quantité viande],TabBDMenus[Nom viande],$A39,TabBDMenus[Nom mois menu],$G$3)","v":0},{"$f":"SUMIFS(TabBDMenus[Quantité viande],TabBDMenus[Nom viande],$A39,TabBDMenus[Nom mois menu],$H$3)","v":0},{"$f":"SUMIFS(TabBDMenus[Quantité viande],TabBDMenus[Nom viande],$A39,TabBDMenus[Nom mois menu],$I$3)","v":0},{"$f":"SUMIFS(TabBDMenus[Quantité viande],TabBDMenus[Nom viande],$A39,TabBDMenus[Nom mois menu],$J$3)","v":0},{"$f":"SUMIFS(TabBDMenus[Quantité viande],TabBDMenus[Nom viande],$A39,TabBDMenus[Nom mois menu],$K$3)","v":0},{"$f":"SUMIFS(TabBDMenus[Quantité viande],TabBDMenus[Nom viande],$A39,TabBDMenus[Nom mois menu],$L$3)","v":0},{"$f":"SUMIFS(TabBDMenus[Quantité viande],TabBDMenus[Nom viande],$A39,TabBDMenus[Nom mois menu],$M$3)","v":0},0]
["Dinde",{"$f":"SUMIFS(TabBDMenus[Quantité viande],TabBDMenus[Nom viande],$A40,TabBDMenus[Nom mois menu],$B$3)","v":0},{"$f":"SUMIFS(TabBDMenus[Quantité viande],TabBDMenus[Nom viande],$A40,TabBDMenus[Nom mois menu],$C$3)","v":0},{"$f":"SUMIFS(TabBDMenus[Quantité viande],TabBDMenus[Nom viande],$A40,TabBDMenus[Nom mois menu],$D$3)","v":0},{"$f":"SUMIFS(TabBDMenus[Quantité viande],TabBDMenus[Nom viande],$A40,TabBDMenus[Nom mois menu],$E$3)","v":0},{"$f":"SUMIFS(TabBDMenus[Quantité viande],TabBDMenus[Nom viande],$A40,TabBDMenus[Nom mois menu],$F$3)","v":0},{"$f":"SUMIFS(TabBDMenus[Quantité viande],TabBDMenus[Nom viande],$A40,TabBDMenus[Nom mois menu],$G$3)","v":0},{"$f":"SUMIFS(TabBDMenus[Quantité viande],TabBDMenus[Nom viande],$A40,TabBDMenus[Nom mois menu],$H$3)","v":0},{"$f":"SUMIFS(TabBDMenus[Quantité viande],TabBDMenus[Nom viande],$A40,TabBDMenus[Nom mois menu],$I$3)","v":0},{"$f":"SUMIFS(TabBDMenus[Quantité viande],TabBDMenus[Nom viande],$A40,TabBDMenus[Nom mois menu],$J$3)","v":0},{"$f":"SUMIFS(TabBDMenus[Quantité viande],TabBDMenus[Nom viande],$A40,TabBDMenus[Nom mois menu],$K$3)","v":0},{"$f":"SUMIFS(TabBDMenus[Quantité viande],TabBDMenus[Nom viande],$A40,TabBDMenus[Nom mois menu],$L$3)","v":0},{"$f":"SUMIFS(TabBDMenus[Quantité viande],TabBDMenus[Nom viande],$A40,TabBDMenus[Nom mois menu],$M$3)","v":0},0]
["Porc",{"$f":"SUMIFS(TabBDMenus[Quantité viande],TabBDMenus[Nom viande],$A41,TabBDMenus[Nom mois menu],$B$3)","v":0},{"$f":"SUMIFS(TabBDMenus[Quantité viande],TabBDMenus[Nom viande],$A41,TabBDMenus[Nom mois menu],$C$3)","v":0},{"$f":"SUMIFS(TabBDMenus[Quantité viande],TabBDMenus[Nom viande],$A41,TabBDMenus[Nom mois menu],$D$3)","v":0},{"$f":"SUMIFS(TabBDMenus[Quantité viande],TabBDMenus[Nom viande],$A41,TabBDMenus[Nom mois menu],$E$3)","v":0},{"$f":"SUMIFS(TabBDMenus[Quantité viande],TabBDMenus[Nom viande],$A41,TabBDMenus[Nom mois menu],$F$3)","v":0},{"$f":"SUMIFS(TabBDMenus[Quantité viande],TabBDMenus[Nom viande],$A41,TabBDMenus[Nom mois menu],$G$3)","v":0},{"$f":"SUMIFS(TabBDMenus[Quantité viande],TabBDMenus[Nom viande],$A41,TabBDMenus[Nom mois menu],$H$3)","v":0},{"$f":"SUMIFS(TabBDMenus[Quantité viande],TabBDMenus[Nom viande],$A41,TabBDMenus[Nom mois menu],$I$3)","v":0},{"$f":"SUMIFS(TabBDMenus[Quantité viande],TabBDMenus[Nom viande],$A41,TabBDMenus[Nom mois menu],$J$3)","v":0},{"$f":"SUMIFS(TabBDMenus[Quantité viande],TabBDMenus[Nom viande],$A41,TabBDMenus[Nom mois menu],$K$3)","v":0},{"$f":"SUMIFS(TabBDMenus[Quantité viande],TabBDMenus[Nom viande],$A41,TabBDMenus[Nom mois menu],$L$3)","v":0},{"$f":"SUMIFS(TabBDMenus[Quantité viande],TabBDMenus[Nom viande],$A41,TabBDMenus[Nom mois menu],$M$3)","v":0},0]
["Veau",{"$f":"SUMIFS(TabBDMenus[Quantité viande],TabBDMenus[Nom viande],$A42,TabBDMenus[Nom mois menu],$B$3)","v":0},{"$f":"SUMIFS(TabBDMenus[Quantité viande],TabBDMenus[Nom viande],$A42,TabBDMenus[Nom mois menu],$C$3)","v":0},{"$f":"SUMIFS(TabBDMenus[Quantité viande],TabBDMenus[Nom viande],$A42,TabBDMenus[Nom mois menu],$D$3)","v":0},{"$f":"SUMIFS(TabBDMenus[Quantité viande],TabBDMenus[Nom viande],$A42,TabBDMenus[Nom mois menu],$E$3)","v":0},{"$f":"SUMIFS(TabBDMenus[Quantité viande],TabBDMenus[Nom viande],$A42,TabBDMenus[Nom mois menu],$F$3)","v":0},{"$f":"SUMIFS(TabBDMenus[Quantité viande],TabBDMenus[Nom viande],$A42,TabBDMenus[Nom mois menu],$G$3)","v":0},{"$f":"SUMIFS(TabBDMenus[Quantité viande],TabBDMenus[Nom viande],$A42,TabBDMenus[Nom mois menu],$H$3)","v":0},{"$f":"SUMIFS(TabBDMenus[Quantité viande],TabBDMenus[Nom viande],$A42,TabBDMenus[Nom mois menu],$I$3)","v":0},{"$f":"SUMIFS(TabBDMenus[Quantité viande],TabBDMenus[Nom viande],$A42,TabBDMenus[Nom mois menu],$J$3)","v":0},{"$f":"SUMIFS(TabBDMenus[Quantité viande],TabBDMenus[Nom viande],$A42,TabBDMenus[Nom mois menu],$K$3)","v":0},{"$f":"SUMIFS(TabBDMenus[Quantité viande],TabBDMenus[Nom viande],$A42,TabBDMenus[Nom mois menu],$L$3)","v":0},{"$f":"SUMIFS(TabBDMenus[Quantité viande],TabBDMenus[Nom viande],$A42,TabBDMenus[Nom mois menu],$M$3)","v":0},0]
[{"$f":"\"Imprimé à Limeil-Brévannes, le \"&TEXT(TODAY(),\"jjjj j mmmm aaaa\")&\".\"","v":"Imprimé à Limeil-Brévannes, le vendredi 8 septembre 2023."}]
["Pour la création des formules, ne pas passer par ni Formules, ni Insérer une fonction. tapez le signe égal, tapez SOMME.SI.ENS, tapez une parenthèse ouvrante, tapez Tab (la liste des Tab disponibles apparaît, cliquez sur"]
["TabBDMenus), tapez un crochet ouvrant, la liste des noms définis disponibles s'affiche à l'écran (ici choisir QMV) tapez un point virgule tapez Tab (la liste des Tab disponibles apparaît, cliquez sur TabBDMenus), tapez un "]
["crochet ouvrant, le liste des noms définis disponibles s'affiche à l'écran (ici cliquez sur NMV) tapez un point virgule À partir de la feuille Quantités viandes, cliquez sur la cellule A4 tapez un point virgule tapez Tab (la liste"]
["des Tab disponibles apparaît, cliquez sur TabBDMenus tapez un crochet ouvrant, la liste des noms définis disponibles s'affiche à l'écran (ici cliquez sur Mois) tapez un point virgule À partir de la feuille Quantités viandes,"]
["cliquez sur la cellule B3 tapez une parenthèse fermante. Rendre A4 en référence relative sur la colonne. Rendre B3 en référence absolue."]